{"text_format":"1","workbook":"xlsx","n_sheets":47,"sheets":["Hoja1","guias","reglatecni","PAI","aprobacion","QUIENES","Portada Juridica","Portada Fisica","Paso 1","Paso 1 (2)","carta","carta (2)","Paso2","Paso2 (2)","Paso3","Paso3 (2)","Paso4","Paso4 (2)","Paso5","Paso5 (2)","Paso6","Paso6 (2)","Paso7","Paso7 (2)","Paso8","Paso8 (2)","Paso9","Paso9 (2)","Paso10","Paso10 (2)","Paso11","Paso11 (2)","Paso12","Paso12 (2)","Paso13","Paso13 (2)","Paso14","Paso14 (2)","Paso15","Paso15 (2)","Paso16","Paso17","ReqMayores","ReqMayores (2)","ReqMENORES (2)","ReqMENORES","Paso18"],"not_rendered":{"charts":0,"images":30,"macros":1,"external_links":0,"defined_names":207,"comments":5,"pivot_tables":0},"unopened":[],"bounds":{"document_bytes":16777216,"sheet_cells":100000,"rows_first":2000,"rows_last":500,"rows_between":2000,"halvings":0,"cell_chars":16384,"cell_head_chars":4096},"cells_cut":0,"cells_raw":0,"read":"whole","date_system":"1900"}

{"sheet":"Hoja1","index":0,"n_rows":1,"n_cols":1,"rows_kept":1,"cut":false,"hidden":false,"merged":[[14,5,17,5],[5,1,5,7],[0,0,4,10]]}
["Manual Instructivo de Ingreso al Programa de Abastecimiento Institucional (PAI)"]

{"sheet":"guias","index":1,"n_rows":13,"n_cols":2,"rows_kept":13,"cut":false,"hidden":false,"merged":[[5,1,5,7],[0,0,4,6]]}
["Manual Instructivo de Ingreso al Programa de Abastecimiento Institucional (PAI)"]
[]
[]
[]
[]
[null,"Para descargar los reglamentos técnicas darle clik a los enlaces de descargar, tiene que tener acceso a internet"]
[null,"Guia Carne de Pollo "]
[null,"Guia de identificacion de filetes de pescado y mariscos "]
[null,"Guia de productos acuícolas  "]
[null,"Guía de Abarrotes "]
[null,"Guía de Pecuarios "]
[null,"Guía de Productos Lácteos "]
[null,"Guía hortifruticolas "]

{"sheet":"reglatecni","index":2,"n_rows":16,"n_cols":4,"rows_kept":16,"cut":false,"hidden":false,"merged":[[5,1,5,7],[0,0,4,7]]}
["Manual Instructivo de Ingreso al Programa de Abastecimiento Institucional (PAI)"]
[]
[]
[]
[]
[null,"Para descargar los reglamentos técnicas darle clik a los enlaces de descargar, tiene que tener internet "]
[null,"Arroz Granza",null,"Maíz en grano"]
[null,"Arroz pilado",null,"Melón Cantaloupe"]
[null,"Brócoli",null,"Mora"]
[null,"Cebolla",null,"Papa"]
[null,"Chayote",null,"Repollo"]
[null,"Chile Dulce",null,"Sandía"]
[null,"Coliflor",null,"Tomate"]
[null,"Fresa",null,"Vainica"]
[null,"Frijol en grano",null,"Yuca Dulce"]
[null,"Lechuga",null,"Zanahoria"]

{"sheet":"PAI","index":3,"n_rows":15,"n_cols":7,"rows_kept":15,"cut":false,"hidden":false,"merged":[[21,6,25,9],[0,0,4,8],[12,6,12,9],[8,1,13,5],[14,1,19,5]]}
["Manual Instructivo de Ingreso al Programa de Abastecimiento Institucional (PAI)"]
[]
[]
[]
[]
[]
[]
[]
[null,"Es el programa que ejecuta el CNP para atender las necesidades de suministros alimenticios que requieren las instituciones del Estado, que por ley están obligadas a adquirir esos suministros por contratación  directa a través del CNP; y este, garantizar que dicho suministros procedan prioritariamente de productos de micro, pequeños y medianos productores agropecuarios y agroindustriales nacionales."]
[]
[]
[]
[null,null,null,null,null,null,"Para ingresar a la página web del CNP de CLICK en su logo"]
[]
[null,"El Programa de Abastecimiento Institucional (PAI) es soporte de verdaderos sistemas agroalimentarios sostenibles, pues garantizan la participación de productores y grupos de productores en procesos que encadenan producción primaria, transformación agroindustrial, acopio, distribución y comercialización de productos dirigidos a mercados agroalimentarios. El PAI democratiza la economía, reparte riqueza, genera empleo y dinamiza el mercado local."]

{"sheet":"aprobacion","index":4,"n_rows":16,"n_cols":2,"rows_kept":16,"cut":false,"hidden":false,"merged":[[5,1,5,2],[21,6,25,9],[17,1,17,2],[0,0,4,7],[6,1,8,5],[9,1,10,5],[11,1,12,5],[15,1,16,5]]}
["Manual Instructivo de Ingreso al Programa de Abastecimiento Institucional (PAI)"]
[]
[]
[]
[]
[null,"Aprobación de la solicitud"]
[null,"La Comisión de Abastecimiento Institucional, que es el ente Oficial del CNP en aprobar la incorporación de los suplidores, reciben el expediente y toma la determinación de incorporar a la agro empresa o comercializadora al registro de suplidores."]
[]
[]
[null,"Cuando se trate de empresas grandes, el expediente es enviado a consideración de la Junta Directiva del CNP y posteriormente a la Contraloría General de la República, para su aprobación."]
[]
[null,"En el momento en que se requiera, la Dirección de Centro de Negocios Agroalimentarios (DCNA) procede a incorporar a las agro empresas o comercializadoras como suplidor activo de acuerdo a sus requerimientos."]
[]
[]
[]
[null,"Todos los suplidores activos deberán de incorporarse al programa de Certificación de suplidores por parte de la Dirección de Calidad e Inocuidad para lo cual aplica el protocolo para la certificación de suplidores de alimentos de la Dirección de Centro de Negocios Agroalimentarios."]

{"sheet":"QUIENES","index":5,"n_rows":15,"n_cols":7,"rows_kept":15,"cut":false,"hidden":false,"merged":[[5,1,5,7],[21,6,25,9],[0,0,4,8],[8,1,13,5],[14,1,18,5]]}
["Manual Instructivo de Ingreso al Programa de Abastecimiento Institucional (PAI)"]
[]
[]
[]
[]
[]
[null,"¿QUIÉNES PARTICIPAN Y CÓMO?"]
[]
[null,"Todos los entes del Estado del gobierno central e instituciones descentralizadas que disponen de recursos presupuestarios para adquirir suministros alimenticios. A estos entes e instituciones se les denomina clientes, los cuales solicitan al CNP sus necesidades en cantidades, calidad y términos de servicio."]
[]
[null,null,null,null,null,null,"sostenible18"]
[]
[]
[]
[null,"La relación de compra - venta es exclusiva entre CNP y el Cliente institucional. Los suplidores ejercen como la Fuerza de Ventas del CNP para cumplir su cometido y es el CNP quien es el responsable de decidir los clientes."]

{"sheet":"Portada Juridica","index":6,"n_rows":27,"n_cols":10,"rows_kept":27,"cut":false,"hidden":false,"merged":[[5,1,5,7],[14,5,17,5],[0,0,4,7],[5,8,5,10]]}
["Manual Instructivo de Ingreso al Programa de Abastecimiento Institucional (PAI)"]
[]
[]
[]
[]
[null,null,null,null,null,null,null,null,"Porcentaje de avance"]
[null,null,null,null,null,null,null,null,null,{"$f":"+SUM(J8:J27)/18","v":0}]
[]
[null,null,null,null,null,null,null,null,false,{"$f":"+IF(I9=TRUE,1,0)","v":0}]
[null,null,null,null,null,null,null,null,false,0]
[null,null,null,null,null,null,null,null,false,0]
[null,null,null,null,null,null,null,null,false,0]
[null,null,null,null,null,null,null,null,false,0]
[null,null,null,null,null,null,null,null,false,0]
[null,null,null,null,null,null,null,null,false,0]
[null,null,null,null,null,null,null,null,false,0]
[null,null,null,null,null,null,null,null,null,0]
[null,null,null,null,null,null,null,null,false,0]
[null,null,null,null,null,null,null,null,false,0]
[null,null,null,null,null,null,null,null,false,0]
[null,null,null,null,null,null,null,null,false,0]
[null,null,null,null,null,null,null,null,false,0]
[null,null,null,null,null,null,null,null,false,0]
[null,null,null,null,null,null,null,null,false,0]
[null,null,null,null,null,null,null,null,false,0]
[null,null,null,null,null,null,null,null,false,0]
[null,null,null,null,null,null,null,null,false,0]

{"sheet":"Portada Fisica","index":7,"n_rows":21,"n_cols":10,"rows_kept":21,"cut":false,"hidden":false,"merged":[[14,5,17,5],[0,0,4,7],[5,8,5,10],[6,9,8,9]]}
["Manual Instructivo de Ingreso al Programa de Abastecimiento Institucional (PAI)"]
[]
[]
[]
[]
[null,true,null,null,null,null,null,null,"Porcentaje de avance"]
[null,null,null,null,null,null,null,false,{"$f":"+IF(H7=TRUE,1,0)","v":0},{"$f":"AVERAGE(I7:I25)","v":0}]
[null,null,null,null,null,null,null,false,{"$f":"+IF(H8=TRUE,1,0)","v":0}]
[null,null,null,null,null,null,null,false,0]
[null,null,null,null,null,null,null,false,0]
[null,null,null,null,null,null,null,false,0]
[null,null,null,null,null,null,null,false,0]
[null,null,null,null,null,null,null,false,0]
[null,null,null,null,null,null,null,false,0]
[null,null,"Ç",null,null,null,null,false,0]
[null,null,null,null,null,null,null,false,0]
[null,null,null,null,null,null,null,false,0]
[null,null,null,null,null,null,null,false,0]
[null,null,null,null,null,null,null,false,0]
[null,null,null,null,null,null,null,false,0]
[null,null,null,null,null,null,null,false,0]

{"sheet":"Paso 1","index":8,"n_rows":580,"n_cols":11,"rows_kept":580,"cut":false,"hidden":false,"merged":[[24,5,24,8],[14,5,17,5],[5,1,5,7],[0,0,4,2]]}
["Manual Instructivo de Ingreso al Programa de Abastecimiento Institucional (PAI)"]
[null,null,null,null,null,"Provincia","Cantón","Distrito","Región"]
[null,null,null,"Seleccione "]
[]
[]
["PASO 1.","Dirigir una carta a Dirección Regional del Consejo Nacional de Producción (CNP), en la cual diga los siguientes puntos. Por favor completelos aquí y selecciona la opción de generar carta."]
[null,"1.      Nombre Empresa",null,null,null,"7.      Teléfono"]
[]
[null,"2.  Nombre representante legal",null,null,null,"      Fax "]
[]
[null,"     Cédula",null,null,null,"      Correo"]
[]
[null,"3.      Nombre Gerente, presidente y/o apoderado"]
[]
[null,"4.   Dirección postal ",{"$f":"+VLOOKUP(H3,J110:K580,2,0)","v":{"$error":"#N/A"}},null,null,"8.      Describir actividad a la que se dedica la empresa"]
[]
[]
[null,"5.      Dirección geográfica exacta"]
[]
[]
[]
[null,"6.      Domicilio legal de la empresa. "]
[null,null,null,null,null,"9.      Bienes o servicios que se ofrezcan"]
[]
[null,null,null,null,null,"Para generar la carta tiene que estar la anterior información completa"]
[]
[]
[]
[]
[]
[]
[]
[]
[]
[]
[]
[]
[]
[]
[]
[]
[]
[]
[]
[]
[]
[]
[]
[]
[]
[]
[]
[]
[]
[]
[]
[]
[]
[]
[]
[]
[]
[]
[]
[]
[]
[]
[]
[]
[]
[]
[]
[]
[]
[]
[]
[]
[]
[]
[]
[]
[]
[]
[]
[]
[]
[]
[]
[null,"SANJOSE","Central","Licda. Gabriela Ureña Fonseca"]
[null,"GUANACASTE","Chorotega","Ing. José A. Angulo Alguera"]
[null,null,"Brunca","Ing. Gerardina Campos Jiménez"]
[null,"LIMON","Huetar Caribe","Ing. Mauricio Barrientos Chacón"]
[null,"HEREDIA","Huetar Norte","Ing. Agr. William I. Lara López"]
[null,"PUNTARENAS","Pacífico Central","Ing. David Araya Amador"]
[null,"CARTAGO","Central Oriental","Licda. Gabriela Ureña Fonseca"]
[null,"ALAJUELA","Central Occidental","Licda. Gabriela Ureña Fonseca"]
[]
[]
[]
[]
[]
["Codigo Postal","Cantón","Distrito"]
[10101,"SAN_JOSE","CARMEN"]
[10102,"SAN_JOSE","MERCED"]
[10103,"SAN_JOSE","HOSPITAL",null,"SANJOSE",null,"SAN_JOSE","SAN JOSE"]
[10104,"SAN_JOSE","CATEDRAL",null,"ALAJUELA",null,"ESCAZU"]
[10105,"SAN_JOSE","ZAPOTE",null,"CARTAGO",null,"DESAMPARADOS"]
[10106,"SAN_JOSE","SAN FRANCISCO DE DOS RIOS",null,"PUNTARENAS",null,"PURISCAL"]
[10107,"SAN_JOSE","URUCA",null,"HEREDIA",null,"TARRAZU"]
[10108,"SAN_JOSE","MATA REDONDA",null,"GUANACASTE",null,"ASERRI",null,null,"Distrito","Codigo Postal"]
[10109,"SAN_JOSE","PAVAS",null,"LIMON",null,"MORA",null,null,"CARMEN",10101]
[10110,"SAN_JOSE","HATILLO",null,null,null,"GOICOECHEA",null,null,"MERCED",10102]
[10111,"SAN_JOSE","SAN SEBASTIAN",null,null,null,"SANTAANA",null,null,"HOSPITAL",10103]
[10201,"ESCAZU","ESCAZU",null,null,null,"ALAJUELITA",null,null,"CATEDRAL",10104]
[10202,"ESCAZU","SAN ANTONIO",null,null,null,"CORONADO",null,null,"ZAPOTE",10105]
[10203,"ESCAZU","SAN RAFAEL",null,null,null,"ACOSTA",null,null,"SAN FRANCISCO DE DOS RIOS",10106]
[10301,"DESAMPARADOS","DESAMPARADOS",null,null,null,"TIBAS",null,null,"URUCA",10107]
[10302,"DESAMPARADOS","SAN MIGUEL",null,null,null,"MORAVIA",null,null,"MATA REDONDA",10108]
[10303,"DESAMPARADOS","SAN JUAN DE DIOS",null,null,null,"SAN_PEDRO",null,null,"PAVAS",10109]
[10304,"DESAMPARADOS","SAN RAFAEL ARRIBA",null,null,null,"TURRUBARES",null,null,"HATILLO",10110]
[10305,"DESAMPARADOS","SAN ANTONIO",null,null,null,"DOTA",null,null,"SAN SEBASTIAN",10111]
[10306,"DESAMPARADOS","FRAILES",null,null,null,"CURRIDABAT",null,null,"ESCAZU",10201]
[10307,"DESAMPARADOS","PATARRA",null,null,null,"PEREZ_ZELEDON",null,null,"SAN ANTONIO",10202]
[10308,"DESAMPARADOS","SAN CRISTOBAL",null,null,null,"LEON_CORTES",null,null,"SAN RAFAEL",10203]
[10309,"DESAMPARADOS","ROSARIO",null,null,null,"ALAJUELA_CENTRAL",null,null,"DESAMPARADOS",10301]
[10310,"DESAMPARADOS","DAMAS",null,null,null,"SAN_RAMON",null,null,"SAN MIGUEL",10302]
[10311,"DESAMPARADOS","SAN RAFAEL ABAJO",null,null,null,"GRECIA",null,null,"SAN JUAN DE DIOS",10303]
[10312,"DESAMPARADOS","GRAVILLAS",null,null,null,"SAN_MATEO",null,null,"SAN RAFAEL ARRIBA",10304]
[10313,"DESAMPARADOS","LOS GUIDO",null,null,null,"ATENAS",null,null,"SAN ANTONIO",10305]
[10401,"PURISCAL","SANTIAGO",null,null,null,"NARANJO",null,null,"FRAILES",10306]
[10402,"PURISCAL","MERCEDES SUR",null,null,null,"PALMARES",null,null,"PATARRA",10307]
[10403,"PURISCAL","BARBACOAS",null,null,null,"POAS",null,null,"SAN CRISTOBAL",10308]
[10404,"PURISCAL","GRIFO ALTO",null,null,null,"OROTINA",null,null,"ROSARIO",10309]
[10405,"PURISCAL","SAN RAFAEL",null,null,null,"SAN_CARLOS",null,null,"DAMAS",10310]
[10406,"PURISCAL","CANDELARIA",null,null,null,"ALFARO_RUIZ",null,null,"SAN RAFAEL ABAJO",10311]
[10407,"PURISCAL","DESAMPARADITOS",null,null,null,"VALVERDE_VEGA",null,null,"GRAVILLAS",10312]
[10408,"PURISCAL","SAN ANTONIO",null,null,null,"UPALA",null,null,"LOS GUIDO",10313]
[10409,"PURISCAL","CHIRES",null,null,null,"LOS_CHILES",null,null,"SANTIAGO",10401]
[10501,"TARRAZU","SAN MARCOS",null,null,null,"GUATUSO",null,null,"MERCEDES SUR",10402]
[10502,"TARRAZU","SAN LORENZO",null,null,null,"CARTAGO_CENTRAL",null,null,"BARBACOAS",10403]
[10503,"TARRAZU","SAN CARLOS",null,null,null,"PARAISO",null,null,"GRIFO ALTO",10404]
[10601,"ASERRI","ASERRI",null,null,null,"LA_UNION",null,null,"SAN RAFAEL",10405]
[10602,"ASERRI","TARBACA",null,null,null,"JIMENEZ",null,null,"CANDELARIA",10406]
[10603,"ASERRI","VUELTA DE JORCO",null,null,null,"TURRIALBA",null,null,"DESAMPARADITOS",10407]
[10604,"ASERRI","SAN GABRIEL",null,null,null,"ALVARADO",null,null,"SAN ANTONIO",10408]
[10605,"ASERRI","LEGUA",null,null,null,"OREAMUNO",null,null,"CHIRES",10409]
[10606,"ASERRI","MONTERREY",null,null,null,"EL_GUARCO",null,null,"SAN MARCOS",10501]
[10607,"ASERRI","SALITRILLOS",null,null,null,"HEREDIA_CENTRAL",null,null,"SAN LORENZO",10502]
[10701,"MORA","COLON",null,null,null,"BARVA",null,null,"SAN CARLOS",10503]
[10702,"MORA","GUAYAVO",null,null,null,"SANTO_DOMINGO",null,null,"ASERRI",10601]
[10703,"MORA","TABARCIA",null,null,null,"SANTA_BARBARA",null,null,"TARBACA",10602]
[10704,"MORA","PIEDRAS NEGRAS",null,null,null,"SAN_RAFAEL",null,null,"VUELTA DE JORCO",10603]
[10705,"MORA","PICAGRES",null,null,null,"SAN_ISIDRO",null,null,"SAN GABRIEL",10604]
[10801,"GOICOECHEA","GUADALUPE",null,null,null,"BELEN",null,null,"LEGUA",10605]
[10802,"GOICOECHEA","SAN FRANCISCO",null,null,null,"SAN_JOAQUIN_DE_FLORES",null,null,"MONTERREY",10606]
[10803,"GOICOECHEA","CALLE BLANCOS",null,null,null,"SAN_PABLO",null,null,"SALITRILLOS",10607]
[10804,"GOICOECHEA","MATA DE PLATANO",null,null,null,"SARAPIQUI",null,null,"COLON",10701]
[10805,"GOICOECHEA","IPIS",null,null,null,"LIBERIA",null,null,"GUAYAVO",10702]
[10806,"GOICOECHEA","RANCHO REDONDO",null,null,null,"NICOYA",null,null,"TABARCIA",10703]
[10807,"GOICOECHEA","PURRAL",null,null,null,"SANTA_CRUZ",null,null,"PIEDRAS NEGRAS",10704]
[10901,"SANTA ANA","SANTA ANA",null,null,null,"BAGACES",null,null,"PICAGRES",10705]
[10902,"SANTA ANA","SALITRAL",null,null,null,"CARRILLO",null,null,"GUADALUPE",10801]
[10903,"SANTA ANA","POZOS",null,null,null,"CAЁS",null,null,"SAN FRANCISCO",10802]
[10904,"SANTA ANA","URUCA",null,null,null,"ABANGARES",null,null,"CALLE BLANCOS",10803]
[10905,"SANTA ANA","PIEDADES",null,null,null,"TILARAN",null,null,"MATA DE PLATANO",10804]
[10906,"SANTA ANA","BRASIL",null,null,null,"NANDAYURE",null,null,"IPIS",10805]
[11001,"ALAJUELITA","ALAJUELITA",null,null,null,"LA_CRUZ",null,null,"RANCHO REDONDO",10806]
[11002,"ALAJUELITA","SAN JOSECITO",null,null,null,"HOJANCHA",null,null,"PURRAL",10807]
[11003,"ALAJUELITA","SAN ANTONIO",null,null,null,"PUNTARENAS_CENTRAL",null,null,"SANTA ANA",10901]
[11004,"ALAJUELITA","CONCEPCION",null,null,null,"ESPARZA",null,null,"SALITRAL",10902]
[11005,"ALAJUELITA","SAN FELIPE",null,null,null,"BUENOS_AIRES",null,null,"POZOS",10903]
[11101,"VAZQUEZ DE CORONADO","SAN ISIDRO",null,null,null,"MONTES_DE_ORO",null,null,"URUCA",10904]
[11102,"VAZQUEZ DE CORONADO","SAN RAFAEL",null,null,null,"OSA",null,null,"PIEDADES",10905]
[11103,"VAZQUEZ DE CORONADO","DULCE NOMBRE DE JESUS",null,null,null,"AGUIRRE",null,null,"BRASIL",10906]
[11104,"VAZQUEZ DE CORONADO","PATALILLO",null,null,null,"GOLFITO",null,null,"ALAJUELITA",11001]
[11105,"VAZQUEZ DE CORONADO","CASCAJAL",null,null,null,"COTO_BRUS",null,null,"SAN JOSECITO",11002]
[11201,"ACOSTA","SAN IGNACIO DE ACOSTA",null,null,null,"PARRITA",null,null,"SAN ANTONIO",11003]
[11202,"ACOSTA","GUAITIL",null,null,null,"CORREDORES",null,null,"CONCEPCION",11004]
[11203,"ACOSTA","PALMICHAL",null,null,null,"GARABITO",null,null,"SAN FELIPE",11005]
[11204,"ACOSTA","CANGREJAL",null,null,null,"LIMON__CENTRAL",null,null,"SAN ISIDRO",11101]
[11205,"ACOSTA","SABANILLAS",null,null,null,"POCOSI",null,null,"SAN RAFAEL",11102]
[11301,"TIBAS","SAN JUAN",null,null,null,"SIQUIRRES",null,null,"DULCE NOMBRE DE JESUS",11103]
[11302,"TIBAS","CINCO ESQUINAS",null,null,null,"TALAMANCA",null,null,"PATALILLO",11104]
[11303,"TIBAS","ANSELMO LLORENTE",null,null,null,"MATINA",null,null,"CASCAJAL",11105]
[11304,"TIBAS","LEON XIII",null,null,null,"GUACIMO",null,null,"SAN IGNACIO DE ACOSTA",11201]
[11305,"TIBAS","COLIMA",null,null,null,null,null,null,"GUAITIL",11202]
[11401,"MORAVIA","SAN VICENTE",null,null,null,null,null,null,"PALMICHAL",11203]
[11402,"MORAVIA","SAN JERONIMO",null,null,null,null,null,null,"CANGREJAL",11204]
[11403,"MORAVIA","TRINIDAD",null,null,null,null,null,null,"SABANILLAS",11205]
[11501,"MONTES DE OCA","SAN PEDRO",null,null,null,null,null,null,"SAN JUAN",11301]
[11502,"MONTES DE OCA","SABANILLA",null,null,null,null,null,null,"CINCO ESQUINAS",11302]
[11503,"MONTES DE OCA","MERCEDES",null,null,null,null,null,null,"ANSELMO LLORENTE",11303]
[11504,"MONTES DE OCA","SAN RAFAEL",null,null,null,null,null,null,"LEON XIII",11304]
[11601,"TURRUBARES","SAN PABLO",null,null,null,null,null,null,"COLIMA",11305]
[11602,"TURRUBARES","SAN PEDRO",null,null,null,null,null,null,"SAN VICENTE",11401]
[11603,"TURRUBARES","SAN JUA DE MATA",null,null,null,null,null,null,"SAN JERONIMO",11402]
[11604,"TURRUBARES","SAN LUIS",null,null,null,null,null,null,"TRINIDAD",11403]
[11605,"TURRUBARES","CARARA",null,null,null,null,null,null,"SAN PEDRO",11501]
[11701,"DOTA","SANTA MARIA",null,null,null,null,null,null,"SABANILLA",11502]
[11702,"DOTA","JARDIN",null,null,null,null,null,null,"MERCEDES",11503]
[11703,"DOTA","COPEY",null,null,null,null,null,null,"SAN RAFAEL",11504]
[11801,"CURRIDABAT","CURRIDABAT",null,null,null,null,null,null,"SAN PABLO",11601]
[11802,"CURRIDABAT","GRANADILLA",null,null,null,null,null,null,"SAN PEDRO",11602]
[11803,"CURRIDABAT","SANCHEZ",null,null,null,null,null,null,"SAN JUA DE MATA",11603]
[11804,"CURRIDABAT","TIRRASES",null,null,null,null,null,null,"SAN LUIS",11604]
[11901,"PEREZ_ZELEDON","SAN ISIDRO DEL GENERAL",null,null,null,null,null,null,"CARARA",11605]
[11902,"PEREZ_ZELEDON","GENERAL",null,null,null,null,null,null,"SANTA MARIA",11701]
[11903,"PEREZ_ZELEDON","DANIEL FLORES",null,null,null,null,null,null,"JARDIN",11702]
[11904,"PEREZ_ZELEDON","RIVAS",null,null,null,null,null,null,"COPEY",11703]
[11905,"PEREZ_ZELEDON","SAN PEDRO",null,null,null,null,null,null,"CURRIDABAT",11801]
[11906,"PEREZ_ZELEDON","PLATANARES",null,null,null,null,null,null,"GRANADILLA",11802]
[11907,"PEREZ_ZELEDON","PEJIBAYE",null,null,null,null,null,null,"SANCHEZ",11803]
[11908,"PEREZ_ZELEDON","CAJON",null,null,null,null,null,null,"TIRRASES",11804]
[11909,"PEREZ_ZELEDON","BARU",null,null,null,null,null,null,"SAN ISIDRO DEL GENERAL",11901]
[11910,"PEREZ_ZELEDON","RIO NUEVO",null,null,null,null,null,null,"GENERAL",11902]
[11911,"PEREZ_ZELEDON","PARAMO",null,null,null,null,null,null,"DANIEL FLORES",11903]
[12001,"LEON_CORTES","SAN PABLO",null,null,null,null,null,null,"RIVAS",11904]
[12002,"LEON_CORTES","SAN ANDRES",null,null,null,null,null,null,"SAN PEDRO",11905]
[12003,"LEON_CORTES","LLANO BONITO",null,null,null,null,null,null,"PLATANARES",11906]
[12004,"LEON_CORTES","SAN ISIDRO",null,null,null,null,null,null,"PEJIBAYE",11907]
[12005,"LEON_CORTES","SANTA CRUZ",null,null,null,null,null,null,"CAJON",11908]
[12006,"LEON_CORTES","SAN ANTONIO",null,null,null,null,null,null,"BARU",11909]
[20101,"ALAJUELA_CENTRAL","ALAJUELA",null,null,null,null,null,null,"RIO NUEVO",11910]
[20102,"ALAJUELA_CENTRAL","SAN JOSE",null,null,null,null,null,null,"PARAMO",11911]
[20103,"ALAJUELA_CENTRAL","CARRIZAL",null,null,null,null,null,null,"SAN PABLO",12001]
[20104,"ALAJUELA_CENTRAL","SAN ANTONIO",null,null,null,null,null,null,"SAN ANDRES",12002]
[20105,"ALAJUELA_CENTRAL","GUACIMA",null,null,null,null,null,null,"LLANO BONITO",12003]
[20106,"ALAJUELA_CENTRAL","SAN ISIDRO",null,null,null,null,null,null,"SAN ISIDRO",12004]
[20107,"ALAJUELA_CENTRAL","SABANILLA",null,null,null,null,null,null,"SANTA CRUZ",12005]
[20108,"ALAJUELA_CENTRAL","SAN RAFAEL",null,null,null,null,null,null,"SAN ANTONIO",12006]
[20109,"ALAJUELA_CENTRAL","RIO SEGUNDO",null,null,null,null,null,null,"ALAJUELA",20101]
[20110,"ALAJUELA_CENTRAL","DESAMPARADOS",null,null,null,null,null,null,"SAN JOSE",20102]
[20111,"ALAJUELA_CENTRAL","TURRUCARES",null,null,null,null,null,null,"CARRIZAL",20103]
[20112,"ALAJUELA_CENTRAL","TAMBOR",null,null,null,null,null,null,"SAN ANTONIO",20104]
[20113,"ALAJUELA_CENTRAL","GARITA",null,null,null,null,null,null,"GUACIMA",20105]
[20114,"ALAJUELA_CENTRAL","SARAPIQUI",null,null,null,null,null,null,"SAN ISIDRO",20106]
[20201,"SAN_RAMON","SAN RAMON",null,null,null,null,null,null,"SABANILLA",20107]
[20202,"SAN_RAMON","SANTIAGO",null,null,null,null,null,null,"SAN RAFAEL",20108]
[20203,"SAN_RAMON","SAN JUAN",null,null,null,null,null,null,"RIO SEGUNDO",20109]
[20204,"SAN_RAMON","PIEDADES NORTE",null,null,null,null,null,null,"DESAMPARADOS",20110]
[20205,"SAN_RAMON","PIEDADES SUR",null,null,null,null,null,null,"TURRUCARES",20111]
[20206,"SAN_RAMON","SAN RAFAEL",null,null,null,null,null,null,"TAMBOR",20112]
[20207,"SAN_RAMON","SAN ISIDRO",null,null,null,null,null,null,"GARITA",20113]
[20208,"SAN_RAMON","ANGELES",null,null,null,null,null,null,"SARAPIQUI",20114]
[20209,"SAN_RAMON","ALFARO",null,null,null,null,null,null,"SAN RAMON",20201]
[20210,"SAN_RAMON","VOLIO",null,null,null,null,null,null,"SANTIAGO",20202]
[20211,"SAN_RAMON","CANCEPCION",null,null,null,null,null,null,"SAN JUAN",20203]
[20212,"SAN_RAMON","ZAPOTAL",null,null,null,null,null,null,"PIEDADES NORTE",20204]
[20213,"SAN_RAMON","PEЁS BLANCAS",null,null,null,null,null,null,"PIEDADES SUR",20205]
[20301,"GRECIA","GRECIA",null,null,null,null,null,null,"SAN RAFAEL",20206]
[20302,"GRECIA","SAN ISIDRO",null,null,null,null,null,null,"SAN ISIDRO",20207]
[20303,"GRECIA","SAN JOSE",null,null,null,null,null,null,"ANGELES",20208]
[20304,"GRECIA","SAN ROQUE",null,null,null,null,null,null,"ALFARO",20209]
[20305,"GRECIA","TACARES",null,null,null,null,null,null,"VOLIO",20210]
[20306,"GRECIA","RIO CUARTO",null,null,null,null,null,null,"CANCEPCION",20211]
[20307,"GRECIA","PUENTE DE PIEDRA",null,null,null,null,null,null,"ZAPOTAL",20212]
[20308,"GRECIA","BOLIVAR",null,null,null,null,null,null,"PEЁS BLANCAS",20213]
[20401,"SAN_MATEO","SAN MATEO",null,null,null,null,null,null,"GRECIA",20301]
[20402,"SAN_MATEO","DESMONTE",null,null,null,null,null,null,"SAN ISIDRO",20302]
[20403,"SAN_MATEO","JESUS MARIA",null,null,null,null,null,null,"SAN JOSE",20303]
[20501,"ATENAS","ATENAS",null,null,null,null,null,null,"SAN ROQUE",20304]
[20502,"ATENAS","JESUS",null,null,null,null,null,null,"TACARES",20305]
[20503,"ATENAS","MERCEDES",null,null,null,null,null,null,"RIO CUARTO",20306]
[20504,"ATENAS","SAN ISIDRO",null,null,null,null,null,null,"PUENTE DE PIEDRA",20307]
[20505,"ATENAS","CONCEPCION",null,null,null,null,null,null,"BOLIVAR",20308]
[20506,"ATENAS","SAN JOSE",null,null,null,null,null,null,"SAN MATEO",20401]
[20507,"ATENAS","SANTA EULALIA",null,null,null,null,null,null,"DESMONTE",20402]
[20508,"ATENAS","ESCOBAL",null,null,null,null,null,null,"JESUS MARIA",20403]
[20601,"NARANJO","NARANJO",null,null,null,null,null,null,"ATENAS",20501]
[20602,"NARANJO","SAN MIGUEL",null,null,null,null,null,null,"JESUS",20502]
[20603,"NARANJO","SAN JOSE",null,null,null,null,null,null,"MERCEDES",20503]
[20604,"NARANJO","CIRRI SUR",null,null,null,null,null,null,"SAN ISIDRO",20504]
[20605,"NARANJO","SAN JERONIMO",null,null,null,null,null,null,"CONCEPCION",20505]
[20606,"NARANJO","SAN JUAN",null,null,null,null,null,null,"SAN JOSE",20506]
[20607,"NARANJO","ROSARIO",null,null,null,null,null,null,"SANTA EULALIA",20507]
[20701,"PALMARES","PALMARES",null,null,null,null,null,null,"ESCOBAL",20508]
[20702,"PALMARES","ZARAGOZA",null,null,null,null,null,null,"NARANJO",20601]
[20703,"PALMARES","BUENOS AIRES",null,null,null,null,null,null,"SAN MIGUEL",20602]
[20704,"PALMARES","SANTIAGO",null,null,null,null,null,null,"SAN JOSE",20603]
[20705,"PALMARES","CANDELARIA",null,null,null,null,null,null,"CIRRI SUR",20604]
[20706,"PALMARES","ESQUIPULAS",null,null,null,null,null,null,"SAN JERONIMO",20605]
[20707,"PALMARES","GRANJA",null,null,null,null,null,null,"SAN JUAN",20606]
[20801,"POAS","SAN PEDRO",null,null,null,null,null,null,"ROSARIO",20607]
[20802,"POAS","SAN JUAN",null,null,null,null,null,null,"PALMARES",20701]
[20803,"POAS","SAN RAFAEL",null,null,null,null,null,null,"ZARAGOZA",20702]
[20804,"POAS","CARRILLOS",null,null,null,null,null,null,"BUENOS AIRES",20703]
[20805,"POAS","SABANA REDONDA",null,null,null,null,null,null,"SANTIAGO",20704]
[20901,"OROTINA","OROTINA",null,null,null,null,null,null,"CANDELARIA",20705]
[20902,"OROTINA","MASTATE",null,null,null,null,null,null,"ESQUIPULAS",20706]
[20903,"OROTINA","HACIENDA VIEJA",null,null,null,null,null,null,"GRANJA",20707]
[20904,"OROTINA","COYOLAR",null,null,null,null,null,null,"SAN PEDRO",20801]
[20905,"OROTINA","CEIBA",null,null,null,null,null,null,"SAN JUAN",20802]
[21001,"SAN_CARLOS","QUESADA",null,null,null,null,null,null,"SAN RAFAEL",20803]
[21002,"SAN_CARLOS","FLORENCIA",null,null,null,null,null,null,"CARRILLOS",20804]
[21003,"SAN_CARLOS","BUENAVISTA",null,null,null,null,null,null,"SABANA REDONDA",20805]
[21004,"SAN_CARLOS","AGUAS ZARCAS",null,null,null,null,null,null,"OROTINA",20901]
[21005,"SAN_CARLOS","VENECIA",null,null,null,null,null,null,"MASTATE",20902]
[21006,"SAN_CARLOS","PITAL",null,null,null,null,null,null,"HACIENDA VIEJA",20903]
[21007,"SAN_CARLOS","FORTUNA",null,null,null,null,null,null,"COYOLAR",20904]
[21008,"SAN_CARLOS","TIGRA",null,null,null,null,null,null,"CEIBA",20905]
[21009,"SAN_CARLOS","PALMERA",null,null,null,null,null,null,"QUESADA",21001]
[21010,"SAN_CARLOS","VENADO",null,null,null,null,null,null,"FLORENCIA",21002]
[21011,"SAN_CARLOS","CUTRIS",null,null,null,null,null,null,"BUENAVISTA",21003]
[21012,"SAN_CARLOS","MONTERREY",null,null,null,null,null,null,"AGUAS ZARCAS",21004]
[21013,"SAN_CARLOS","POCOSOL",null,null,null,null,null,null,"VENECIA",21005]
[21101,"ALFARO_RUIZ","ZARCERO",null,null,null,null,null,null,"PITAL",21006]
[21102,"ALFARO_RUIZ","LAGUNA",null,null,null,null,null,null,"FORTUNA",21007]
[21103,"ALFARO_RUIZ","TAPEZCO",null,null,null,null,null,null,"TIGRA",21008]
[21104,"ALFARO_RUIZ","GUADALUPE",null,null,null,null,null,null,"PALMERA",21009]
[21105,"ALFARO_RUIZ","PALMIRA",null,null,null,null,null,null,"VENADO",21010]
[21106,"ALFARO_RUIZ","ZAPOTE",null,null,null,null,null,null,"CUTRIS",21011]
[21107,"ALFARO_RUIZ","BRISAS",null,null,null,null,null,null,"MONTERREY",21012]
[21201,"VALVERDE_VEGA","SARCHI NORTE",null,null,null,null,null,null,"POCOSOL",21013]
[21202,"VALVERDE_VEGA","SARCHI SUR",null,null,null,null,null,null,"ZARCERO",21101]
[21203,"VALVERDE_VEGA","TORO AMARILLO",null,null,null,null,null,null,"LAGUNA",21102]
[21204,"VALVERDE_VEGA","SAN PEDRO",null,null,null,null,null,null,"TAPEZCO",21103]
[21205,"VALVERDE_VEGA","RODRIGUEZ",null,null,null,null,null,null,"GUADALUPE",21104]
[21301,"UPALA","UPALA",null,null,null,null,null,null,"PALMIRA",21105]
[21302,"UPALA","AGUAS CLARAS",null,null,null,null,null,null,"ZAPOTE",21106]
[21303,"UPALA","SAN JOSE (PIZOTE)",null,null,null,null,null,null,"BRISAS",21107]
[21304,"UPALA","BIJAGUA",null,null,null,null,null,null,"SARCHI NORTE",21201]
[21305,"UPALA","DELICIAS",null,null,null,null,null,null,"SARCHI SUR",21202]
[21306,"UPALA","DOS RIOS",null,null,null,null,null,null,"TORO AMARILLO",21203]
[21307,"UPALA","YOLIYLLAL",null,null,null,null,null,null,"SAN PEDRO",21204]
[21401,"LOS_CHILES","LOS CHILES",null,null,null,null,null,null,"RODRIGUEZ",21205]
[21402,"LOS_CHILES","CAЏ NEGRO",null,null,null,null,null,null,"UPALA",21301]
[21403,"LOS_CHILES","EL AMPARO",null,null,null,null,null,null,"AGUAS CLARAS",21302]
[21404,"LOS_CHILES","SAN JORGE",null,null,null,null,null,null,"SAN JOSE (PIZOTE)",21303]
[21501,"GUATUSO","SAN RAFAEL",null,null,null,null,null,null,"BIJAGUA",21304]
[21502,"GUATUSO","BUENAVISTA",null,null,null,null,null,null,"DELICIAS",21305]
[21503,"GUATUSO","COTE",null,null,null,null,null,null,"DOS RIOS",21306]
[30101,"CARTAGO_CENTRAL","ORIENTAL",null,null,null,null,null,null,"YOLIYLLAL",21307]
[30102,"CARTAGO_CENTRAL","OCCIDENTAL",null,null,null,null,null,null,"LOS CHILES",21401]
[30103,"CARTAGO_CENTRAL","CARMEN",null,null,null,null,null,null,"CAЏ NEGRO",21402]
[30104,"CARTAGO_CENTRAL","SAN NICOLAS",null,null,null,null,null,null,"EL AMPARO",21403]
[30105,"CARTAGO_CENTRAL","AGUACALIENTE (SAN FRANCISCO)",null,null,null,null,null,null,"SAN JORGE",21404]
[30106,"CARTAGO_CENTRAL","GUADALUPE (ARENILLA)",null,null,null,null,null,null,"SAN RAFAEL",21501]
[30107,"CARTAGO_CENTRAL","CORRALILLO",null,null,null,null,null,null,"BUENAVISTA",21502]
[30108,"CARTAGO_CENTRAL","TIERRA BLANCA",null,null,null,null,null,null,"COTE",21503]
[30109,"CARTAGO_CENTRAL","DULCE NOMBRE",null,null,null,null,null,null,"ORIENTAL",30101]
[30110,"CARTAGO_CENTRAL","LLANO GRANDE",null,null,null,null,null,null,"OCCIDENTAL",30102]
[30111,"CARTAGO_CENTRAL","QUEBRADILLA",null,null,null,null,null,null,"CARMEN",30103]
[30201,"CARTAGO_CENTRAL","PARAISO",null,null,null,null,null,null,"SAN NICOLAS",30104]
[30202,"CARTAGO_CENTRAL","SANTIAGO",null,null,null,null,null,null,"AGUACALIENTE (SAN FRANCISCO)",30105]
[30203,"CARTAGO_CENTRAL","OROSI",null,null,null,null,null,null,"GUADALUPE (ARENILLA)",30106]
[30204,"PARAISO","CACHI",null,null,null,null,null,null,"CORRALILLO",30107]
[30205,"PARAISO","LLANOS DE SANTA LUCIA",null,null,null,null,null,null,"TIERRA BLANCA",30108]
[30301,"LA_UNION","TRES RIOS",null,null,null,null,null,null,"DULCE NOMBRE",30109]
[30302,"LA_UNION","SAN DIEGO",null,null,null,null,null,null,"LLANO GRANDE",30110]
[30303,"LA_UNION","SAN JUAN",null,null,null,null,null,null,"QUEBRADILLA",30111]
[30304,"LA_UNION","SAN RAFAEL",null,null,null,null,null,null,"PARAISO",30201]
[30305,"LA_UNION","CONCEPCION",null,null,null,null,null,null,"SANTIAGO",30202]
[30306,"LA_UNION","DULCE NOMBRE",null,null,null,null,null,null,"OROSI",30203]
[30307,"LA_UNION","SAN RAMON",null,null,null,null,null,null,"CACHI",30204]
[30308,"LA_UNION","RIO AZUL",null,null,null,null,null,null,"LLANOS DE SANTA LUCIA",30205]
[30401,"JIMENEZ","JUAN VIЁS",null,null,null,null,null,null,"TRES RIOS",30301]
[30402,"JIMENEZ","TUCURRIQUE",null,null,null,null,null,null,"SAN DIEGO",30302]
[30403,"JIMENEZ","PEJIBAYE",null,null,null,null,null,null,"SAN JUAN",30303]
[30501,"TURRIALBA","TURRIALBA",null,null,null,null,null,null,"SAN RAFAEL",30304]
[30502,"TURRIALBA","LA SUIZA",null,null,null,null,null,null,"CONCEPCION",30305]
[30503,"TURRIALBA","PERALTA",null,null,null,null,null,null,"DULCE NOMBRE",30306]
[30504,"TURRIALBA","SANTA CRUZ",null,null,null,null,null,null,"SAN RAMON",30307]
[30505,"TURRIALBA","SANTA TERESITA",null,null,null,null,null,null,"RIO AZUL",30308]
[30506,"TURRIALBA","PAVONES",null,null,null,null,null,null,"JUAN VIЁS",30401]
[30507,"TURRIALBA","TUIS",null,null,null,null,null,null,"TUCURRIQUE",30402]
[30508,"TURRIALBA","TAYUTIC",null,null,null,null,null,null,"PEJIBAYE",30403]
[30509,"TURRIALBA","SANTA ROSA",null,null,null,null,null,null,"TURRIALBA",30501]
[30510,"TURRIALBA","TRES EQUIS",null,null,null,null,null,null,"LA SUIZA",30502]
[30511,"TURRIALBA","LA ISABEL",null,null,null,null,null,null,"PERALTA",30503]
[30512,"TURRIALBA","CHIRRIPO",null,null,null,null,null,null,"SANTA CRUZ",30504]
[30601,"ALVARADO","PACAYAS",null,null,null,null,null,null,"SANTA TERESITA",30505]
[30602,"ALVARADO","CERVANTES",null,null,null,null,null,null,"PAVONES",30506]
[30603,"ALVARADO","CAPELLADES",null,null,null,null,null,null,"TUIS",30507]
[30701,"OREAMUNO","SAN RAFAEL",null,null,null,null,null,null,"TAYUTIC",30508]
[30702,"OREAMUNO","COT",null,null,null,null,null,null,"SANTA ROSA",30509]
[30703,"OREAMUNO","POTRERO CERRADO",null,null,null,null,null,null,"TRES EQUIS",30510]
[30704,"OREAMUNO","CIPRESES",null,null,null,null,null,null,"LA ISABEL",30511]
[30705,"OREAMUNO","SANTA ROSA",null,null,null,null,null,null,"CHIRRIPO",30512]
[30801,"EL_GUARCO","TEJAR",null,null,null,null,null,null,"PACAYAS",30601]
[30802,"EL_GUARCO","SAN ISIDRO",null,null,null,null,null,null,"CERVANTES",30602]
[30803,"EL_GUARCO","TOBOSI",null,null,null,null,null,null,"CAPELLADES",30603]
[30804,"EL_GUARCO","PATIO DE AGUA",null,null,null,null,null,null,"SAN RAFAEL",30701]
[40101,"HEREDIA_CENTRAL","HEREDIA",null,null,null,null,null,null,"COT",30702]
[40102,"HEREDIA_CENTRAL","MERCEDES",null,null,null,null,null,null,"POTRERO CERRADO",30703]
[40103,"HEREDIA_CENTRAL","SAN FRANCISCO",null,null,null,null,null,null,"CIPRESES",30704]
[40104,"HEREDIA_CENTRAL","ULLOA",null,null,null,null,null,null,"SANTA ROSA",30705]
[40105,"HEREDIA_CENTRAL","VARABLANCA",null,null,null,null,null,null,"TEJAR",30801]
[40201,"BARVA","BARVA",null,null,null,null,null,null,"SAN ISIDRO",30802]
[40202,"BARVA","SAN PEDRO",null,null,null,null,null,null,"TOBOSI",30803]
[40203,"BARVA","SAN PABLO",null,null,null,null,null,null,"PATIO DE AGUA",30804]
[40204,"BARVA","SAN ROQUE",null,null,null,null,null,null,"HEREDIA",40101]
[40205,"BARVA","SANTA LUCIA",null,null,null,null,null,null,"MERCEDES",40102]
[40206,"BARVA","SAN JOSE DE LA MONTAЁ",null,null,null,null,null,null,"SAN FRANCISCO",40103]
[40301,"SANTO_DOMINGO","SANTO DOMINGO",null,null,null,null,null,null,"ULLOA",40104]
[40302,"SANTO_DOMINGO","SAN VICENTE",null,null,null,null,null,null,"VARABLANCA",40105]
[40303,"SANTO_DOMINGO","SAN MIGUEL",null,null,null,null,null,null,"BARVA",40201]
[40304,"SANTO_DOMINGO","PARACITO",null,null,null,null,null,null,"SAN PEDRO",40202]
[40305,"SANTO_DOMINGO","SANTO TOMAS",null,null,null,null,null,null,"SAN PABLO",40203]
[40306,"SANTO_DOMINGO","SANTA ROSA",null,null,null,null,null,null,"SAN ROQUE",40204]
[40307,"SANTO_DOMINGO","TURES",null,null,null,null,null,null,"SANTA LUCIA",40205]
[40308,"SANTO_DOMINGO","PARA",null,null,null,null,null,null,"SAN JOSE DE LA MONTAЁ",40206]
[40401,"SANTA_BARBARA","SANTA BARBARA",null,null,null,null,null,null,"SANTO DOMINGO",40301]
[40402,"SANTA_BARBARA","SAN PEDRO",null,null,null,null,null,null,"SAN VICENTE",40302]
[40403,"SANTA_BARBARA","SAN JUAN",null,null,null,null,null,null,"SAN MIGUEL",40303]
[40404,"SANTA_BARBARA","JESUS",null,null,null,null,null,null,"PARACITO",40304]
[40405,"SANTA_BARBARA","SANTO DOMINGO",null,null,null,null,null,null,"SANTO TOMAS",40305]
[40406,"SANTA_BARBARA","PURABA",null,null,null,null,null,null,"SANTA ROSA",40306]
[40501,"SAN_RAFAEL","SAN RAFAEL",null,null,null,null,null,null,"TURES",40307]
[40502,"SAN_RAFAEL","SAN JOSECITO",null,null,null,null,null,null,"PARA",40308]
[40503,"SAN_RAFAEL","SANTIAGO",null,null,null,null,null,null,"SANTA BARBARA",40401]
[40504,"SAN_RAFAEL","ANGELES",null,null,null,null,null,null,"SAN PEDRO",40402]
[40505,"SAN_RAFAEL","CONCEPCION",null,null,null,null,null,null,"SAN JUAN",40403]
[40601,"SAN_ISIDRO","SAN ISIDRO",null,null,null,null,null,null,"JESUS",40404]
[40602,"SAN_ISIDRO","SAN JOSE",null,null,null,null,null,null,"SANTO DOMINGO",40405]
[40603,"SAN_ISIDRO","CONCEPCION",null,null,null,null,null,null,"PURABA",40406]
[40604,"SAN_ISIDRO","SAN FRANCISCO",null,null,null,null,null,null,"SAN RAFAEL",40501]
[40701,"BELEN","SAN ANTONIO",null,null,null,null,null,null,"SAN JOSECITO",40502]
[40702,"BELEN","RIBERA",null,null,null,null,null,null,"SANTIAGO",40503]
[40703,"BELEN","ASUNCION",null,null,null,null,null,null,"ANGELES",40504]
[40801,"SAN_JOAQUIN_DE_FLORES","SAN JOAQUIN DE FLORES",null,null,null,null,null,null,"CONCEPCION",40505]
[40802,"SAN_JOAQUIN_DE_FLORES","BARRANTES",null,null,null,null,null,null,"SAN ISIDRO",40601]
[40803,"SAN_JOAQUIN_DE_FLORES","LLORENTE",null,null,null,null,null,null,"SAN JOSE",40602]
[40901,"SAN_PABLO","SAN PABLO",null,null,null,null,null,null,"CONCEPCION",40603]
[41001,"SARAPIQUI","PUERTO VIEJO",null,null,null,null,null,null,"SAN FRANCISCO",40604]
[41002,"SARAPIQUI","LA VIRGEN",null,null,null,null,null,null,"SAN ANTONIO",40701]
[41003,"SARAPIQUI","HORQUETAS",null,null,null,null,null,null,"RIBERA",40702]
[41004,"SARAPIQUI","LLANURAS DEL GASPAR",null,null,null,null,null,null,"ASUNCION",40703]
[41005,"SARAPIQUI","CUREЁ",null,null,null,null,null,null,"SAN JOAQUIN DE FLORES",40801]
[50101,"LIBERIA","LIBERIA",null,null,null,null,null,null,"BARRANTES",40802]
[50102,"LIBERIA","CAЁS DULCES",null,null,null,null,null,null,"LLORENTE",40803]
[50103,"LIBERIA","MAYORGA",null,null,null,null,null,null,"SAN PABLO",40901]
[50104,"LIBERIA","NACASCOLO",null,null,null,null,null,null,"PUERTO VIEJO",41001]
[50105,"LIBERIA","CURUBANDE",null,null,null,null,null,null,"LA VIRGEN",41002]
[50201,"NICOYA","NICOYA",null,null,null,null,null,null,"HORQUETAS",41003]
[50202,"NICOYA","MANSION",null,null,null,null,null,null,"LLANURAS DEL GASPAR",41004]
[50203,"NICOYA","SAN ANTONIO",null,null,null,null,null,null,"CUREЁ",41005]
[50204,"NICOYA","QUEBRADA HONDA",null,null,null,null,null,null,"LIBERIA",50101]
[50205,"NICOYA","SAMARA",null,null,null,null,null,null,"CAЁS DULCES",50102]
[50206,"NICOYA","NOSARA",null,null,null,null,null,null,"MAYORGA",50103]
[50207,"NICOYA","BELEN DE NOSARITA",null,null,null,null,null,null,"NACASCOLO",50104]
[50301,"SANTA_CRUZ","SANTA CRUZ",null,null,null,null,null,null,"CURUBANDE",50105]
[50302,"SANTA_CRUZ","BOLSON",null,null,null,null,null,null,"NICOYA",50201]
[50303,"SANTA_CRUZ","VEINTISIETE DE ABRIL",null,null,null,null,null,null,"MANSION",50202]
[50304,"SANTA_CRUZ","TEMPATE",null,null,null,null,null,null,"SAN ANTONIO",50203]
[50305,"SANTA_CRUZ","CARTAGENA",null,null,null,null,null,null,"QUEBRADA HONDA",50204]
[50306,"SANTA_CRUZ","CUAJINIQUIL",null,null,null,null,null,null,"SAMARA",50205]
[50307,"SANTA_CRUZ","DIRIA",null,null,null,null,null,null,"NOSARA",50206]
[50308,"SANTA_CRUZ","CABO VELAS",null,null,null,null,null,null,"BELEN DE NOSARITA",50207]
[50309,"SANTA_CRUZ","TAMARINDO",null,null,null,null,null,null,"SANTA CRUZ",50301]
[50401,"BAGACES","BAGACES",null,null,null,null,null,null,"BOLSON",50302]
[50402,"BAGACES","FORTUNA",null,null,null,null,null,null,"VEINTISIETE DE ABRIL",50303]
[50403,"BAGACES","MOGOTE",null,null,null,null,null,null,"TEMPATE",50304]
[50404,"BAGACES","RIO NARANJO",null,null,null,null,null,null,"CARTAGENA",50305]
[50501,"CARRILLO","FILADELFIA",null,null,null,null,null,null,"CUAJINIQUIL",50306]
[50502,"CARRILLO","PALMIRA",null,null,null,null,null,null,"DIRIA",50307]
[50503,"CARRILLO","SARDINAL",null,null,null,null,null,null,"CABO VELAS",50308]
[50504,"CARRILLO","BELEN",null,null,null,null,null,null,"TAMARINDO",50309]
[50601,"CAЁS","CAЁS",null,null,null,null,null,null,"BAGACES",50401]
[50602,"CAЁS","PALMIRA",null,null,null,null,null,null,"FORTUNA",50402]
[50603,"CAЁS","SAN MIGUEL",null,null,null,null,null,null,"MOGOTE",50403]
[50604,"CAЁS","BEBEDERO",null,null,null,null,null,null,"RIO NARANJO",50404]
[50605,"CAЁS","POROZAL",null,null,null,null,null,null,"FILADELFIA",50501]
[50701,"ABANGARES","JUNTAS",null,null,null,null,null,null,"PALMIRA",50502]
[50702,"ABANGARES","SIERRA",null,null,null,null,null,null,"SARDINAL",50503]
[50703,"ABANGARES","SAN JUAN",null,null,null,null,null,null,"BELEN",50504]
[50704,"ABANGARES","COLORADO",null,null,null,null,null,null,"CAЁS",50601]
[50801,"TILARAN","TILARAN",null,null,null,null,null,null,"PALMIRA",50602]
[50802,"TILARAN","QUEBRADA GRANDE",null,null,null,null,null,null,"SAN MIGUEL",50603]
[50803,"TILARAN","TRONADORA",null,null,null,null,null,null,"BEBEDERO",50604]
[50804,"TILARAN","SANTA ROSA",null,null,null,null,null,null,"POROZAL",50605]
[50805,"TILARAN","LIBANO",null,null,null,null,null,null,"JUNTAS",50701]
[50806,"TILARAN","TIERRAS MORENAS",null,null,null,null,null,null,"SIERRA",50702]
[50807,"TILARAN","ARENAL",null,null,null,null,null,null,"SAN JUAN",50703]
[50901,"NANDAYURE","CARMONA",null,null,null,null,null,null,"COLORADO",50704]
[50902,"NANDAYURE","SANTA RITA",null,null,null,null,null,null,"TILARAN",50801]
[50903,"NANDAYURE","ZAPOTAL",null,null,null,null,null,null,"QUEBRADA GRANDE",50802]
[50904,"NANDAYURE","SAN PABLO",null,null,null,null,null,null,"TRONADORA",50803]
[50905,"NANDAYURE","PORVENIR",null,null,null,null,null,null,"SANTA ROSA",50804]
[50906,"NANDAYURE","BEJUCO",null,null,null,null,null,null,"LIBANO",50805]
[51001,"LA_CRUZ","LA CRUZ",null,null,null,null,null,null,"TIERRAS MORENAS",50806]
[51002,"LA_CRUZ","SANTA CECILIA",null,null,null,null,null,null,"ARENAL",50807]
[51003,"LA_CRUZ","GARITA",null,null,null,null,null,null,"CARMONA",50901]
[51004,"LA_CRUZ","SANTA ELENA",null,null,null,null,null,null,"SANTA RITA",50902]
[51101,"HOJANCHA","HOJANCHA",null,null,null,null,null,null,"ZAPOTAL",50903]
[51102,"HOJANCHA","MONTE ROMO",null,null,null,null,null,null,"SAN PABLO",50904]
[51103,"HOJANCHA","PUERTO CARRILLO",null,null,null,null,null,null,"PORVENIR",50905]
[51104,"HOJANCHA","HUACAS",null,null,null,null,null,null,"BEJUCO",50906]
[60101,"PUNTARENAS_CENTRAL","PUNTARENAS",null,null,null,null,null,null,"LA CRUZ",51001]
[60102,"PUNTARENAS_CENTRAL","PITAHAYA",null,null,null,null,null,null,"SANTA CECILIA",51002]
[60103,"PUNTARENAS_CENTRAL","CHOMES",null,null,null,null,null,null,"GARITA",51003]
[60104,"PUNTARENAS_CENTRAL","LEPANTO",null,null,null,null,null,null,"SANTA ELENA",51004]
[60105,"PUNTARENAS_CENTRAL","PAQUERA",null,null,null,null,null,null,"HOJANCHA",51101]
[60106,"PUNTARENAS_CENTRAL","MANZANILLO",null,null,null,null,null,null,"MONTE ROMO",51102]
[60107,"PUNTARENAS_CENTRAL","GUACIMAL",null,null,null,null,null,null,"PUERTO CARRILLO",51103]
[60108,"PUNTARENAS_CENTRAL","BARRANCA",null,null,null,null,null,null,"HUACAS",51104]
[60109,"PUNTARENAS_CENTRAL","MONTE VERDE",null,null,null,null,null,null,"PUNTARENAS",60101]
[60110,"PUNTARENAS_CENTRAL","ISLA DEL COCO",null,null,null,null,null,null,"PITAHAYA",60102]
[60111,"PUNTARENAS_CENTRAL","COBANO",null,null,null,null,null,null,"CHOMES",60103]
[60112,"PUNTARENAS_CENTRAL","CHACARITA",null,null,null,null,null,null,"LEPANTO",60104]
[60113,"PUNTARENAS_CENTRAL","CHIRA",null,null,null,null,null,null,"PAQUERA",60105]
[60114,"PUNTARENAS_CENTRAL","ACAPULCO",null,null,null,null,null,null,"MANZANILLO",60106]
[60115,"PUNTARENAS_CENTRAL","EL ROBLE",null,null,null,null,null,null,"GUACIMAL",60107]
[60116,"PUNTARENAS_CENTRAL","ARANCIBIA",null,null,null,null,null,null,"BARRANCA",60108]
[60201,"ESPARZA","ESPIRITU SANTO",null,null,null,null,null,null,"MONTE VERDE",60109]
[60202,"ESPARZA","SAN JUAN GRANDE",null,null,null,null,null,null,"ISLA DEL COCO",60110]
[60203,"ESPARZA","MACACONA",null,null,null,null,null,null,"COBANO",60111]
[60204,"ESPARZA","SAN RAFAEL",null,null,null,null,null,null,"CHACARITA",60112]
[60205,"ESPARZA","SAN JERONIMO",null,null,null,null,null,null,"CHIRA",60113]
[60301,"BUENOS_AIRES","BUENOS AIRES",null,null,null,null,null,null,"ACAPULCO",60114]
[60302,"BUENOS_AIRES","VOLCAN",null,null,null,null,null,null,"EL ROBLE",60115]
[60303,"BUENOS_AIRES","POTRERO GRANDE",null,null,null,null,null,null,"ARANCIBIA",60116]
[60304,"BUENOS_AIRES","BORUCA",null,null,null,null,null,null,"ESPIRITU SANTO",60201]
[60305,"BUENOS_AIRES","PILAS",null,null,null,null,null,null,"SAN JUAN GRANDE",60202]
[60306,"BUENOS_AIRES","COLINAS",null,null,null,null,null,null,"MACACONA",60203]
[60307,"BUENOS_AIRES","CHANGENA",null,null,null,null,null,null,"SAN RAFAEL",60204]
[60308,"BUENOS_AIRES","BRIOLLEY",null,null,null,null,null,null,"SAN JERONIMO",60205]
[60309,"BUENOS_AIRES","BRUNKA",null,null,null,null,null,null,"BUENOS AIRES",60301]
[60401,"MONTES_DE_ORO","MIRAMAR",null,null,null,null,null,null,"VOLCAN",60302]
[60402,"MONTES_DE_ORO","UNION",null,null,null,null,null,null,"POTRERO GRANDE",60303]
[60403,"MONTES_DE_ORO","SAN ISIDRO",null,null,null,null,null,null,"BORUCA",60304]
[60501,"OSA","PUERTO CORTES",null,null,null,null,null,null,"PILAS",60305]
[60502,"OSA","PALMAR",null,null,null,null,null,null,"COLINAS",60306]
[60503,"OSA","SIERPE",null,null,null,null,null,null,"CHANGENA",60307]
[60504,"OSA","BAHIA BALLENA",null,null,null,null,null,null,"BRIOLLEY",60308]
[60505,"OSA","PIEDRAS BLANCAS",null,null,null,null,null,null,"BRUNKA",60309]
[60601,"AGUIRRE","QUEPOS",null,null,null,null,null,null,"MIRAMAR",60401]
[60602,"AGUIRRE","SAVEGRE",null,null,null,null,null,null,"UNION",60402]
[60603,"AGUIRRE","NARANJITO",null,null,null,null,null,null,"SAN ISIDRO",60403]
[60701,"GOLFITO","GOLFITO",null,null,null,null,null,null,"PUERTO CORTES",60501]
[60702,"GOLFITO","PUERTO JIMENEZ",null,null,null,null,null,null,"PALMAR",60502]
[60703,"GOLFITO","GUAYCARA",null,null,null,null,null,null,"SIERPE",60503]
[60704,"GOLFITO","PAVON",null,null,null,null,null,null,"BAHIA BALLENA",60504]
[60801,"COTO_BRUS","SAN VITO",null,null,null,null,null,null,"PIEDRAS BLANCAS",60505]
[60802,"COTO_BRUS","SABALITO",null,null,null,null,null,null,"QUEPOS",60601]
[60803,"COTO_BRUS","AGUABUENA",null,null,null,null,null,null,"SAVEGRE",60602]
[60804,"COTO_BRUS","LIMONCITO",null,null,null,null,null,null,"NARANJITO",60603]
[60805,"COTO_BRUS","PITTIER",null,null,null,null,null,null,"GOLFITO",60701]
[60901,"PARRITA","PARRITA",null,null,null,null,null,null,"PUERTO JIMENEZ",60702]
[61001,"CORREDORES","CORREDOR",null,null,null,null,null,null,"GUAYCARA",60703]
[61002,"CORREDORES","LA CUESTA",null,null,null,null,null,null,"PAVON",60704]
[61003,"CORREDORES","CANOAS",null,null,null,null,null,null,"SAN VITO",60801]
[61004,"CORREDORES","LAUREL",null,null,null,null,null,null,"SABALITO",60802]
[61101,"GARABITO","JACO",null,null,null,null,null,null,"AGUABUENA",60803]
[61102,"GARABITO","TARCOLES",null,null,null,null,null,null,"LIMONCITO",60804]
[70101,"LIMON_CENTRAL","LIMON",null,null,null,null,null,null,"PITTIER",60805]
[70102,"LIMON_CENTRAL","VALLE LA ESTRELLA",null,null,null,null,null,null,"PARRITA",60901]
[70103,"LIMON_CENTRAL","RIO BLANCO",null,null,null,null,null,null,"CORREDOR",61001]
[70104,"LIMON_CENTRAL","MATAMA",null,null,null,null,null,null,"LA CUESTA",61002]
[70201,"POCOSI","GUAPILES",null,null,null,null,null,null,"CANOAS",61003]
[70202,"POCOSI","JIMENEZ",null,null,null,null,null,null,"LAUREL",61004]
[70203,"POCOSI","RITA",null,null,null,null,null,null,"JACO",61101]
[70204,"POCOSI","ROXANA",null,null,null,null,null,null,"TARCOLES",61102]
[70205,"POCOSI","CARIARI",null,null,null,null,null,null,"LIMON",70101]
[70206,"POCOSI","COLORADO",null,null,null,null,null,null,"VALLE LA ESTRELLA",70102]
[70301,"SIQUIRRES","SIQUIRRES",null,null,null,null,null,null,"RIO BLANCO",70103]
[70302,"SIQUIRRES","PACUARITO",null,null,null,null,null,null,"MATAMA",70104]
[70303,"SIQUIRRES","FLORIDA",null,null,null,null,null,null,"GUAPILES",70201]
[70304,"SIQUIRRES","GERMANIA",null,null,null,null,null,null,"JIMENEZ",70202]
[70305,"SIQUIRRES","CAIRO",null,null,null,null,null,null,"RITA",70203]
[70306,"SIQUIRRES","ALEGRIA",null,null,null,null,null,null,"ROXANA",70204]
[70401,"TALAMANCA","BRATSI",null,null,null,null,null,null,"CARIARI",70205]
[70402,"TALAMANCA","SIXAOLA",null,null,null,null,null,null,"COLORADO",70206]
[70403,"TALAMANCA","CAHUITA",null,null,null,null,null,null,"SIQUIRRES",70301]
[70404,"TALAMANCA","TELIRE",null,null,null,null,null,null,"PACUARITO",70302]
[70501,"MATINA","MATINA",null,null,null,null,null,null,"FLORIDA",70303]
[70502,"MATINA","BATTAN",null,null,null,null,null,null,"GERMANIA",70304]
[70503,"MATINA","CARRANDI",null,null,null,null,null,null,"CAIRO",70305]
[70601,"GUACIMO","GUACIMO",null,null,null,null,null,null,"ALEGRIA",70306]
[70602,"GUACIMO","MERCEDES",null,null,null,null,null,null,"BRATSI",70401]
[70603,"GUACIMO","POCORA",null,null,null,null,null,null,"SIXAOLA",70402]
[70604,"GUACIMO","RIO JIMENEZ",null,null,null,null,null,null,"CAHUITA",70403]
[70605,"GUACIMO","DUACARI",null,null,null,null,null,null,"TELIRE",70404]
[null,null,null,null,null,null,null,null,null,"MATINA",70501]
[null,null,null,null,null,null,null,null,null,"BATTAN",70502]
[null,null,null,null,null,null,null,null,null,"CARRANDI",70503]
[null,null,null,null,null,null,null,null,null,"GUACIMO",70601]
[null,null,null,null,null,null,null,null,null,"MERCEDES",70602]
[null,null,null,null,null,null,null,null,null,"POCORA",70603]
[null,null,null,null,null,null,null,null,null,"RIO JIMENEZ",70604]
[null,null,null,null,null,null,null,null,null,"DUACARI",70605]

{"sheet":"Paso 1 (2)","index":9,"n_rows":580,"n_cols":11,"rows_kept":580,"cut":false,"hidden":false,"merged":[[26,5,26,9],[27,5,27,8],[5,1,5,7],[6,5,9,5],[0,0,4,3]]}
["Manual Instructivo de Ingreso al Programa de Abastecimiento Institucional (PAI)"]
[null,null,null,null,null,"Provincia","Cantón","Distrito","Región"]
[null,null,null,null,"Seleccione "]
[]
[]
["PASO 1.","Dirigir una carta a Dirección Regional del Consejo Nacional de Producción (CNP), en la cual diga los siguientes puntos. Por favor completelos aquí y selecciona la opción de generar carta."]
[null,"1.      Nombre ",null,null,null,"8.      Describir actividad a la que se dedica "]
[]
[null,"     Cédula"]
[]
[null,"4.   Dirección postal ",{"$f":"+VLOOKUP(H3,J110:K580,2,0)","v":{"$error":"#N/A"}}]
[]
[]
[null,"5.      Dirección geográfica exacta"]
[]
[]
[]
[null,"7.      Teléfono"]
[]
[null,"      Fax "]
[null,null,null,null,null,"9.      Bienes o servicios que se ofrezcan"]
[null,"      Correo"]
[]
[]
[]
[]
[]
[null,null,null,null,null,"Para generar la carta tiene que estar la anterior información completa"]
[]
[]
[]
[]
[]
[]
[]
[]
[]
[]
[]
[]
[]
[]
[]
[]
[]
[]
[]
[]
[]
[]
[]
[]
[]
[]
[]
[]
[]
[]
[]
[]
[]
[]
[]
[]
[]
[]
[]
[]
[]
[]
[]
[]
[]
[]
[]
[]
[]
[]
[]
[]
[]
[]
[]
[]
[]
[]
[]
[]
[null,"SANJOSE","Central","Licda. Gabriela Ureña Fonseca"]
[null,"GUANACASTE","Chorotega","Ing. José A. Angulo Alguera"]
[null,null,"Brunca","Ing. Gerardina Campos Jiménez"]
[null,"LIMON","Huetar Caribe","Ing. Mauricio Barrientos Chacón"]
[null,"HEREDIA","Huetar Norte","Ing. Agr. William I. Lara López"]
[null,"PUNTARENAS","Pacífico Central","Ing. David Araya Amador"]
[null,"CARTAGO","Central Oriental","Licda. Gabriela Ureña Fonseca"]
[null,"ALAJUELA","Central Occidental","Licda. Gabriela Ureña Fonseca"]
[]
[]
[]
[]
[]
["Codigo Postal","Cantón","Distrito"]
[10101,"SAN_JOSE","CARMEN"]
[10102,"SAN_JOSE","MERCED"]
[10103,"SAN_JOSE","HOSPITAL",null,"SANJOSE",null,"SAN_JOSE","SAN JOSE"]
[10104,"SAN_JOSE","CATEDRAL",null,"ALAJUELA",null,"ESCAZU"]
[10105,"SAN_JOSE","ZAPOTE",null,"CARTAGO",null,"DESAMPARADOS"]
[10106,"SAN_JOSE","SAN FRANCISCO DE DOS RIOS",null,"PUNTARENAS",null,"PURISCAL"]
[10107,"SAN_JOSE","URUCA",null,"HEREDIA",null,"TARRAZU"]
[10108,"SAN_JOSE","MATA REDONDA",null,"GUANACASTE",null,"ASERRI",null,null,"Distrito","Codigo Postal"]
[10109,"SAN_JOSE","PAVAS",null,"LIMON",null,"MORA",null,null,"CARMEN",10101]
[10110,"SAN_JOSE","HATILLO",null,null,null,"GOICOECHEA",null,null,"MERCED",10102]
[10111,"SAN_JOSE","SAN SEBASTIAN",null,null,null,"SANTAANA",null,null,"HOSPITAL",10103]
[10201,"ESCAZU","ESCAZU",null,null,null,"ALAJUELITA",null,null,"CATEDRAL",10104]
[10202,"ESCAZU","SAN ANTONIO",null,null,null,"CORONADO",null,null,"ZAPOTE",10105]
[10203,"ESCAZU","SAN RAFAEL",null,null,null,"ACOSTA",null,null,"SAN FRANCISCO DE DOS RIOS",10106]
[10301,"DESAMPARADOS","DESAMPARADOS",null,null,null,"TIBAS",null,null,"URUCA",10107]
[10302,"DESAMPARADOS","SAN MIGUEL",null,null,null,"MORAVIA",null,null,"MATA REDONDA",10108]
[10303,"DESAMPARADOS","SAN JUAN DE DIOS",null,null,null,"SAN_PEDRO",null,null,"PAVAS",10109]
[10304,"DESAMPARADOS","SAN RAFAEL ARRIBA",null,null,null,"TURRUBARES",null,null,"HATILLO",10110]
[10305,"DESAMPARADOS","SAN ANTONIO",null,null,null,"DOTA",null,null,"SAN SEBASTIAN",10111]
[10306,"DESAMPARADOS","FRAILES",null,null,null,"CURRIDABAT",null,null,"ESCAZU",10201]
[10307,"DESAMPARADOS","PATARRA",null,null,null,"PEREZ_ZELEDON",null,null,"SAN ANTONIO",10202]
[10308,"DESAMPARADOS","SAN CRISTOBAL",null,null,null,"LEON_CORTES",null,null,"SAN RAFAEL",10203]
[10309,"DESAMPARADOS","ROSARIO",null,null,null,"ALAJUELA_CENTRAL",null,null,"DESAMPARADOS",10301]
[10310,"DESAMPARADOS","DAMAS",null,null,null,"SAN_RAMON",null,null,"SAN MIGUEL",10302]
[10311,"DESAMPARADOS","SAN RAFAEL ABAJO",null,null,null,"GRECIA",null,null,"SAN JUAN DE DIOS",10303]
[10312,"DESAMPARADOS","GRAVILLAS",null,null,null,"SAN_MATEO",null,null,"SAN RAFAEL ARRIBA",10304]
[10313,"DESAMPARADOS","LOS GUIDO",null,null,null,"ATENAS",null,null,"SAN ANTONIO",10305]
[10401,"PURISCAL","SANTIAGO",null,null,null,"NARANJO",null,null,"FRAILES",10306]
[10402,"PURISCAL","MERCEDES SUR",null,null,null,"PALMARES",null,null,"PATARRA",10307]
[10403,"PURISCAL","BARBACOAS",null,null,null,"POAS",null,null,"SAN CRISTOBAL",10308]
[10404,"PURISCAL","GRIFO ALTO",null,null,null,"OROTINA",null,null,"ROSARIO",10309]
[10405,"PURISCAL","SAN RAFAEL",null,null,null,"SAN_CARLOS",null,null,"DAMAS",10310]
[10406,"PURISCAL","CANDELARIA",null,null,null,"ALFARO_RUIZ",null,null,"SAN RAFAEL ABAJO",10311]
[10407,"PURISCAL","DESAMPARADITOS",null,null,null,"VALVERDE_VEGA",null,null,"GRAVILLAS",10312]
[10408,"PURISCAL","SAN ANTONIO",null,null,null,"UPALA",null,null,"LOS GUIDO",10313]
[10409,"PURISCAL","CHIRES",null,null,null,"LOS_CHILES",null,null,"SANTIAGO",10401]
[10501,"TARRAZU","SAN MARCOS",null,null,null,"GUATUSO",null,null,"MERCEDES SUR",10402]
[10502,"TARRAZU","SAN LORENZO",null,null,null,"CARTAGO_CENTRAL",null,null,"BARBACOAS",10403]
[10503,"TARRAZU","SAN CARLOS",null,null,null,"PARAISO",null,null,"GRIFO ALTO",10404]
[10601,"ASERRI","ASERRI",null,null,null,"LA_UNION",null,null,"SAN RAFAEL",10405]
[10602,"ASERRI","TARBACA",null,null,null,"JIMENEZ",null,null,"CANDELARIA",10406]
[10603,"ASERRI","VUELTA DE JORCO",null,null,null,"TURRIALBA",null,null,"DESAMPARADITOS",10407]
[10604,"ASERRI","SAN GABRIEL",null,null,null,"ALVARADO",null,null,"SAN ANTONIO",10408]
[10605,"ASERRI","LEGUA",null,null,null,"OREAMUNO",null,null,"CHIRES",10409]
[10606,"ASERRI","MONTERREY",null,null,null,"EL_GUARCO",null,null,"SAN MARCOS",10501]
[10607,"ASERRI","SALITRILLOS",null,null,null,"HEREDIA_CENTRAL",null,null,"SAN LORENZO",10502]
[10701,"MORA","COLON",null,null,null,"BARVA",null,null,"SAN CARLOS",10503]
[10702,"MORA","GUAYAVO",null,null,null,"SANTO_DOMINGO",null,null,"ASERRI",10601]
[10703,"MORA","TABARCIA",null,null,null,"SANTA_BARBARA",null,null,"TARBACA",10602]
[10704,"MORA","PIEDRAS NEGRAS",null,null,null,"SAN_RAFAEL",null,null,"VUELTA DE JORCO",10603]
[10705,"MORA","PICAGRES",null,null,null,"SAN_ISIDRO",null,null,"SAN GABRIEL",10604]
[10801,"GOICOECHEA","GUADALUPE",null,null,null,"BELEN",null,null,"LEGUA",10605]
[10802,"GOICOECHEA","SAN FRANCISCO",null,null,null,"SAN_JOAQUIN_DE_FLORES",null,null,"MONTERREY",10606]
[10803,"GOICOECHEA","CALLE BLANCOS",null,null,null,"SAN_PABLO",null,null,"SALITRILLOS",10607]
[10804,"GOICOECHEA","MATA DE PLATANO",null,null,null,"SARAPIQUI",null,null,"COLON",10701]
[10805,"GOICOECHEA","IPIS",null,null,null,"LIBERIA",null,null,"GUAYAVO",10702]
[10806,"GOICOECHEA","RANCHO REDONDO",null,null,null,"NICOYA",null,null,"TABARCIA",10703]
[10807,"GOICOECHEA","PURRAL",null,null,null,"SANTA_CRUZ",null,null,"PIEDRAS NEGRAS",10704]
[10901,"SANTA ANA","SANTA ANA",null,null,null,"BAGACES",null,null,"PICAGRES",10705]
[10902,"SANTA ANA","SALITRAL",null,null,null,"CARRILLO",null,null,"GUADALUPE",10801]
[10903,"SANTA ANA","POZOS",null,null,null,"CAЁS",null,null,"SAN FRANCISCO",10802]
[10904,"SANTA ANA","URUCA",null,null,null,"ABANGARES",null,null,"CALLE BLANCOS",10803]
[10905,"SANTA ANA","PIEDADES",null,null,null,"TILARAN",null,null,"MATA DE PLATANO",10804]
[10906,"SANTA ANA","BRASIL",null,null,null,"NANDAYURE",null,null,"IPIS",10805]
[11001,"ALAJUELITA","ALAJUELITA",null,null,null,"LA_CRUZ",null,null,"RANCHO REDONDO",10806]
[11002,"ALAJUELITA","SAN JOSECITO",null,null,null,"HOJANCHA",null,null,"PURRAL",10807]
[11003,"ALAJUELITA","SAN ANTONIO",null,null,null,"PUNTARENAS_CENTRAL",null,null,"SANTA ANA",10901]
[11004,"ALAJUELITA","CONCEPCION",null,null,null,"ESPARZA",null,null,"SALITRAL",10902]
[11005,"ALAJUELITA","SAN FELIPE",null,null,null,"BUENOS_AIRES",null,null,"POZOS",10903]
[11101,"VAZQUEZ DE CORONADO","SAN ISIDRO",null,null,null,"MONTES_DE_ORO",null,null,"URUCA",10904]
[11102,"VAZQUEZ DE CORONADO","SAN RAFAEL",null,null,null,"OSA",null,null,"PIEDADES",10905]
[11103,"VAZQUEZ DE CORONADO","DULCE NOMBRE DE JESUS",null,null,null,"AGUIRRE",null,null,"BRASIL",10906]
[11104,"VAZQUEZ DE CORONADO","PATALILLO",null,null,null,"GOLFITO",null,null,"ALAJUELITA",11001]
[11105,"VAZQUEZ DE CORONADO","CASCAJAL",null,null,null,"COTO_BRUS",null,null,"SAN JOSECITO",11002]
[11201,"ACOSTA","SAN IGNACIO DE ACOSTA",null,null,null,"PARRITA",null,null,"SAN ANTONIO",11003]
[11202,"ACOSTA","GUAITIL",null,null,null,"CORREDORES",null,null,"CONCEPCION",11004]
[11203,"ACOSTA","PALMICHAL",null,null,null,"GARABITO",null,null,"SAN FELIPE",11005]
[11204,"ACOSTA","CANGREJAL",null,null,null,"LIMON__CENTRAL",null,null,"SAN ISIDRO",11101]
[11205,"ACOSTA","SABANILLAS",null,null,null,"POCOSI",null,null,"SAN RAFAEL",11102]
[11301,"TIBAS","SAN JUAN",null,null,null,"SIQUIRRES",null,null,"DULCE NOMBRE DE JESUS",11103]
[11302,"TIBAS","CINCO ESQUINAS",null,null,null,"TALAMANCA",null,null,"PATALILLO",11104]
[11303,"TIBAS","ANSELMO LLORENTE",null,null,null,"MATINA",null,null,"CASCAJAL",11105]
[11304,"TIBAS","LEON XIII",null,null,null,"GUACIMO",null,null,"SAN IGNACIO DE ACOSTA",11201]
[11305,"TIBAS","COLIMA",null,null,null,null,null,null,"GUAITIL",11202]
[11401,"MORAVIA","SAN VICENTE",null,null,null,null,null,null,"PALMICHAL",11203]
[11402,"MORAVIA","SAN JERONIMO",null,null,null,null,null,null,"CANGREJAL",11204]
[11403,"MORAVIA","TRINIDAD",null,null,null,null,null,null,"SABANILLAS",11205]
[11501,"MONTES DE OCA","SAN PEDRO",null,null,null,null,null,null,"SAN JUAN",11301]
[11502,"MONTES DE OCA","SABANILLA",null,null,null,null,null,null,"CINCO ESQUINAS",11302]
[11503,"MONTES DE OCA","MERCEDES",null,null,null,null,null,null,"ANSELMO LLORENTE",11303]
[11504,"MONTES DE OCA","SAN RAFAEL",null,null,null,null,null,null,"LEON XIII",11304]
[11601,"TURRUBARES","SAN PABLO",null,null,null,null,null,null,"COLIMA",11305]
[11602,"TURRUBARES","SAN PEDRO",null,null,null,null,null,null,"SAN VICENTE",11401]
[11603,"TURRUBARES","SAN JUA DE MATA",null,null,null,null,null,null,"SAN JERONIMO",11402]
[11604,"TURRUBARES","SAN LUIS",null,null,null,null,null,null,"TRINIDAD",11403]
[11605,"TURRUBARES","CARARA",null,null,null,null,null,null,"SAN PEDRO",11501]
[11701,"DOTA","SANTA MARIA",null,null,null,null,null,null,"SABANILLA",11502]
[11702,"DOTA","JARDIN",null,null,null,null,null,null,"MERCEDES",11503]
[11703,"DOTA","COPEY",null,null,null,null,null,null,"SAN RAFAEL",11504]
[11801,"CURRIDABAT","CURRIDABAT",null,null,null,null,null,null,"SAN PABLO",11601]
[11802,"CURRIDABAT","GRANADILLA",null,null,null,null,null,null,"SAN PEDRO",11602]
[11803,"CURRIDABAT","SANCHEZ",null,null,null,null,null,null,"SAN JUA DE MATA",11603]
[11804,"CURRIDABAT","TIRRASES",null,null,null,null,null,null,"SAN LUIS",11604]
[11901,"PEREZ_ZELEDON","SAN ISIDRO DEL GENERAL",null,null,null,null,null,null,"CARARA",11605]
[11902,"PEREZ_ZELEDON","GENERAL",null,null,null,null,null,null,"SANTA MARIA",11701]
[11903,"PEREZ_ZELEDON","DANIEL FLORES",null,null,null,null,null,null,"JARDIN",11702]
[11904,"PEREZ_ZELEDON","RIVAS",null,null,null,null,null,null,"COPEY",11703]
[11905,"PEREZ_ZELEDON","SAN PEDRO",null,null,null,null,null,null,"CURRIDABAT",11801]
[11906,"PEREZ_ZELEDON","PLATANARES",null,null,null,null,null,null,"GRANADILLA",11802]
[11907,"PEREZ_ZELEDON","PEJIBAYE",null,null,null,null,null,null,"SANCHEZ",11803]
[11908,"PEREZ_ZELEDON","CAJON",null,null,null,null,null,null,"TIRRASES",11804]
[11909,"PEREZ_ZELEDON","BARU",null,null,null,null,null,null,"SAN ISIDRO DEL GENERAL",11901]
[11910,"PEREZ_ZELEDON","RIO NUEVO",null,null,null,null,null,null,"GENERAL",11902]
[11911,"PEREZ_ZELEDON","PARAMO",null,null,null,null,null,null,"DANIEL FLORES",11903]
[12001,"LEON_CORTES","SAN PABLO",null,null,null,null,null,null,"RIVAS",11904]
[12002,"LEON_CORTES","SAN ANDRES",null,null,null,null,null,null,"SAN PEDRO",11905]
[12003,"LEON_CORTES","LLANO BONITO",null,null,null,null,null,null,"PLATANARES",11906]
[12004,"LEON_CORTES","SAN ISIDRO",null,null,null,null,null,null,"PEJIBAYE",11907]
[12005,"LEON_CORTES","SANTA CRUZ",null,null,null,null,null,null,"CAJON",11908]
[12006,"LEON_CORTES","SAN ANTONIO",null,null,null,null,null,null,"BARU",11909]
[20101,"ALAJUELA_CENTRAL","ALAJUELA",null,null,null,null,null,null,"RIO NUEVO",11910]
[20102,"ALAJUELA_CENTRAL","SAN JOSE",null,null,null,null,null,null,"PARAMO",11911]
[20103,"ALAJUELA_CENTRAL","CARRIZAL",null,null,null,null,null,null,"SAN PABLO",12001]
[20104,"ALAJUELA_CENTRAL","SAN ANTONIO",null,null,null,null,null,null,"SAN ANDRES",12002]
[20105,"ALAJUELA_CENTRAL","GUACIMA",null,null,null,null,null,null,"LLANO BONITO",12003]
[20106,"ALAJUELA_CENTRAL","SAN ISIDRO",null,null,null,null,null,null,"SAN ISIDRO",12004]
[20107,"ALAJUELA_CENTRAL","SABANILLA",null,null,null,null,null,null,"SANTA CRUZ",12005]
[20108,"ALAJUELA_CENTRAL","SAN RAFAEL",null,null,null,null,null,null,"SAN ANTONIO",12006]
[20109,"ALAJUELA_CENTRAL","RIO SEGUNDO",null,null,null,null,null,null,"ALAJUELA",20101]
[20110,"ALAJUELA_CENTRAL","DESAMPARADOS",null,null,null,null,null,null,"SAN JOSE",20102]
[20111,"ALAJUELA_CENTRAL","TURRUCARES",null,null,null,null,null,null,"CARRIZAL",20103]
[20112,"ALAJUELA_CENTRAL","TAMBOR",null,null,null,null,null,null,"SAN ANTONIO",20104]
[20113,"ALAJUELA_CENTRAL","GARITA",null,null,null,null,null,null,"GUACIMA",20105]
[20114,"ALAJUELA_CENTRAL","SARAPIQUI",null,null,null,null,null,null,"SAN ISIDRO",20106]
[20201,"SAN_RAMON","SAN RAMON",null,null,null,null,null,null,"SABANILLA",20107]
[20202,"SAN_RAMON","SANTIAGO",null,null,null,null,null,null,"SAN RAFAEL",20108]
[20203,"SAN_RAMON","SAN JUAN",null,null,null,null,null,null,"RIO SEGUNDO",20109]
[20204,"SAN_RAMON","PIEDADES NORTE",null,null,null,null,null,null,"DESAMPARADOS",20110]
[20205,"SAN_RAMON","PIEDADES SUR",null,null,null,null,null,null,"TURRUCARES",20111]
[20206,"SAN_RAMON","SAN RAFAEL",null,null,null,null,null,null,"TAMBOR",20112]
[20207,"SAN_RAMON","SAN ISIDRO",null,null,null,null,null,null,"GARITA",20113]
[20208,"SAN_RAMON","ANGELES",null,null,null,null,null,null,"SARAPIQUI",20114]
[20209,"SAN_RAMON","ALFARO",null,null,null,null,null,null,"SAN RAMON",20201]
[20210,"SAN_RAMON","VOLIO",null,null,null,null,null,null,"SANTIAGO",20202]
[20211,"SAN_RAMON","CANCEPCION",null,null,null,null,null,null,"SAN JUAN",20203]
[20212,"SAN_RAMON","ZAPOTAL",null,null,null,null,null,null,"PIEDADES NORTE",20204]
[20213,"SAN_RAMON","PEЁS BLANCAS",null,null,null,null,null,null,"PIEDADES SUR",20205]
[20301,"GRECIA","GRECIA",null,null,null,null,null,null,"SAN RAFAEL",20206]
[20302,"GRECIA","SAN ISIDRO",null,null,null,null,null,null,"SAN ISIDRO",20207]
[20303,"GRECIA","SAN JOSE",null,null,null,null,null,null,"ANGELES",20208]
[20304,"GRECIA","SAN ROQUE",null,null,null,null,null,null,"ALFARO",20209]
[20305,"GRECIA","TACARES",null,null,null,null,null,null,"VOLIO",20210]
[20306,"GRECIA","RIO CUARTO",null,null,null,null,null,null,"CANCEPCION",20211]
[20307,"GRECIA","PUENTE DE PIEDRA",null,null,null,null,null,null,"ZAPOTAL",20212]
[20308,"GRECIA","BOLIVAR",null,null,null,null,null,null,"PEЁS BLANCAS",20213]
[20401,"SAN_MATEO","SAN MATEO",null,null,null,null,null,null,"GRECIA",20301]
[20402,"SAN_MATEO","DESMONTE",null,null,null,null,null,null,"SAN ISIDRO",20302]
[20403,"SAN_MATEO","JESUS MARIA",null,null,null,null,null,null,"SAN JOSE",20303]
[20501,"ATENAS","ATENAS",null,null,null,null,null,null,"SAN ROQUE",20304]
[20502,"ATENAS","JESUS",null,null,null,null,null,null,"TACARES",20305]
[20503,"ATENAS","MERCEDES",null,null,null,null,null,null,"RIO CUARTO",20306]
[20504,"ATENAS","SAN ISIDRO",null,null,null,null,null,null,"PUENTE DE PIEDRA",20307]
[20505,"ATENAS","CONCEPCION",null,null,null,null,null,null,"BOLIVAR",20308]
[20506,"ATENAS","SAN JOSE",null,null,null,null,null,null,"SAN MATEO",20401]
[20507,"ATENAS","SANTA EULALIA",null,null,null,null,null,null,"DESMONTE",20402]
[20508,"ATENAS","ESCOBAL",null,null,null,null,null,null,"JESUS MARIA",20403]
[20601,"NARANJO","NARANJO",null,null,null,null,null,null,"ATENAS",20501]
[20602,"NARANJO","SAN MIGUEL",null,null,null,null,null,null,"JESUS",20502]
[20603,"NARANJO","SAN JOSE",null,null,null,null,null,null,"MERCEDES",20503]
[20604,"NARANJO","CIRRI SUR",null,null,null,null,null,null,"SAN ISIDRO",20504]
[20605,"NARANJO","SAN JERONIMO",null,null,null,null,null,null,"CONCEPCION",20505]
[20606,"NARANJO","SAN JUAN",null,null,null,null,null,null,"SAN JOSE",20506]
[20607,"NARANJO","ROSARIO",null,null,null,null,null,null,"SANTA EULALIA",20507]
[20701,"PALMARES","PALMARES",null,null,null,null,null,null,"ESCOBAL",20508]
[20702,"PALMARES","ZARAGOZA",null,null,null,null,null,null,"NARANJO",20601]
[20703,"PALMARES","BUENOS AIRES",null,null,null,null,null,null,"SAN MIGUEL",20602]
[20704,"PALMARES","SANTIAGO",null,null,null,null,null,null,"SAN JOSE",20603]
[20705,"PALMARES","CANDELARIA",null,null,null,null,null,null,"CIRRI SUR",20604]
[20706,"PALMARES","ESQUIPULAS",null,null,null,null,null,null,"SAN JERONIMO",20605]
[20707,"PALMARES","GRANJA",null,null,null,null,null,null,"SAN JUAN",20606]
[20801,"POAS","SAN PEDRO",null,null,null,null,null,null,"ROSARIO",20607]
[20802,"POAS","SAN JUAN",null,null,null,null,null,null,"PALMARES",20701]
[20803,"POAS","SAN RAFAEL",null,null,null,null,null,null,"ZARAGOZA",20702]
[20804,"POAS","CARRILLOS",null,null,null,null,null,null,"BUENOS AIRES",20703]
[20805,"POAS","SABANA REDONDA",null,null,null,null,null,null,"SANTIAGO",20704]
[20901,"OROTINA","OROTINA",null,null,null,null,null,null,"CANDELARIA",20705]
[20902,"OROTINA","MASTATE",null,null,null,null,null,null,"ESQUIPULAS",20706]
[20903,"OROTINA","HACIENDA VIEJA",null,null,null,null,null,null,"GRANJA",20707]
[20904,"OROTINA","COYOLAR",null,null,null,null,null,null,"SAN PEDRO",20801]
[20905,"OROTINA","CEIBA",null,null,null,null,null,null,"SAN JUAN",20802]
[21001,"SAN_CARLOS","QUESADA",null,null,null,null,null,null,"SAN RAFAEL",20803]
[21002,"SAN_CARLOS","FLORENCIA",null,null,null,null,null,null,"CARRILLOS",20804]
[21003,"SAN_CARLOS","BUENAVISTA",null,null,null,null,null,null,"SABANA REDONDA",20805]
[21004,"SAN_CARLOS","AGUAS ZARCAS",null,null,null,null,null,null,"OROTINA",20901]
[21005,"SAN_CARLOS","VENECIA",null,null,null,null,null,null,"MASTATE",20902]
[21006,"SAN_CARLOS","PITAL",null,null,null,null,null,null,"HACIENDA VIEJA",20903]
[21007,"SAN_CARLOS","FORTUNA",null,null,null,null,null,null,"COYOLAR",20904]
[21008,"SAN_CARLOS","TIGRA",null,null,null,null,null,null,"CEIBA",20905]
[21009,"SAN_CARLOS","PALMERA",null,null,null,null,null,null,"QUESADA",21001]
[21010,"SAN_CARLOS","VENADO",null,null,null,null,null,null,"FLORENCIA",21002]
[21011,"SAN_CARLOS","CUTRIS",null,null,null,null,null,null,"BUENAVISTA",21003]
[21012,"SAN_CARLOS","MONTERREY",null,null,null,null,null,null,"AGUAS ZARCAS",21004]
[21013,"SAN_CARLOS","POCOSOL",null,null,null,null,null,null,"VENECIA",21005]
[21101,"ALFARO_RUIZ","ZARCERO",null,null,null,null,null,null,"PITAL",21006]
[21102,"ALFARO_RUIZ","LAGUNA",null,null,null,null,null,null,"FORTUNA",21007]
[21103,"ALFARO_RUIZ","TAPEZCO",null,null,null,null,null,null,"TIGRA",21008]
[21104,"ALFARO_RUIZ","GUADALUPE",null,null,null,null,null,null,"PALMERA",21009]
[21105,"ALFARO_RUIZ","PALMIRA",null,null,null,null,null,null,"VENADO",21010]
[21106,"ALFARO_RUIZ","ZAPOTE",null,null,null,null,null,null,"CUTRIS",21011]
[21107,"ALFARO_RUIZ","BRISAS",null,null,null,null,null,null,"MONTERREY",21012]
[21201,"VALVERDE_VEGA","SARCHI NORTE",null,null,null,null,null,null,"POCOSOL",21013]
[21202,"VALVERDE_VEGA","SARCHI SUR",null,null,null,null,null,null,"ZARCERO",21101]
[21203,"VALVERDE_VEGA","TORO AMARILLO",null,null,null,null,null,null,"LAGUNA",21102]
[21204,"VALVERDE_VEGA","SAN PEDRO",null,null,null,null,null,null,"TAPEZCO",21103]
[21205,"VALVERDE_VEGA","RODRIGUEZ",null,null,null,null,null,null,"GUADALUPE",21104]
[21301,"UPALA","UPALA",null,null,null,null,null,null,"PALMIRA",21105]
[21302,"UPALA","AGUAS CLARAS",null,null,null,null,null,null,"ZAPOTE",21106]
[21303,"UPALA","SAN JOSE (PIZOTE)",null,null,null,null,null,null,"BRISAS",21107]
[21304,"UPALA","BIJAGUA",null,null,null,null,null,null,"SARCHI NORTE",21201]
[21305,"UPALA","DELICIAS",null,null,null,null,null,null,"SARCHI SUR",21202]
[21306,"UPALA","DOS RIOS",null,null,null,null,null,null,"TORO AMARILLO",21203]
[21307,"UPALA","YOLIYLLAL",null,null,null,null,null,null,"SAN PEDRO",21204]
[21401,"LOS_CHILES","LOS CHILES",null,null,null,null,null,null,"RODRIGUEZ",21205]
[21402,"LOS_CHILES","CAЏ NEGRO",null,null,null,null,null,null,"UPALA",21301]
[21403,"LOS_CHILES","EL AMPARO",null,null,null,null,null,null,"AGUAS CLARAS",21302]
[21404,"LOS_CHILES","SAN JORGE",null,null,null,null,null,null,"SAN JOSE (PIZOTE)",21303]
[21501,"GUATUSO","SAN RAFAEL",null,null,null,null,null,null,"BIJAGUA",21304]
[21502,"GUATUSO","BUENAVISTA",null,null,null,null,null,null,"DELICIAS",21305]
[21503,"GUATUSO","COTE",null,null,null,null,null,null,"DOS RIOS",21306]
[30101,"CARTAGO_CENTRAL","ORIENTAL",null,null,null,null,null,null,"YOLIYLLAL",21307]
[30102,"CARTAGO_CENTRAL","OCCIDENTAL",null,null,null,null,null,null,"LOS CHILES",21401]
[30103,"CARTAGO_CENTRAL","CARMEN",null,null,null,null,null,null,"CAЏ NEGRO",21402]
[30104,"CARTAGO_CENTRAL","SAN NICOLAS",null,null,null,null,null,null,"EL AMPARO",21403]
[30105,"CARTAGO_CENTRAL","AGUACALIENTE (SAN FRANCISCO)",null,null,null,null,null,null,"SAN JORGE",21404]
[30106,"CARTAGO_CENTRAL","GUADALUPE (ARENILLA)",null,null,null,null,null,null,"SAN RAFAEL",21501]
[30107,"CARTAGO_CENTRAL","CORRALILLO",null,null,null,null,null,null,"BUENAVISTA",21502]
[30108,"CARTAGO_CENTRAL","TIERRA BLANCA",null,null,null,null,null,null,"COTE",21503]
[30109,"CARTAGO_CENTRAL","DULCE NOMBRE",null,null,null,null,null,null,"ORIENTAL",30101]
[30110,"CARTAGO_CENTRAL","LLANO GRANDE",null,null,null,null,null,null,"OCCIDENTAL",30102]
[30111,"CARTAGO_CENTRAL","QUEBRADILLA",null,null,null,null,null,null,"CARMEN",30103]
[30201,"CARTAGO_CENTRAL","PARAISO",null,null,null,null,null,null,"SAN NICOLAS",30104]
[30202,"CARTAGO_CENTRAL","SANTIAGO",null,null,null,null,null,null,"AGUACALIENTE (SAN FRANCISCO)",30105]
[30203,"CARTAGO_CENTRAL","OROSI",null,null,null,null,null,null,"GUADALUPE (ARENILLA)",30106]
[30204,"PARAISO","CACHI",null,null,null,null,null,null,"CORRALILLO",30107]
[30205,"PARAISO","LLANOS DE SANTA LUCIA",null,null,null,null,null,null,"TIERRA BLANCA",30108]
[30301,"LA_UNION","TRES RIOS",null,null,null,null,null,null,"DULCE NOMBRE",30109]
[30302,"LA_UNION","SAN DIEGO",null,null,null,null,null,null,"LLANO GRANDE",30110]
[30303,"LA_UNION","SAN JUAN",null,null,null,null,null,null,"QUEBRADILLA",30111]
[30304,"LA_UNION","SAN RAFAEL",null,null,null,null,null,null,"PARAISO",30201]
[30305,"LA_UNION","CONCEPCION",null,null,null,null,null,null,"SANTIAGO",30202]
[30306,"LA_UNION","DULCE NOMBRE",null,null,null,null,null,null,"OROSI",30203]
[30307,"LA_UNION","SAN RAMON",null,null,null,null,null,null,"CACHI",30204]
[30308,"LA_UNION","RIO AZUL",null,null,null,null,null,null,"LLANOS DE SANTA LUCIA",30205]
[30401,"JIMENEZ","JUAN VIЁS",null,null,null,null,null,null,"TRES RIOS",30301]
[30402,"JIMENEZ","TUCURRIQUE",null,null,null,null,null,null,"SAN DIEGO",30302]
[30403,"JIMENEZ","PEJIBAYE",null,null,null,null,null,null,"SAN JUAN",30303]
[30501,"TURRIALBA","TURRIALBA",null,null,null,null,null,null,"SAN RAFAEL",30304]
[30502,"TURRIALBA","LA SUIZA",null,null,null,null,null,null,"CONCEPCION",30305]
[30503,"TURRIALBA","PERALTA",null,null,null,null,null,null,"DULCE NOMBRE",30306]
[30504,"TURRIALBA","SANTA CRUZ",null,null,null,null,null,null,"SAN RAMON",30307]
[30505,"TURRIALBA","SANTA TERESITA",null,null,null,null,null,null,"RIO AZUL",30308]
[30506,"TURRIALBA","PAVONES",null,null,null,null,null,null,"JUAN VIЁS",30401]
[30507,"TURRIALBA","TUIS",null,null,null,null,null,null,"TUCURRIQUE",30402]
[30508,"TURRIALBA","TAYUTIC",null,null,null,null,null,null,"PEJIBAYE",30403]
[30509,"TURRIALBA","SANTA ROSA",null,null,null,null,null,null,"TURRIALBA",30501]
[30510,"TURRIALBA","TRES EQUIS",null,null,null,null,null,null,"LA SUIZA",30502]
[30511,"TURRIALBA","LA ISABEL",null,null,null,null,null,null,"PERALTA",30503]
[30512,"TURRIALBA","CHIRRIPO",null,null,null,null,null,null,"SANTA CRUZ",30504]
[30601,"ALVARADO","PACAYAS",null,null,null,null,null,null,"SANTA TERESITA",30505]
[30602,"ALVARADO","CERVANTES",null,null,null,null,null,null,"PAVONES",30506]
[30603,"ALVARADO","CAPELLADES",null,null,null,null,null,null,"TUIS",30507]
[30701,"OREAMUNO","SAN RAFAEL",null,null,null,null,null,null,"TAYUTIC",30508]
[30702,"OREAMUNO","COT",null,null,null,null,null,null,"SANTA ROSA",30509]
[30703,"OREAMUNO","POTRERO CERRADO",null,null,null,null,null,null,"TRES EQUIS",30510]
[30704,"OREAMUNO","CIPRESES",null,null,null,null,null,null,"LA ISABEL",30511]
[30705,"OREAMUNO","SANTA ROSA",null,null,null,null,null,null,"CHIRRIPO",30512]
[30801,"EL_GUARCO","TEJAR",null,null,null,null,null,null,"PACAYAS",30601]
[30802,"EL_GUARCO","SAN ISIDRO",null,null,null,null,null,null,"CERVANTES",30602]
[30803,"EL_GUARCO","TOBOSI",null,null,null,null,null,null,"CAPELLADES",30603]
[30804,"EL_GUARCO","PATIO DE AGUA",null,null,null,null,null,null,"SAN RAFAEL",30701]
[40101,"HEREDIA_CENTRAL","HEREDIA",null,null,null,null,null,null,"COT",30702]
[40102,"HEREDIA_CENTRAL","MERCEDES",null,null,null,null,null,null,"POTRERO CERRADO",30703]
[40103,"HEREDIA_CENTRAL","SAN FRANCISCO",null,null,null,null,null,null,"CIPRESES",30704]
[40104,"HEREDIA_CENTRAL","ULLOA",null,null,null,null,null,null,"SANTA ROSA",30705]
[40105,"HEREDIA_CENTRAL","VARABLANCA",null,null,null,null,null,null,"TEJAR",30801]
[40201,"BARVA","BARVA",null,null,null,null,null,null,"SAN ISIDRO",30802]
[40202,"BARVA","SAN PEDRO",null,null,null,null,null,null,"TOBOSI",30803]
[40203,"BARVA","SAN PABLO",null,null,null,null,null,null,"PATIO DE AGUA",30804]
[40204,"BARVA","SAN ROQUE",null,null,null,null,null,null,"HEREDIA",40101]
[40205,"BARVA","SANTA LUCIA",null,null,null,null,null,null,"MERCEDES",40102]
[40206,"BARVA","SAN JOSE DE LA MONTAЁ",null,null,null,null,null,null,"SAN FRANCISCO",40103]
[40301,"SANTO_DOMINGO","SANTO DOMINGO",null,null,null,null,null,null,"ULLOA",40104]
[40302,"SANTO_DOMINGO","SAN VICENTE",null,null,null,null,null,null,"VARABLANCA",40105]
[40303,"SANTO_DOMINGO","SAN MIGUEL",null,null,null,null,null,null,"BARVA",40201]
[40304,"SANTO_DOMINGO","PARACITO",null,null,null,null,null,null,"SAN PEDRO",40202]
[40305,"SANTO_DOMINGO","SANTO TOMAS",null,null,null,null,null,null,"SAN PABLO",40203]
[40306,"SANTO_DOMINGO","SANTA ROSA",null,null,null,null,null,null,"SAN ROQUE",40204]
[40307,"SANTO_DOMINGO","TURES",null,null,null,null,null,null,"SANTA LUCIA",40205]
[40308,"SANTO_DOMINGO","PARA",null,null,null,null,null,null,"SAN JOSE DE LA MONTAЁ",40206]
[40401,"SANTA_BARBARA","SANTA BARBARA",null,null,null,null,null,null,"SANTO DOMINGO",40301]
[40402,"SANTA_BARBARA","SAN PEDRO",null,null,null,null,null,null,"SAN VICENTE",40302]
[40403,"SANTA_BARBARA","SAN JUAN",null,null,null,null,null,null,"SAN MIGUEL",40303]
[40404,"SANTA_BARBARA","JESUS",null,null,null,null,null,null,"PARACITO",40304]
[40405,"SANTA_BARBARA","SANTO DOMINGO",null,null,null,null,null,null,"SANTO TOMAS",40305]
[40406,"SANTA_BARBARA","PURABA",null,null,null,null,null,null,"SANTA ROSA",40306]
[40501,"SAN_RAFAEL","SAN RAFAEL",null,null,null,null,null,null,"TURES",40307]
[40502,"SAN_RAFAEL","SAN JOSECITO",null,null,null,null,null,null,"PARA",40308]
[40503,"SAN_RAFAEL","SANTIAGO",null,null,null,null,null,null,"SANTA BARBARA",40401]
[40504,"SAN_RAFAEL","ANGELES",null,null,null,null,null,null,"SAN PEDRO",40402]
[40505,"SAN_RAFAEL","CONCEPCION",null,null,null,null,null,null,"SAN JUAN",40403]
[40601,"SAN_ISIDRO","SAN ISIDRO",null,null,null,null,null,null,"JESUS",40404]
[40602,"SAN_ISIDRO","SAN JOSE",null,null,null,null,null,null,"SANTO DOMINGO",40405]
[40603,"SAN_ISIDRO","CONCEPCION",null,null,null,null,null,null,"PURABA",40406]
[40604,"SAN_ISIDRO","SAN FRANCISCO",null,null,null,null,null,null,"SAN RAFAEL",40501]
[40701,"BELEN","SAN ANTONIO",null,null,null,null,null,null,"SAN JOSECITO",40502]
[40702,"BELEN","RIBERA",null,null,null,null,null,null,"SANTIAGO",40503]
[40703,"BELEN","ASUNCION",null,null,null,null,null,null,"ANGELES",40504]
[40801,"SAN_JOAQUIN_DE_FLORES","SAN JOAQUIN DE FLORES",null,null,null,null,null,null,"CONCEPCION",40505]
[40802,"SAN_JOAQUIN_DE_FLORES","BARRANTES",null,null,null,null,null,null,"SAN ISIDRO",40601]
[40803,"SAN_JOAQUIN_DE_FLORES","LLORENTE",null,null,null,null,null,null,"SAN JOSE",40602]
[40901,"SAN_PABLO","SAN PABLO",null,null,null,null,null,null,"CONCEPCION",40603]
[41001,"SARAPIQUI","PUERTO VIEJO",null,null,null,null,null,null,"SAN FRANCISCO",40604]
[41002,"SARAPIQUI","LA VIRGEN",null,null,null,null,null,null,"SAN ANTONIO",40701]
[41003,"SARAPIQUI","HORQUETAS",null,null,null,null,null,null,"RIBERA",40702]
[41004,"SARAPIQUI","LLANURAS DEL GASPAR",null,null,null,null,null,null,"ASUNCION",40703]
[41005,"SARAPIQUI","CUREЁ",null,null,null,null,null,null,"SAN JOAQUIN DE FLORES",40801]
[50101,"LIBERIA","LIBERIA",null,null,null,null,null,null,"BARRANTES",40802]
[50102,"LIBERIA","CAЁS DULCES",null,null,null,null,null,null,"LLORENTE",40803]
[50103,"LIBERIA","MAYORGA",null,null,null,null,null,null,"SAN PABLO",40901]
[50104,"LIBERIA","NACASCOLO",null,null,null,null,null,null,"PUERTO VIEJO",41001]
[50105,"LIBERIA","CURUBANDE",null,null,null,null,null,null,"LA VIRGEN",41002]
[50201,"NICOYA","NICOYA",null,null,null,null,null,null,"HORQUETAS",41003]
[50202,"NICOYA","MANSION",null,null,null,null,null,null,"LLANURAS DEL GASPAR",41004]
[50203,"NICOYA","SAN ANTONIO",null,null,null,null,null,null,"CUREЁ",41005]
[50204,"NICOYA","QUEBRADA HONDA",null,null,null,null,null,null,"LIBERIA",50101]
[50205,"NICOYA","SAMARA",null,null,null,null,null,null,"CAЁS DULCES",50102]
[50206,"NICOYA","NOSARA",null,null,null,null,null,null,"MAYORGA",50103]
[50207,"NICOYA","BELEN DE NOSARITA",null,null,null,null,null,null,"NACASCOLO",50104]
[50301,"SANTA_CRUZ","SANTA CRUZ",null,null,null,null,null,null,"CURUBANDE",50105]
[50302,"SANTA_CRUZ","BOLSON",null,null,null,null,null,null,"NICOYA",50201]
[50303,"SANTA_CRUZ","VEINTISIETE DE ABRIL",null,null,null,null,null,null,"MANSION",50202]
[50304,"SANTA_CRUZ","TEMPATE",null,null,null,null,null,null,"SAN ANTONIO",50203]
[50305,"SANTA_CRUZ","CARTAGENA",null,null,null,null,null,null,"QUEBRADA HONDA",50204]
[50306,"SANTA_CRUZ","CUAJINIQUIL",null,null,null,null,null,null,"SAMARA",50205]
[50307,"SANTA_CRUZ","DIRIA",null,null,null,null,null,null,"NOSARA",50206]
[50308,"SANTA_CRUZ","CABO VELAS",null,null,null,null,null,null,"BELEN DE NOSARITA",50207]
[50309,"SANTA_CRUZ","TAMARINDO",null,null,null,null,null,null,"SANTA CRUZ",50301]
[50401,"BAGACES","BAGACES",null,null,null,null,null,null,"BOLSON",50302]
[50402,"BAGACES","FORTUNA",null,null,null,null,null,null,"VEINTISIETE DE ABRIL",50303]
[50403,"BAGACES","MOGOTE",null,null,null,null,null,null,"TEMPATE",50304]
[50404,"BAGACES","RIO NARANJO",null,null,null,null,null,null,"CARTAGENA",50305]
[50501,"CARRILLO","FILADELFIA",null,null,null,null,null,null,"CUAJINIQUIL",50306]
[50502,"CARRILLO","PALMIRA",null,null,null,null,null,null,"DIRIA",50307]
[50503,"CARRILLO","SARDINAL",null,null,null,null,null,null,"CABO VELAS",50308]
[50504,"CARRILLO","BELEN",null,null,null,null,null,null,"TAMARINDO",50309]
[50601,"CAЁS","CAЁS",null,null,null,null,null,null,"BAGACES",50401]
[50602,"CAЁS","PALMIRA",null,null,null,null,null,null,"FORTUNA",50402]
[50603,"CAЁS","SAN MIGUEL",null,null,null,null,null,null,"MOGOTE",50403]
[50604,"CAЁS","BEBEDERO",null,null,null,null,null,null,"RIO NARANJO",50404]
[50605,"CAЁS","POROZAL",null,null,null,null,null,null,"FILADELFIA",50501]
[50701,"ABANGARES","JUNTAS",null,null,null,null,null,null,"PALMIRA",50502]
[50702,"ABANGARES","SIERRA",null,null,null,null,null,null,"SARDINAL",50503]
[50703,"ABANGARES","SAN JUAN",null,null,null,null,null,null,"BELEN",50504]
[50704,"ABANGARES","COLORADO",null,null,null,null,null,null,"CAЁS",50601]
[50801,"TILARAN","TILARAN",null,null,null,null,null,null,"PALMIRA",50602]
[50802,"TILARAN","QUEBRADA GRANDE",null,null,null,null,null,null,"SAN MIGUEL",50603]
[50803,"TILARAN","TRONADORA",null,null,null,null,null,null,"BEBEDERO",50604]
[50804,"TILARAN","SANTA ROSA",null,null,null,null,null,null,"POROZAL",50605]
[50805,"TILARAN","LIBANO",null,null,null,null,null,null,"JUNTAS",50701]
[50806,"TILARAN","TIERRAS MORENAS",null,null,null,null,null,null,"SIERRA",50702]
[50807,"TILARAN","ARENAL",null,null,null,null,null,null,"SAN JUAN",50703]
[50901,"NANDAYURE","CARMONA",null,null,null,null,null,null,"COLORADO",50704]
[50902,"NANDAYURE","SANTA RITA",null,null,null,null,null,null,"TILARAN",50801]
[50903,"NANDAYURE","ZAPOTAL",null,null,null,null,null,null,"QUEBRADA GRANDE",50802]
[50904,"NANDAYURE","SAN PABLO",null,null,null,null,null,null,"TRONADORA",50803]
[50905,"NANDAYURE","PORVENIR",null,null,null,null,null,null,"SANTA ROSA",50804]
[50906,"NANDAYURE","BEJUCO",null,null,null,null,null,null,"LIBANO",50805]
[51001,"LA_CRUZ","LA CRUZ",null,null,null,null,null,null,"TIERRAS MORENAS",50806]
[51002,"LA_CRUZ","SANTA CECILIA",null,null,null,null,null,null,"ARENAL",50807]
[51003,"LA_CRUZ","GARITA",null,null,null,null,null,null,"CARMONA",50901]
[51004,"LA_CRUZ","SANTA ELENA",null,null,null,null,null,null,"SANTA RITA",50902]
[51101,"HOJANCHA","HOJANCHA",null,null,null,null,null,null,"ZAPOTAL",50903]
[51102,"HOJANCHA","MONTE ROMO",null,null,null,null,null,null,"SAN PABLO",50904]
[51103,"HOJANCHA","PUERTO CARRILLO",null,null,null,null,null,null,"PORVENIR",50905]
[51104,"HOJANCHA","HUACAS",null,null,null,null,null,null,"BEJUCO",50906]
[60101,"PUNTARENAS_CENTRAL","PUNTARENAS",null,null,null,null,null,null,"LA CRUZ",51001]
[60102,"PUNTARENAS_CENTRAL","PITAHAYA",null,null,null,null,null,null,"SANTA CECILIA",51002]
[60103,"PUNTARENAS_CENTRAL","CHOMES",null,null,null,null,null,null,"GARITA",51003]
[60104,"PUNTARENAS_CENTRAL","LEPANTO",null,null,null,null,null,null,"SANTA ELENA",51004]
[60105,"PUNTARENAS_CENTRAL","PAQUERA",null,null,null,null,null,null,"HOJANCHA",51101]
[60106,"PUNTARENAS_CENTRAL","MANZANILLO",null,null,null,null,null,null,"MONTE ROMO",51102]
[60107,"PUNTARENAS_CENTRAL","GUACIMAL",null,null,null,null,null,null,"PUERTO CARRILLO",51103]
[60108,"PUNTARENAS_CENTRAL","BARRANCA",null,null,null,null,null,null,"HUACAS",51104]
[60109,"PUNTARENAS_CENTRAL","MONTE VERDE",null,null,null,null,null,null,"PUNTARENAS",60101]
[60110,"PUNTARENAS_CENTRAL","ISLA DEL COCO",null,null,null,null,null,null,"PITAHAYA",60102]
[60111,"PUNTARENAS_CENTRAL","COBANO",null,null,null,null,null,null,"CHOMES",60103]
[60112,"PUNTARENAS_CENTRAL","CHACARITA",null,null,null,null,null,null,"LEPANTO",60104]
[60113,"PUNTARENAS_CENTRAL","CHIRA",null,null,null,null,null,null,"PAQUERA",60105]
[60114,"PUNTARENAS_CENTRAL","ACAPULCO",null,null,null,null,null,null,"MANZANILLO",60106]
[60115,"PUNTARENAS_CENTRAL","EL ROBLE",null,null,null,null,null,null,"GUACIMAL",60107]
[60116,"PUNTARENAS_CENTRAL","ARANCIBIA",null,null,null,null,null,null,"BARRANCA",60108]
[60201,"ESPARZA","ESPIRITU SANTO",null,null,null,null,null,null,"MONTE VERDE",60109]
[60202,"ESPARZA","SAN JUAN GRANDE",null,null,null,null,null,null,"ISLA DEL COCO",60110]
[60203,"ESPARZA","MACACONA",null,null,null,null,null,null,"COBANO",60111]
[60204,"ESPARZA","SAN RAFAEL",null,null,null,null,null,null,"CHACARITA",60112]
[60205,"ESPARZA","SAN JERONIMO",null,null,null,null,null,null,"CHIRA",60113]
[60301,"BUENOS_AIRES","BUENOS AIRES",null,null,null,null,null,null,"ACAPULCO",60114]
[60302,"BUENOS_AIRES","VOLCAN",null,null,null,null,null,null,"EL ROBLE",60115]
[60303,"BUENOS_AIRES","POTRERO GRANDE",null,null,null,null,null,null,"ARANCIBIA",60116]
[60304,"BUENOS_AIRES","BORUCA",null,null,null,null,null,null,"ESPIRITU SANTO",60201]
[60305,"BUENOS_AIRES","PILAS",null,null,null,null,null,null,"SAN JUAN GRANDE",60202]
[60306,"BUENOS_AIRES","COLINAS",null,null,null,null,null,null,"MACACONA",60203]
[60307,"BUENOS_AIRES","CHANGENA",null,null,null,null,null,null,"SAN RAFAEL",60204]
[60308,"BUENOS_AIRES","BRIOLLEY",null,null,null,null,null,null,"SAN JERONIMO",60205]
[60309,"BUENOS_AIRES","BRUNKA",null,null,null,null,null,null,"BUENOS AIRES",60301]
[60401,"MONTES_DE_ORO","MIRAMAR",null,null,null,null,null,null,"VOLCAN",60302]
[60402,"MONTES_DE_ORO","UNION",null,null,null,null,null,null,"POTRERO GRANDE",60303]
[60403,"MONTES_DE_ORO","SAN ISIDRO",null,null,null,null,null,null,"BORUCA",60304]
[60501,"OSA","PUERTO CORTES",null,null,null,null,null,null,"PILAS",60305]
[60502,"OSA","PALMAR",null,null,null,null,null,null,"COLINAS",60306]
[60503,"OSA","SIERPE",null,null,null,null,null,null,"CHANGENA",60307]
[60504,"OSA","BAHIA BALLENA",null,null,null,null,null,null,"BRIOLLEY",60308]
[60505,"OSA","PIEDRAS BLANCAS",null,null,null,null,null,null,"BRUNKA",60309]
[60601,"AGUIRRE","QUEPOS",null,null,null,null,null,null,"MIRAMAR",60401]
[60602,"AGUIRRE","SAVEGRE",null,null,null,null,null,null,"UNION",60402]
[60603,"AGUIRRE","NARANJITO",null,null,null,null,null,null,"SAN ISIDRO",60403]
[60701,"GOLFITO","GOLFITO",null,null,null,null,null,null,"PUERTO CORTES",60501]
[60702,"GOLFITO","PUERTO JIMENEZ",null,null,null,null,null,null,"PALMAR",60502]
[60703,"GOLFITO","GUAYCARA",null,null,null,null,null,null,"SIERPE",60503]
[60704,"GOLFITO","PAVON",null,null,null,null,null,null,"BAHIA BALLENA",60504]
[60801,"COTO_BRUS","SAN VITO",null,null,null,null,null,null,"PIEDRAS BLANCAS",60505]
[60802,"COTO_BRUS","SABALITO",null,null,null,null,null,null,"QUEPOS",60601]
[60803,"COTO_BRUS","AGUABUENA",null,null,null,null,null,null,"SAVEGRE",60602]
[60804,"COTO_BRUS","LIMONCITO",null,null,null,null,null,null,"NARANJITO",60603]
[60805,"COTO_BRUS","PITTIER",null,null,null,null,null,null,"GOLFITO",60701]
[60901,"PARRITA","PARRITA",null,null,null,null,null,null,"PUERTO JIMENEZ",60702]
[61001,"CORREDORES","CORREDOR",null,null,null,null,null,null,"GUAYCARA",60703]
[61002,"CORREDORES","LA CUESTA",null,null,null,null,null,null,"PAVON",60704]
[61003,"CORREDORES","CANOAS",null,null,null,null,null,null,"SAN VITO",60801]
[61004,"CORREDORES","LAUREL",null,null,null,null,null,null,"SABALITO",60802]
[61101,"GARABITO","JACO",null,null,null,null,null,null,"AGUABUENA",60803]
[61102,"GARABITO","TARCOLES",null,null,null,null,null,null,"LIMONCITO",60804]
[70101,"LIMON_CENTRAL","LIMON",null,null,null,null,null,null,"PITTIER",60805]
[70102,"LIMON_CENTRAL","VALLE LA ESTRELLA",null,null,null,null,null,null,"PARRITA",60901]
[70103,"LIMON_CENTRAL","RIO BLANCO",null,null,null,null,null,null,"CORREDOR",61001]
[70104,"LIMON_CENTRAL","MATAMA",null,null,null,null,null,null,"LA CUESTA",61002]
[70201,"POCOSI","GUAPILES",null,null,null,null,null,null,"CANOAS",61003]
[70202,"POCOSI","JIMENEZ",null,null,null,null,null,null,"LAUREL",61004]
[70203,"POCOSI","RITA",null,null,null,null,null,null,"JACO",61101]
[70204,"POCOSI","ROXANA",null,null,null,null,null,null,"TARCOLES",61102]
[70205,"POCOSI","CARIARI",null,null,null,null,null,null,"LIMON",70101]
[70206,"POCOSI","COLORADO",null,null,null,null,null,null,"VALLE LA ESTRELLA",70102]
[70301,"SIQUIRRES","SIQUIRRES",null,null,null,null,null,null,"RIO BLANCO",70103]
[70302,"SIQUIRRES","PACUARITO",null,null,null,null,null,null,"MATAMA",70104]
[70303,"SIQUIRRES","FLORIDA",null,null,null,null,null,null,"GUAPILES",70201]
[70304,"SIQUIRRES","GERMANIA",null,null,null,null,null,null,"JIMENEZ",70202]
[70305,"SIQUIRRES","CAIRO",null,null,null,null,null,null,"RITA",70203]
[70306,"SIQUIRRES","ALEGRIA",null,null,null,null,null,null,"ROXANA",70204]
[70401,"TALAMANCA","BRATSI",null,null,null,null,null,null,"CARIARI",70205]
[70402,"TALAMANCA","SIXAOLA",null,null,null,null,null,null,"COLORADO",70206]
[70403,"TALAMANCA","CAHUITA",null,null,null,null,null,null,"SIQUIRRES",70301]
[70404,"TALAMANCA","TELIRE",null,null,null,null,null,null,"PACUARITO",70302]
[70501,"MATINA","MATINA",null,null,null,null,null,null,"FLORIDA",70303]
[70502,"MATINA","BATTAN",null,null,null,null,null,null,"GERMANIA",70304]
[70503,"MATINA","CARRANDI",null,null,null,null,null,null,"CAIRO",70305]
[70601,"GUACIMO","GUACIMO",null,null,null,null,null,null,"ALEGRIA",70306]
[70602,"GUACIMO","MERCEDES",null,null,null,null,null,null,"BRATSI",70401]
[70603,"GUACIMO","POCORA",null,null,null,null,null,null,"SIXAOLA",70402]
[70604,"GUACIMO","RIO JIMENEZ",null,null,null,null,null,null,"CAHUITA",70403]
[70605,"GUACIMO","DUACARI",null,null,null,null,null,null,"TELIRE",70404]
[null,null,null,null,null,null,null,null,null,"MATINA",70501]
[null,null,null,null,null,null,null,null,null,"BATTAN",70502]
[null,null,null,null,null,null,null,null,null,"CARRANDI",70503]
[null,null,null,null,null,null,null,null,null,"GUACIMO",70601]
[null,null,null,null,null,null,null,null,null,"MERCEDES",70602]
[null,null,null,null,null,null,null,null,null,"POCORA",70603]
[null,null,null,null,null,null,null,null,null,"RIO JIMENEZ",70604]
[null,null,null,null,null,null,null,null,null,"DUACARI",70605]

{"sheet":"carta","index":10,"n_rows":40,"n_cols":12,"rows_kept":40,"cut":false,"hidden":false,"merged":[[0,4,0,6],[0,11,0,13],[12,7,30,12]]}
[null,null,null,null,{"$f":"+TODAY()","v":"2019-10-09"},null,null,null,null,null,null,{"$f":"+TODAY()","v":"2019-10-09"}]
["Señor(a)",null,null,null,null,null,null,"Señor(a)"]
[{"$f":"+VLOOKUP(carta!B5,'Paso 1'!C89:D96,2,0)","v":{"$error":"#N/A"}},null,null,null,null,null,null,{"$f":"+VLOOKUP(carta!I5,'Paso 1'!I89:J94,2,0)","v":{"$error":"#N/A"}}]
["Dirección Regional del Consejo Nacional de Producción ",null,null,null,null,null,null,"Dirección Regional del Consejo Nacional de Producción "]
["Región",{"$f":"+'Paso 1'!I3","v":0},null,null,null,null,null,"Región",{"$f":"+'Paso 1'!P3","v":0}]
[]
[]
[]
["Estimado Señor(a)",null,null,null,null,null,null,"Estimado Señor(a)"]
[]
["Por este medio el ",null,{"$f":"+'Paso 1'!C7","v":0},null,null,"se complace  en",null,"Por este medio reciban un saludo cordial del ",null,null,{"$f":"+C11","v":0}]
["saludar  muy  cordialmente. Así mismo, hacer de su conocimiento el interés de ",null,null,null,null,null,null,"Describimos las actividades a las que se dedica nuestra organización."]
["nuestra organización en ingresar al  Programa de  Abastecimiento  Institucional  ",null,null,null,null,null,null,{"$f":"+'Paso 1'!G15","v":0}]
["como suplidor de productos."]
[]
[]
[]
[]
[]
[]
["Acontinuación detallo información sobre la organización:"]
["Razón Social:",null,null,{"$f":"+'Paso 1'!C7","v":0}]
["Representante Legal:",null,null,{"$f":"+'Paso 1'!C9","v":0}]
["Cédula: ",null,null,{"$f":"+'Paso 1'!C11","v":0}]
["Nombre del presidente:",null,null,{"$f":"+'Paso 1'!C13","v":0}]
["Dirección postal:",null,null,{"$f":"+'Paso 1'!C15","v":{"$error":"#N/A"}}]
["Dirección geográfica exacta:",null,null,{"$f":"+'Paso 1'!C18","v":0}]
["Domicilio legal de la empresa:",null,null,{"$f":"+'Paso 1'!C22","v":0}]
["Teléfono:",null,null,{"$f":"+'Paso 1'!G7","v":0}]
["Fax:",null,null,{"$f":"+'Paso 1'!G9","v":0}]
["Correo:",null,null,{"$f":"+'Paso 1'!G11","v":0}]
[]
[]
[]
[]
[]
[]
[null,null,{"$f":"+D23","v":0},null,null,null,null,null,null,null,{"$f":"+C38","v":0}]
[null,null,{"$f":"+A24","v":"Cédula: "},{"$f":"+D24","v":0},null,null,null,null,null,{"$f":"+C39","v":"Cédula: "},{"$f":"+D39","v":0}]
[null,null,{"$f":"+C11","v":0},null,null,null,null,null,null,null,{"$f":"+C40","v":0}]

{"sheet":"carta (2)","index":11,"n_rows":40,"n_cols":12,"rows_kept":40,"cut":false,"hidden":false,"merged":[[0,4,0,6],[0,11,0,13],[12,7,30,12]]}
[null,null,null,null,{"$f":"+TODAY()","v":"2019-10-09"},null,null,null,null,null,null,{"$f":"+TODAY()","v":"2019-10-09"}]
["Señor(a)",null,null,null,null,null,null,"Señor(a)"]
[{"$f":"+VLOOKUP('carta (2)'!B5,'Paso 1 (2)'!C89:D96,2,0)","v":{"$error":"#N/A"}},null,null,null,null,null,null,{"$f":"+A3","v":{"$error":"#N/A"}}]
["Dirección Regional del Consejo Nacional de Producción ",null,null,null,null,null,null,"Dirección Regional del Consejo Nacional de Producción "]
["Región",{"$f":"+'Paso 1 (2)'!I3","v":0},null,null,null,null,null,"Región",{"$f":"+B5","v":0}]
[]
[]
[]
["Estimado Señor(a)",null,null,null,null,null,null,"Estimado Señor(a)"]
[]
["Por este medio ",null,{"$f":"+'Paso 1 (2)'!C7","v":0},null,"se complace en saludar  muy",null,null,"Por este medio reciban un saludo cordial del ",null,null,{"$f":"+C11","v":0}]
["cordialmente. Así mismo, hacer de su conocimiento el interés de  nuestra",null,null,null,null,null,null,"Describimos las actividades a las que se dedica nuestra organización."]
[" organización en ingresar al  Programa de  Abastecimiento  Institucional  ",null,null,null,null,null,null,{"$f":"+'Paso 1'!G15","v":0}]
["como suplidor de productos."]
[]
[]
[]
[]
[]
[]
["Acontinuación detallo información sobre la organización:"]
["Nombre:",null,null,{"$f":"+'Paso 1 (2)'!C7","v":0}]
["Cédula",null,null,{"$f":"+'Paso 1 (2)'!C9","v":0}]
["Dirección postal:",null,null,{"$f":"+'Paso 1 (2)'!C11","v":{"$error":"#N/A"}}]
["Dirección geográfica exacta:",null,null,{"$f":"+'Paso 1 (2)'!C14","v":0}]
["Teléfono:",null,null,{"$f":"+'Paso 1 (2)'!C18","v":0}]
["Fax:",null,null,{"$f":"+'Paso 1 (2)'!C20","v":0}]
["Correo:",null,null,{"$f":"+'Paso 1 (2)'!C22","v":0}]
[]
[]
[]
[]
[]
[]
[]
[]
[]
[null,null,{"$f":"+D22","v":0},null,null,null,null,null,null,null,{"$f":"+C38","v":0}]
[null,null,{"$f":"+'Paso 1 (2)'!B9","v":"     Cédula"},{"$f":"+D23","v":0},null,null,null,null,null,{"$f":"+C39","v":"     Cédula"},{"$f":"+D39","v":0}]
[null,null,{"$f":"+C11","v":0},null,null,null,null,null,null,null,{"$f":"+C40","v":0}]

{"sheet":"Paso2","index":12,"n_rows":20,"n_cols":3,"rows_kept":20,"cut":false,"hidden":false,"merged":[[15,5,18,5],[22,6,26,9],[5,1,5,7],[0,0,4,6]]}
["Manual Instructivo de Ingreso al Programa de Abastecimiento Institucional (PAI)"]
[]
[]
[]
[]
["PASO 2.","Fotocopia o certificación de cédula jurídica  "]
[]
[null,"Puede ingresar al siguiente link y conseguir la certificación via digital"]
[null,"https://www.rnpdigital.com/shopping/login.jspx "," -- Costo de ₡ 2 800 -- "]
[]
["Para comprar esta certificación lo único que necesita es registrarse en la página del Registro Nacional de la republica de Costa Rica. "]
[null,"En donde la única información que le solicita seria: "]
[null,"* Nombre"]
[null,"* Teléfono Móvil"]
[null,"* Email"]
[null,"* Redigitar su Email"]
[null,"* Clave El formato de la clave debe tener al menos una mayúscula, una minúscula, un número y tener un largo de mínimo 8 caracteres"]
[null,"* Redigitar su Clave"]
[]
["Después añadirlo al carrito y se realiza el pago vía internet"]

{"sheet":"Paso2 (2)","index":13,"n_rows":18,"n_cols":2,"rows_kept":18,"cut":false,"hidden":false,"merged":[[5,1,5,7],[14,5,17,5],[21,6,25,9],[0,0,4,10]]}
["Manual Instructivo de Ingreso al Programa de Abastecimiento Institucional (PAI)"]
[]
[]
[]
[]
["PASO 2.","Fotocopia  de cédula  "]
[]
[]
[]
[null,"En este paso lo que se solicita es la fotocopia de la cédula de"]
[null," identidad, por ambos lados. "]
[]
[]
[]
[]
[]
[]
[null,"☺"]

{"sheet":"Paso3","index":14,"n_rows":18,"n_cols":2,"rows_kept":18,"cut":false,"hidden":false,"merged":[[5,1,5,7],[14,5,17,5],[21,6,25,9],[0,0,4,6],[0,7,4,9]]}
["Manual Instructivo de Ingreso al Programa de Abastecimiento Institucional (PAI)"]
[]
[]
[]
[]
["PASO 3.","Fotocopia o certificación de cédula del representante legal   "]
[]
[]
[]
[null,"En este paso lo que se solicita es la fotocopia de la cédula de"]
[null," identidad del representante legal, por ambos lados. "]
[]
[]
[]
[]
[]
[]
[null,"☺"]

{"sheet":"Paso3 (2)","index":15,"n_rows":16,"n_cols":4,"rows_kept":16,"cut":false,"hidden":false,"merged":[[15,5,18,5],[22,6,26,9],[0,0,4,6],[0,7,4,9],[5,1,5,2]]}
["Manual Instructivo de Ingreso al Programa de Abastecimiento Institucional (PAI)"]
[]
[]
[]
[]
["PASO 3.","Certificación de Contador Público Autorizado (CPA) ",null," -- Costo aproximado de ₡ 110 000 -- "]
[]
[]
[null,"Este documento se le debe de solicitar al contador que tiene en la empresa.  El cual le tiene que solicitar que tenga los siguientes aspectos"]
[]
[]
[null,"1.      Valor de ventas anuales netas"]
[null,"2.      Valor de activos totales"]
[null,"3.      Valor de activos fijos netos"]
[null,"Estos anteriores puntos correspondientes al último periodo fiscal "]
[null,"4.      Cantidad de empleados planilla reportada a Caja Costarricense del Seguro Social en el mes anterior"]

{"sheet":"Paso4","index":16,"n_rows":16,"n_cols":4,"rows_kept":16,"cut":false,"hidden":false,"merged":[[15,5,18,5],[22,6,26,9],[0,0,4,6],[0,7,4,9],[5,1,5,2]]}
["Manual Instructivo de Ingreso al Programa de Abastecimiento Institucional (PAI)"]
[]
[]
[]
[]
["PASO 4.","Certificación de Contador Público Autorizado (CPA) ",null," -- Costo aproximado de ₡ 110 000 -- "]
[]
[]
[null,"Este documento se le debe de solicitar al contador que tiene en la empresa.  El cual le tiene que solicitar que tenga los siguientes aspectos"]
[]
["En la misma debe estar claramente los siguientes aspectos. "]
[null,"1.      Valor de ventas anuales netas"]
[null,"2.      Valor de activos totales"]
[null,"3.      Valor de activos fijos netos"]
[null,"Estos anteriores puntos correspondientes al último periodo fiscal "]
[null,"4.      Cantidad de empleados planilla reportada a Caja Costarricense del Seguro Social en el mes anterior"]

{"sheet":"Paso4 (2)","index":17,"n_rows":20,"n_cols":3,"rows_kept":20,"cut":false,"hidden":false,"merged":[[14,5,17,5],[0,0,4,7],[5,1,5,7],[8,1,8,2],[12,1,12,2],[13,0,13,1]]}
["Manual Instructivo de Ingreso al Programa de Abastecimiento Institucional (PAI)"]
[]
[]
[]
[]
["PASO 4.","Presentar Declaración Jurada Autorizada "]
[]
[]
[null,"La siguiente declaración jurada la brinda el Consejo Nacional de Producción (CNP), es la misma que se adjunta seguidamente. El mismo CNP la brinda en la parte de abajo aparece el cuadro para descargar el archivo."]
[]
[]
[]
[]
["En la misma la información que se les solicita es:"]
[null,"·         Nombre y Apellidos","·         Funciones"]
[null,"·         Estado Civil","·         Nombre de la empresa"]
[null,"·         Ocupación u oficio","·         Número de cédula jurídica "]
[null,"·         Dirección exacta","·         Tomo, folio y asiento de la cédula jurídica"]
[null,"·         Número de cédula","·         Lugar y fecha"]
[null,"·         Puesto (Representante legal)","·         Firma y cédula"]

{"sheet":"Paso5","index":18,"n_rows":20,"n_cols":7,"rows_kept":20,"cut":false,"hidden":false,"merged":[[0,0,4,7],[0,8,4,10],[5,1,5,7],[14,5,17,5],[12,1,12,2],[13,0,13,1],[9,1,9,2]]}
["Manual Instructivo de Ingreso al Programa de Abastecimiento Institucional (PAI)"]
[]
[]
[]
[]
["PASO 5.","Presentar Declaración Jurada Autorizada "]
[]
[]
[]
[null,"La siguiente declaración jurada la brinda el Consejo Nacional de Producción (CNP), es la misma que se adjunta seguidamente. El mismo CNP la brinda en la parte de abajo aparece el cuadro para descargar el archivo."]
[]
[]
[]
["En la misma la información que se les solicita es:"]
[null,"·         Nombre y Apellidos","·         Funciones",null,null,null,123]
[null,"·         Estado Civil","·         Nombre de la empresa"]
[null,"·         Ocupación u oficio","·         Número de cédula jurídica "]
[null,"·         Dirección exacta","·         Tomo, folio y asiento de la cédula jurídica"]
[null,"·         Número de cédula","·         Lugar y fecha"]
[null,"·         Puesto (Representante legal)","·         Firma y cédula"]

{"sheet":"Paso5 (2)","index":19,"n_rows":17,"n_cols":7,"rows_kept":17,"cut":false,"hidden":false,"merged":[[5,1,5,7],[0,0,4,7],[0,8,4,8],[16,0,16,2],[6,1,6,5]]}
["Manual Instructivo de Ingreso al Programa de Abastecimiento Institucional (PAI)"]
[null,null,null,null,null,null,"Página Web"]
[]
[]
[]
["PASO 5.","Certificación de la Dirección General de Hacienda, de encontrarse debidamente inscrita en en Ministerio de Hacienda o la certificación de exención de impuestos."]
[null,"La Dirección General de Hacienda (DGH) forma parte del Área de Ingresos del Ministerio de Hacienda, y está conformada por el Despacho de la Dirección y Subdirección Generales y las Divisiones de Incentivos Fiscales, Control de la Gestión de Ingresos, Adeudos Estatales, Politica Fiscal y Área Técnico Jurídica. Actualmente también se desarrolla el Proyecto de Estudio Económico a Empresas."]
[]
[null,"En este paso se necesita una certificación otorgada por la Dirección General de Hacienda en donde se haga constar que estan debidamente inscritos ante  Hacienda o que se encuentran exentos"]
[null,"Para poder realizar este trámite se muestra a continuación "]
[null,"los contactos de la Dirección General de Hacienda. "]
[null,"Teléfonos: 2284-5245 / 2284-5348 / 2255-2101 / 2284-5287"]
[null,"Dirección:  Avenida 2, calle 1 y 3 diagonal al Teatro Nacional. San José, Costa Rica."]
[null,"Correo:  dgh@hacienda.go.cr    "]
[]
[]
["Página Web de Ministerio de Hacienda para más información"]

{"sheet":"Paso6","index":20,"n_rows":17,"n_cols":7,"rows_kept":17,"cut":false,"hidden":false,"merged":[[5,1,5,7],[0,0,4,7],[0,8,4,8],[6,1,6,5],[16,0,16,2]]}
["Manual Instructivo de Ingreso al Programa de Abastecimiento Institucional (PAI)"]
[null,null,null,null,null,null,"Página Web"]
[]
[]
[]
["PASO 6.","Certificación de la Dirección General de Hacienda, de encontrarse debidamente inscrita en en Ministerio de Hacienda o la certificación de exención de impuestos."]
[null,"La Dirección General de Hacienda (DGH) forma parte del Área de Ingresos del Ministerio de Hacienda, y está conformada por el Despacho de la Dirección y Subdirección Generales y las Divisiones de Incentivos Fiscales, Control de la Gestión de Ingresos, Adeudos Estatales, Politica Fiscal y Área Técnico Jurídica. Actualmente también se desarrolla el Proyecto de Estudio Económico a Empresas."]
[]
[null,"En este paso se necesita una certificación otorgada por la Dirección General de Hacienda en donde sehaga constar que estan debidamente inscritos ante  Hacienda o que se encuentran exentos"]
[null,"Para poder realizar este trámite se muestra a continuación "]
[null,"los contactos de la Dirección General de Hacienda. "]
[null,"Teléfonos: 2284-5245 / 2284-5348 / 2255-2101 / 2284-5287"]
[null,"Dirección:  Avenida 2, calle 1 y 3 diagonal al Teatro Nacional. San José, Costa Rica."]
[null,"Correo:  dgh@hacienda.go.cr    "]
[]
[]
["Página Web de Ministerio de Hacienda para más información"]

{"sheet":"Paso6 (2)","index":21,"n_rows":18,"n_cols":2,"rows_kept":18,"cut":false,"hidden":false,"merged":[[10,1,11,2],[14,5,17,5],[0,0,4,7],[0,8,4,8],[0,9,4,9],[9,1,9,2],[5,1,5,7],[7,1,8,2]]}
["Manual Instructivo de Ingreso al Programa de Abastecimiento Institucional (PAI)"]
[]
[]
[]
[]
["PASO 6.","Certificación o constancia que está al día en el pago de las cuotas obrero-patronal con la CCSS"]
[null,"PRIMERO, necesita estar inscrito como patrono, SINO NO APLICA"]
[null,"Para este punto se puede realizar el trámite en línea ingresando al siguiente link  https://www.ccss.sa.cr/morosidad "]
[]
[null,"O bien presentarse a la oficina más cercana para pedir la constancia"]
[null,"Lo unico que necesita es la cedula jurídica para poder realizar la constancia en linea."]
[]
[]
[]
[]
[null,"Cualquier consulta "]
[null,"Central telefónica"]
[null,"2539-0000"]

{"sheet":"Paso7","index":22,"n_rows":19,"n_cols":6,"rows_kept":19,"cut":false,"hidden":false,"merged":[[0,0,4,7],[5,1,5,7],[14,5,17,5],[21,6,25,9],[7,1,8,2],[9,1,10,2],[11,1,14,2]]}
["Manual Instructivo de Ingreso al Programa de Abastecimiento Institucional (PAI)"]
[]
[]
[]
[]
["PASO 7.","Certificación de personería jurídica."]
[null,null,null,null,null,"Lugares donde pedir la certificación "]
[null,"Esta certificación puede ser emitida por el registro nacional la cual la puede obtener  ingresando al siguiente link "]
[]
[null,"https://www.rnpdigital.com/shopping/login.jspx "]
[]
[null," Realizar la compra de su certificado en cual tiene un costo de ₡ 2.800. Para comprar esta certificación lo único que necesita es registrarse en la página del Registro Nacional de la republica de Costa Rica."]
[]
[]
[]
[null,"También se puede emitir por medio de un notario publico o el ente estatal que los registra"]
[]
[]
["*"," No tener de emitida más de 2 meses"]

{"sheet":"Paso7 (2)","index":23,"n_rows":16,"n_cols":2,"rows_kept":16,"cut":false,"hidden":false,"merged":[[0,0,4,7],[14,5,17,5],[5,1,5,7],[8,1,9,3],[10,1,11,2],[12,1,13,2]]}
["Manual Instructivo de Ingreso al Programa de Abastecimiento Institucional (PAI)"]
[]
[]
[]
[]
["PASO 7.","Comprobante de que se encuentra al día en la póliza de trabajo"]
[]
[null,"Requisitos de suscripción al INS"]
["1.","La suscripción de cualquier seguro solo puede ser realizado de forma personal. En el caso de Personas Jurídicas, solo puede ser realizado por el representante legal que conste en la Personería Jurídica."]
[]
["2."," En caso no poder presentarse personalmente, puede enviar a una persona autorizada con un poder autenticado por un notario, indicando claramente el trámite que va a realizar."]
[]
["3."," Para todo trámite es requisito indispensable presentar el documento de identificación en original, vigente y buen estado."]
[]
[]
[null,"Página Web"]

{"sheet":"Paso8","index":24,"n_rows":19,"n_cols":2,"rows_kept":19,"cut":false,"hidden":false,"merged":[[0,0,4,7],[21,6,25,9],[10,1,11,2],[5,1,5,7],[7,1,8,2],[14,5,17,5]]}
["Manual Instructivo de Ingreso al Programa de Abastecimiento Institucional (PAI)"]
[]
[]
[]
[]
["PASO 8.","Certificación o constancia que está al día en el pago de las cuotas obrero-patronal con la CCSS"]
[]
[null,"Para este punto se puede realizar el trámite en línea ingresando al siguiente link  https://www.ccss.sa.cr/morosidad "]
[]
[]
[null,"Lo unico que necesita es la cedula jurídica para poder realizar la constancia en linea."]
[]
[]
[]
[]
[]
[null,"Cualquier consulta "]
[null,"Central telefónica"]
[null,"2539-0000"]

{"sheet":"Paso8 (2)","index":25,"n_rows":18,"n_cols":3,"rows_kept":18,"cut":false,"hidden":false,"merged":[[0,0,4,7],[5,1,5,7],[7,1,8,2],[9,1,9,2],[14,5,17,5]]}
["Manual Instructivo de Ingreso al Programa de Abastecimiento Institucional (PAI)"]
[]
[]
[]
[]
["PASO 8.","Certificación o constancia de que la empresa se encuentra al día en FODESAF  "]
[null,"Fondo de Asignaciones Familiares"]
[null,"Este trámite se puede solicitar ingresando al siguiente enlace "]
[]
[null,"https://fodesaf.go.cr/gestion_de_cobros/Certificado_digital_en_linea.html "]
[]
[]
[null,"Central telefónica"]
[null,"2547-3601 | 25473602"]
[null,"Dirección:"]
[null,"Calle 3. Av. 9-11, San José"]
[null,"Jornada laboral:"]
[null,"Lunes a viernes de 8:00am a 4:00pm","Página Web"]

{"sheet":"Paso9","index":26,"n_rows":18,"n_cols":3,"rows_kept":18,"cut":false,"hidden":false,"merged":[[0,0,4,6],[21,6,25,9],[9,1,9,2],[5,1,5,7],[7,1,8,2],[14,5,17,5]]}
["Manual Instructivo de Ingreso al Programa de Abastecimiento Institucional (PAI)"]
[]
[]
[]
[]
["PASO 9.","Certificación o constancia de que la empresa se encuentra al día en FODESAF  "]
[null,"Fondo de Asignaciones Familiares"]
[null,"Este trámite se puede solicitar ingresando al siguiente enlace "]
[]
[null,"https://fodesaf.go.cr/gestion_de_cobros/Certificado_digital_en_linea.html "]
[]
[]
[null,"Central telefónica"]
[null,"2547-3601 | 25473602"]
[null,"Dirección:"]
[null,"Calle 3. Av. 9-11, San José"]
[null,"Jornada laboral:","Página Web"]
[null,"Lunes a viernes de 8:00am a 4:00pm"]

{"sheet":"Paso9 (2)","index":27,"n_rows":18,"n_cols":2,"rows_kept":18,"cut":false,"hidden":false,"merged":[[5,1,5,7],[0,0,4,6]]}
["Manual Instructivo de Ingreso al Programa de Abastecimiento Institucional (PAI)"]
[]
[]
[]
[]
["PASO 9.","Fotocopia de servicio sanitario otorgado por el Ministerio de Salud "]
[]
[null,"El costo de este certificado en el Ministerio de Salud es aproximadamente ₡25 000."]
[]
[null,"Si no lo tiene, empiece por descargar el siguiente formulario, llenarlo y presentarlo a "]
[null,"la oficina del Ministerio más cercana, para solicitar este cerftificado"]
[]
[]
[]
[]
[]
[]
[null,"Página Web"]

{"sheet":"Paso10","index":28,"n_rows":18,"n_cols":7,"rows_kept":18,"cut":false,"hidden":false,"merged":[[0,0,4,6],[21,6,25,9],[8,1,9,3],[10,1,11,2],[12,1,13,2],[5,1,5,7],[14,5,17,5]]}
["Manual Instructivo de Ingreso al Programa de Abastecimiento Institucional (PAI)"]
[null,null,null,null,null,null,"Página Web"]
[]
[]
[]
["PASO 10.","Comprobante de que se encuentra al día en la póliza de trabajo"]
[]
[null,"Requisitos de suscripción al INS"]
["1.","La suscripción de cualquier seguro solo puede ser realizado de forma personal. En el caso de Personas Jurídicas, solo puede ser realizado por el representante legal que conste en la Personería Jurídica."]
[]
["2."," En caso no poder presentarse personalmente, puede enviar a una persona autorizada con un poder autenticado por un notario, indicando claramente el trámite que va a realizar."]
[]
["3."," Para todo trámite es requisito indispensable presentar el documento de identificación en original, vigente y buen estado."]
[]
[]
[]
[]
[null,null,"Página Web"]

{"sheet":"Paso10 (2)","index":29,"n_rows":11,"n_cols":2,"rows_kept":11,"cut":false,"hidden":false,"merged":[[5,1,5,7],[8,1,9,2],[14,5,17,5],[0,0,4,7],[10,1,11,2]]}
["Manual Instructivo de Ingreso al Programa de Abastecimiento Institucional (PAI)"]
[]
[]
[]
[]
["PASO 10.","Presentar certificación bancaria que indique número de cuenta cliente"]
[]
[]
[null,"Visitar la sucursal bancaria más cercana y a la cual posea una cuenta corriente o de ahorros, a pedir la certificación"]
[]
[null,"Si no posee cuenta bancaria, dirigirse a cualquier entidad financiera para abrir una cuenta nueva "]

{"sheet":"Paso11","index":30,"n_rows":18,"n_cols":2,"rows_kept":18,"cut":false,"hidden":false,"merged":[[5,1,5,7],[0,0,4,6]]}
["Manual Instructivo de Ingreso al Programa de Abastecimiento Institucional (PAI)"]
[]
[]
[]
[]
["PASO 11.","Fotocopia de servicio sanitario otorgado por el Ministerio de Salud "]
[]
[null,"El costo de este certificado en el Ministerio de Salud es aproximadamente ₡25 000."]
[]
[null,"Si no lo tiene, empiece por descargar el siguiente formulario, llenarlo y presentarlo a "]
[null,"la oficina del Ministerio más cercana, para solicitar este cerftificado"]
[]
[]
[]
[]
[]
[]
[null,"Página Web"]

{"sheet":"Paso11 (2)","index":31,"n_rows":314,"n_cols":22,"rows_kept":314,"cut":false,"hidden":false,"merged":[[294,3,298,4],[299,3,303,4],[304,3,308,4],[309,3,313,4],[261,3,266,4],[268,3,272,4],[273,3,277,4],[278,3,282,4],[283,3,287,4],[288,3,292,4],[256,3,260,4],[224,1,225,3],[224,4,225,4],[226,1,226,3],[226,4,231,4],[227,1,227,3],[228,1,228,3],[229,1,229,3],[230,1,230,3],[231,1,231,3],[233,3,237,4],[238,3,242,4],[243,3,247,4],[248,3,249,4],[251,3,255,4],[218,1,218,3],[218,4,223,4],[219,1,219,3],[220,1,220,3],[221,1,221,3],[222,1,222,3],[223,1,223,3],[212,1,212,3],[212,4,217,4],[213,1,213,3],[214,1,214,3],[215,1,215,3],[216,1,216,3],[217,1,217,3],[0,0,4,6],[199,1,204,3],[199,4,204,4],[205,1,210,3],[205,4,210,4],[196,1,198,3],[196,4,198,4],[5,1,5,7],[8,1,14,3],[15,1,19,3]]}
["Manual Instructivo de Ingreso al Programa de Abastecimiento Institucional (PAI)"]
[]
[]
[]
[]
["PASO 11.","Actividad Pecuaria CVO de SENASA"]
[null,null,null,null,null,"Región","SEDE","TELÉFONO",null,null,null,null,null,null,null,null,null,null,null,"Central","2587-1880"]
[null,"¿Qué es el CVO?",null,null,null,null,null,{"$f":"+VLOOKUP(G8,U17:V64,2,0)","v":{"$error":"#N/A"}},null,null,null,null,null,null,null,null,null,null,null,"Huetar Norte","2587-1881"]
[null,"El Certificado Veterinario de Operación es un documento mediante el cual se hace constar  que la persona física o jurídica solicitante se dedica a una o varias actividades de las mencionadas en el artículo 56 de la ley Nº  8495,  y además cumple con la Ley 8799 con respecto al control, regulación, prevención y sanciones  el destace, la matanza, el apoderamiento, el robo, el hurto, la movilización, el transporte, la comercialización, el contrabando y la negociación de ganado bovino, así como de sus productos y subproductos, en el territorio nacional.",null,null,null,null,null,null,null,null,null,null,null,null,null,null,null,null,null,"Huetar Caribe","2587-1882"]
[null,null,null,null,null,null,null,null,null,null,null,null,null,null,null,null,null,null,null,"Central Oriental","2587-1883"]
[null,null,null,null,null,null,null,null,null,null,null,null,null,null,null,null,null,null,null,"Central Occidental","2587-1884"]
[null,null,null,null,null,null,null,null,null,null,null,null,null,null,null,null,null,null,null,"Brunca","2587-1885"]
[null,null,null,null,null,null,null,null,null,null,null,null,null,null,null,null,null,null,null,"Pacífico Central","2587-1886"]
[null,null,null,null,null,null,null,null,null,null,null,null,null,null,null,null,null,null,null,"Chorotega","2587-1887"]
[]
[null,"Se entienden,  dentro del grupo de actividades que necesitan el CVO, las que concentren y comercialicen animales, las que almacenen, transporten y vendan productos y subproductos de origen animal, los  destinados al sacrificio de animales o que industrialicen, empaquen, refrigeren, procesen o expendan en el nivel mayorista, productos, subproductos o derivados de animales para el consumo humano o animal, los que vendan material genético, entre otros. "]
[null,null,null,null,null,null,null,null,null,null,null,null,null,null,null,null,null,null,null,"CHOROTEGA","Liberia. MAG-SENASA ","Tel. 2666-3985"]
[null,null,null,null,null,null,null,null,null,null,null,null,null,null,null,null,null,"CHOROTEGA",null,"CHOROTEGA"," Nicoya. MAG ","Tel. 2685-3402/2685-5179"]
[null,null,null,null,null,null,null,null,null,null,null,null,null,null,null,null,null,"PACIFICO_CENTRAL",null,"CHOROTEGA","Nandayure. MAG ","Tel. 2657-7116"]
[null,null,null,null,null,null,null,null,null,null,null,null,null,null,null,null,null,"BRUNCA",null,"CHOROTEGA","Tilarán. MAG","Tel. 2695-5011/2695-2019"]
[null,null,null,null,null,"Página Web, para ver los requisitos",null,null,null,null,null,null,null,null,null,null,null,"CENTRAL_SUR ",null,"CHOROTEGA","Hojancha. MAG","Tel 8680-1432"]
[null,null,null,null,null,null,null,null,null,null,null,null,null,null,null,null,null,"CENTRAL_ORIENTAL",null,"CHOROTEGA","Santa Cruz. MAG","Tel. 2680-0085"]
[null,null,null,null,null,null,null,null,null,null,null,null,null,null,null,null,null,"CENTRAL_OCCIDENTAL  ",null,"CHOROTEGA","Santa Cruz. Cámara","Tel. 2680-1432"]
[null,null,null,null,null,null,null,null,null,null,null,null,null,null,null,null,null,"HUETAR_NORTE ",null,"CHOROTEGA","La Cruz. MAG","Tel. 2679-9194"]
[null,null,null,null,null,null,null,null,null,null,null,null,null,null,null,null,null,"HUETAR_CARIBE",null,"CHOROTEGA","Abangares. MAG","Tel. 2662-0179"]
[null,null,null,null,null,null,null,null,null,null,null,null,null,null,null,null,null,null,null,"CHOROTEGA","Paquera","Tel. 2641-1446"]
[null,null,null,null,null,null,null,null,null,null,null,null,null,null,null,null,null,null,null,"PACIFICO_CENTRAL","Esparza, SENASA","Tel. 2635-2736"]
[null,null,null,null,null,null,null,null,null,null,null,null,null,null,null,null,null,null,null,"PACIFICO_CENTRAL","Parrita MAG ","Tel.  2779-9169"]
[null,null,null,null,null,null,null,null,null,null,null,null,null,null,null,null,null,null,null,"PACIFICO_CENTRAL","Orotina. ","Tel. 2428-8017"]
[null,null,null,null,null,null,null,null,null,null,null,null,null,null,null,null,null,null,null,"PACIFICO_CENTRAL","Monteverde","Tel. 2645-7036"]
[null,null,null,null,null,null,null,null,null,null,null,null,null,null,null,null,null,null,null,"PACIFICO_CENTRAL","Garabito","Tel. 2643-4734"]
[null,null,null,null,null,null,null,null,null,null,null,null,null,null,null,null,null,null,null,"BRUNCA","Pérez Zeledón. SENASA. ","Tel. 2771-1215 / 2770-2255 / 2587-188"]
[null,null,null,null,null,null,null,null,null,null,null,null,null,null,null,null,null,null,null,"BRUNCA","Pérez Zeledón. Subasta Ganadera de Pérez Zeledón. ","Tel. 2771-0237 / 2770-4968"]
[null,null,null,null,null,null,null,null,null,null,null,null,null,null,null,null,null,null,null,"BRUNCA","Perez Zeledón Municipalidad","Tel. 2771-0390"]
[null,null,null,null,null,null,null,null,null,null,null,null,null,null,null,null,null,null,null,"BRUNCA","Buenos Aires. Oficina Cantonal,  MAG.","Tel. 2730-0158"]
[null,null,null,null,null,null,null,null,null,null,null,null,null,null,null,null,null,null,null,"BRUNCA","Buenos Aires Municipalidad","Tel. 8867-5929"]
[null,null,null,null,null,null,null,null,null,null,null,null,null,null,null,null,null,null,null,"BRUNCA","Coto Brus, Oficina Cantonal","Tel. 2773-3150"]
[null,null,null,null,null,null,null,null,null,null,null,null,null,null,null,null,null,null,null,"BRUNCA","Subasta Coto Bruceña.","Tel. 8817-7722"]
[null,null,null,null,null,null,null,null,null,null,null,null,null,null,null,null,null,null,null,"BRUNCA","Coto Brus Municipalidad","Tel. 2773-3128"]
[null,null,null,null,null,null,null,null,null,null,null,null,null,null,null,null,null,null,null,"BRUNCA","Osa, Oficina Cantonal MAG  ","Tel. 2786-7109"]
[null,null,null,null,null,null,null,null,null,null,null,null,null,null,null,null,null,null,null,"BRUNCA","Subasta Ganadera Salamá.","Tel. 2783-4835 / 8311-3739"]
[null,null,null,null,null,null,null,null,null,null,null,null,null,null,null,null,null,null,null,"BRUNCA","Osa, Municipalidad","Tel 2782-0000"]
[null,null,null,null,null,null,null,null,null,null,null,null,null,null,null,null,null,null,null,"BRUNCA","Golfito, Municipalidad","Tel 2775-0523"]
[null,null,null,null,null,null,null,null,null,null,null,null,null,null,null,null,null,null,null,"BRUNCA","Corredores, Municipalidad","Tel 2783-3939"]
[null,null,null,null,null,null,null,null,null,null,null,null,null,null,null,null,null,null,null,"CENTRAL_SUR ","Puriscal. MAG-SENASA. ","Tel. 2416-5081 y 2587-1883 ext.2028"]
[null,null,null,null,null,null,null,null,null,null,null,null,null,null,null,null,null,null,null,"CENTRAL_SUR ","Aserrí. MAG.","Tel. 2230-4820"]
[null,null,null,null,null,null,null,null,null,null,null,null,null,null,null,null,null,null,null,"CENTRAL_SUR ","Acosta. MAG. ","Tel. 2410-0164"]
[null,null,null,null,null,null,null,null,null,null,null,null,null,null,null,null,null,null,null,"CENTRAL_SUR ","Santa Ana. MAG. ","Tel. 2282-2871"]
[null,null,null,null,null,null,null,null,null,null,null,null,null,null,null,null,null,null,null,"CENTRAL_ORIENTAL","Ochomogo. SENASA. ","Tel. 2587-1600"]
[null,null,null,null,null,null,null,null,null,null,null,null,null,null,null,null,null,null,null,"CENTRAL_ORIENTAL","Dota.  ","Tel. 2541-1140"]
[null,null,null,null,null,null,null,null,null,null,null,null,null,null,null,null,null,null,null,"CENTRAL_ORIENTAL","Turrialba. ","Tel. 2556-9367"]
[null,null,null,null,null,null,null,null,null,null,null,null,null,null,null,null,null,null,null,"CENTRAL_ORIENTAL","Paraíso. MAG.  ","Tel. 2574-3187"]
[null,null,null,null,null,null,null,null,null,null,null,null,null,null,null,null,null,null,null,"CENTRAL_OCCIDENTAL  ","Grecia. SENASA ","Tel. 25871884, Ext. 2020 y 2021"]
[null,null,null,null,null,null,null,null,null,null,null,null,null,null,null,null,null,null,null,"CENTRAL_OCCIDENTAL  ","San Ramón. MAG","Tel. 2445-6395"]
[null,null,null,null,null,null,null,null,null,null,null,null,null,null,null,null,null,null,null,"CENTRAL_OCCIDENTAL  ","Heredia. MAG  ","Tel. 2261-4638"]
[null,null,null,null,null,null,null,null,null,null,null,null,null,null,null,null,null,null,null,"HUETAR_NORTE ","Ciudad Quesada. SENASA ","Tel. 2460-7480"]
[null,null,null,null,null,null,null,null,null,null,null,null,null,null,null,null,null,null,null,"HUETAR_NORTE ","Santa Rosa de Poco Sol.  MAG-SENASA ","Tel. 2477-7156"]
[null,null,null,null,null,null,null,null,null,null,null,null,null,null,null,null,null,null,null,"HUETAR_NORTE ","Los Chiles. .","Tel. 2471-1255"]
[null,null,null,null,null,null,null,null,null,null,null,null,null,null,null,null,null,null,null,"HUETAR_NORTE ","Upala. MAG-SENASA ","Tel. 2470-2473"]
[null,null,null,null,null,null,null,null,null,null,null,null,null,null,null,null,null,null,null,"HUETAR_NORTE ","Sarapiquí. MAG-SENASA ","Tel. 2766-5743"]
[null,null,null,null,null,null,null,null,null,null,null,null,null,null,null,null,null,null,null,"HUETAR_CARIBE","Guápiles, SENASA.    ","Tel. 2710-4580   2587-1882"]
[null,null,null,null,null,null,null,null,null,null,null,null,null,null,null,null,null,null,null,"HUETAR_CARIBE","Limón Oficina del MAG. ","Tel. 2795-3814"]
[null,null,null,null,null,null,null,null,null,null,null,null,null,null,null,null,null,null,null,"HUETAR_CARIBE","Siquirres. MAG  ","Tel. 2768-2104"]
[null,null,null,null,null,null,null,null,null,null,null,null,null,null,null,null,null,null,null,"HUETAR_CARIBE","Cahuita. MAG. ","Tel. 2755-0268    2755-1104   "]
[]
[]
[]
[]
[]
[]
[]
[]
[]
[]
[]
[]
[]
[]
[]
[]
[]
[]
[]
[]
[]
[]
[]
[]
[]
[]
[]
[]
[]
[]
[]
[]
[]
[]
[]
[]
[]
[]
[]
[]
[]
[]
[]
[]
[]
[]
[]
[]
[]
[]
[]
[]
[]
[]
[]
[]
[]
[]
[]
[]
[]
[]
[]
[]
[]
[]
[]
[]
[]
[]
[]
[]
[]
[]
[]
[]
[]
[]
[]
[]
[]
[]
[]
[]
[]
[]
[]
[]
[]
[]
[]
[]
[]
[]
[]
[]
[]
[]
[]
[]
[]
[]
[]
[]
[]
[]
[]
[]
[]
[]
[]
[]
[]
[]
[]
[]
[]
[]
[]
[]
[]
[]
[]
[]
[]
[]
[]
[]
[]
[]
[]
[]
[]
[]
[]
[]
[]
[]
[]
[]
[]
[]
[]
[]
[]
[]
[]
["4 CENTRAL SUR "]
["Puriscal. MAG-SENASA. El Estero diagonal al Hospital","Recepción y emisión de CVO",null,null,"Lunes a viernes de 8 am a 3:30 pm","Tel. 2416-5081 y 2587-1883 ext.2028"]
[null,"Actualización registro anual  CVO",null,null,null,"ccruz@senasa.go.cr"]
[null,"Inscripción de fincas"]
[null,"Entrega de bitácoras"]
[null,"Entrega de guías"]
[null,null,null,null,null,null,null,"Puriscal. MAG-SENASA. El Estero diagonal al Hospital"]
["Aserrí. MAG. Contiguo al Centro Diurno de Ancianos.","Recepción y emisión de CVO",null,null,"Lunes a viernes de 8 am a 3:30 pm, excepto los miércoles","Tel. 2230-4820",null,"Aserrí. MAG. Contiguo al Centro Diurno de Ancianos."]
[null,"Actualización registro anual  CVO",null,null,null,"dmendez@senasa.go.cr ",null,"Acosta. MAG. Frente al parque en San Ignacio."]
[null,"Inscripción de fincas",null,null,null,null,null,"Santa Ana. MAG. Frente a Palí"]
[null,"Entrega de bitácoras"]
[null,"Entrega de guías"]
[]
["Acosta. MAG. Frente al parque en San Ignacio.","Recepción y entrega de trámites para CVO y registro anual",null,null,"Miércoles de 8 am a 12 md","Tel. 2410-0164"]
[null,null,null,null,null,"dmendez@senasa.go.cr"]
["Santa Ana. MAG. Frente a Palí","Recepción y emisión de CVO",null,null,"Lunes de 8 am a 3:00 pm","Tel. 2282-2871"]
[null,"Actualización registro anual  CVO",null,null,null,"sromero@senasa.go.cr"]
[null,"Inscripción de fincas"]
[null,"Entrega de bitácoras"]
[null,"Entrega de guías"]
[]
["5 REGIÓN CENTRAL ORIENTAL (Metropolitana) "]
["Ochomogo. SENASA. San Nicolás de Cartago, 600Oeste de RECOPE, cuesta del Fierro",null,"Recepción y emisión de CVO","Lunes a viernes de 8 am a 3:30 pm.",null,"Tel. 2587-1600"]
[null,null,"Actualización registro anual CVO",null,null,"srojas@senasa.go.cr"]
[null,null,"Inscripción de fincas",null,null,"csaenz@senasa.go.cr"]
[null,null,"Entrega de bitácoras"]
[null,null,"Entrega de guías"]
["Dota.  Del Banco Nacional 100 al sur",null,"Recepción y emisión de CVO","Miércoles de 8 am a 3:30 pm",null,"Tel. 2541-1140"]
[null,null,"Actualización registro anual CVO",null,null,"chaug@senasa.go.cr "]
[null,null,"Inscripción de fincas"]
[null,null,"Entrega de bitácoras"]
[null,null,"Entrega de guías"]
["Turrialba. Barrio Clodomiro Picado, costado oeste de escuela de enseñanza especial.",null,"Recepción y emisión de CVO","Lunes a viernes de 8 am a 3:30 pm",null,"Tel. 2556-9367"]
[null,null,"Actualización registro anual CVO",null,null,"jennylo.aguilar@gmail.com"]
[null,null,"Inscripción de fincas",null,null,"wvargas@go.cr"]
[null,null,"Entrega de bitácoras"]
[null,null,"Entrega de guías"]
["Paraíso. MAG. 250 al sur del mercado municipal  ",null,"Recepción de documentos","Viernes de 8 am a 3:30 pm",null,"Tel. 2574-3187"]
[null,null,"Entrega de guías ",null,null,"rafaelsolanomadriz@gmail.com "]
["6 REGIÓN CENTRAL OCCIDENTAL  "]
["Grecia. SENASA Contiguo a la delegación de Tránsito",null,"Recepción y emisión de CVO","Lunes  a viernes de 8 am a 3:30 pm",null,"Tel. 25871884, Ext. 2020 y 2021"]
[null,null,"Actualización registro anual CVO",null,null,"Fax. 24943605"]
[null,null,"Inscripción de fincas",null,null,"terrafirme.cr@gmail.com"]
[null,null,"Entrega de bitácoras",null,null,"cconejo@senasa.go.cr"]
[null,null,"Entrega de guías",null,null,"emiranda@senasa.go.cr "]
["San Ramón. MAG, frente a Hospital Carlos Valverde Vega",null,"Recepción y emisión de CVO","De lunes a viernes de 8 am a 3:30 pm",null,"Tel. 2445-6395"]
[null,null,"Actualización registro anual CVO",null,null,"raraya@senasa.go.cr"]
[null,null,"Inscripción de fincas",null,null,"merodriguez@senasa.go.cr"]
[null,null,"Entrega de bitácoras"]
[null,null,"Entrega de guías"]
["Heredia. MAG costado Oeste del Estadio Rosabal Cordero ",null,"Recepción y emisión de CVO","Lunes a viernes de 8 am a 3:30 pm",null,"Tel. 2261-4638"]
[null,null,"Actualización registro anual CVO",null,null,"Fax. 22614638"]
[null,null,"Inscripción de fincas",null,null,"tmurrell@senasa.go.cr "]
[null,null,"Entrega de bitácoras"]
[null,null,"Entrega de guías"]
[]
["7 REGIÓN HUETAR NORTE "]
["Ciudad Quesada. SENASA ",null,"Recepción y emisión de CVO","Lunes a viernes de 8 am a 3:30 pm",null,"Tel. 2460-7480"]
[null,null,"Actualización registro anual CVO"]
[null,null,"Inscripción de fincas"]
[null,null,"Entrega de bitácoras"]
[null,null,"Entrega de guías"]
["Santa Rosa de Poco Sol.  MAG-SENASA ",null,"Recepción y emisión de CVO","Lunes a viernes de 8 am a 3:30 pm",null,"Tel. 2477-7156"]
[null,null,"Actualización registro anual CVO"]
[null,null,"Inscripción de fincas"]
[null,null,"Entrega de bitácoras"]
[null,null,"Entrega de guías"]
["Los Chiles. Puesto de Cuarentena.",null,"Recepción y emisión de CVO","Lunes a viernes de 8 am a 3:30 pm",null,"Tel. 2471-1255"]
[null,null,"Actualización registro anual CVO"]
[null,null,"Inscripción de fincas"]
[null,null,"Entrega de bitácoras"]
[null,null,"Entrega de guías"]
["Upala. MAG-SENASA ",null,"Recepción y emisión de CVO","Lunes a viernes de 8 am a 3:30 pm",null,"Tel. 2470-2473"]
[null,null,"Actualización registro anual CVO"]
[null,null,"Inscripción de fincas"]
[null,null,"Entrega de bitácoras"]
[null,null,"Entrega de guías"]
["Sarapiquí. MAG-SENASA, Puerto Viejo ",null,"Recepción y emisión de CVO","Lunes a viernes de 8 am a 3:30 pm",null,"Tel. 2766-5743"]
[null,null,"Actualización registro anual CVO"]
[null,null,"Inscripción de fincas"]
[null,null,"Entrega de bitácoras"]
[null,null,"Entrega de guías"]
["8 REGIÓN  HUETAR CARIBE"]
["Guápiles, SENASA.  Del  Servicentro Sta. Clara 500 N, 400 E, Finca Experimental  Los Diamantes  ",null,"Recepción y emisión de CVO","Lunes a viernes de 8 am a 3:30 pm",null,"Tel. 2710-4580   2587-1882"]
[null,null,"Actualización registro anual CVO",null,null,"jcaraya@senasa.go.cr "]
[null,null,"Inscripción de fincas"]
[null,null,"Entrega de bitácoras"]
[null,null,"Entrega de guías"]
["Limón Oficina del MAG. Barrio Los Corales No. 2, detrás de Iglesia de Los Santos de los Últimos Días (Mormones)",null,"Recepción y emisión de CVO","Lunes, jueves y viernes de 8 am a 3:30 pm",null,"Tel. 2795-3814"]
[null,null,"Actualización registro anual CVO",null,null,"wmoraga@senasa.go.cr"]
[null,null,"Inscripción de fincas"]
[null,null,"Entrega de bitácoras"]
[null,null,"Entrega de guías",null,null," "]
["Siquirres. MAG, Ruta 32 frente a Servicentro Siquirres  ",null,"Recepción y emisión de CVO","Miércoles, jueves y  viernes de 8 am a 3:30 pm",null,"Tel. 2768-2104"]
[null,null,"Actualización registro anual CVO",null,null,"jmendez@senasa.go.cr"]
[null,null,"Inscripción de fincas"]
[null,null,"Entrega de bitácoras"]
[null,null,"Entrega de guías"]
["Cahuita. MAG. Del parque 100 Norte (atiende Talamanca)",null,"Recepción y emisión de CVO","Martes y Miércoles, de 8 am a 3:30 pm",null,"Tel. 2755-0268    2755-1104   "]
[null,null,"Actualización registro anual CVO",null,null,"2755-0624 ext. 112"]
[null,null,"Inscripción de fincas",null,null,"wmoraga@senasa.go.cr"]
[null,null,"Entrega de bitácoras"]
[null,null,"Entrega de guías"]

{"sheet":"Paso12","index":32,"n_rows":49,"n_cols":6,"rows_kept":49,"cut":false,"hidden":false,"merged":[[21,6,25,9],[7,1,7,3],[9,1,9,2],[0,0,4,4],[14,5,17,5],[11,0,12,0],[5,1,5,2],[12,1,12,3],[13,2,13,4],[14,2,14,4],[15,2,15,4]]}
["Manual Instructivo de Ingreso al Programa de Abastecimiento Institucional (PAI)"]
[]
[]
[]
[]
["PASO 12.","Presentar certificación de Administración tributaria "]
[]
[null,"Este documento se puede conseguir en la Municipalidad o en las direcciones regionales de Hacienda."]
[]
[null,"Acontinuación se le desglosan los contactos de las administraciones tributarias"]
[]
["Seleccione la administración tributaria","Administración Tributaria de Puntarenas"]
[null,"CONTACTOS"]
[null,"Dirección",{"$f":"+VLOOKUP(B12,B38:E49,2,0)","v":"Costado sur del Liceo José Martí, Puntarenas Centro."}]
[null,"Teléfono",{"$f":"+VLOOKUP(B12,B39:E50,3,0)","v":"2539-4945; 2539-4917; 2539-4930"}]
[null,"Fax",{"$f":"+VLOOKUP(B12,B40:E51,4,0)","v":"2661-0490"}]
[]
[]
[]
[]
[]
[]
[]
[]
[]
[]
[null,"Administración Tributaria de San José Oeste"]
[null,"Administración Tributaria de San José Este"]
[null,"Administración Tributaria de Cartago"]
[null,"Administración Tributaria Zona Sur"]
[null,"Administración Tributaria de Puntarenas"]
[null,"Administración Tributaria de Guanacaste"]
[null,"Administración Tributaria de Alajuela"]
[null,"Administración Tributaria de Heredia"]
[null,"Administración Tributaria Zona Norte"]
[null,"Administración Tributaria de Limón"]
[null,"Dirección de Grandes Contribuyentes Nacionales",null,null,null,"Administración Tributaria de San José Oeste"]
[null,"Adm Trib","Direccion","Telefono","Fax",{"$f":"+VLOOKUP(F37,B38:E49,2,0)","v":"Barrio Don Bosco, Paseo Colón, calle 26, Avenidas 6 y 8. Edificio Centro"}]
[null,"Administración Tributaria de San José Oeste","Barrio Don Bosco, Paseo Colón, calle 26, Avenidas 6 y 8. Edificio Centro","2547-00-00","2258-1161",{"$f":"+VLOOKUP(F37,B38:E49,3,0)","v":"2547-00-00"}]
[null,"Administración Tributaria de San José Este","Edificio Outlet Mall, costado sur de la Iglesia Católica, San Pedro de Montes de Oca.","2524-2705","2234-15-20",{"$f":"+VLOOKUP(F37,B38:E49,4,0)","v":"2258-1161"}]
[null,"Administración Tributaria de Cartago","50 metros oeste del Banco Crédito Agrícola de Cartago, Agencia Los Ángeles","2551-5710 y 2591-0186","2551-5710 y 2591-0186 extensiones 151-128-133"]
[null,"Administración Tributaria Zona Sur","De la Cruz Roja 50 metros sur, San Isidro de El General, Pérez Zeledón, San José.","2539-4299","2771-34-81"]
[null,"Administración Tributaria de Puntarenas","Costado sur del Liceo José Martí, Puntarenas Centro.","2539-4945; 2539-4917; 2539-4930","2661-0490"]
[null,"Administración Tributaria de Guanacaste","Tercer nivel del Mall Plaza Liberia, ubicado 1 km al sur de la entrada principal a Liberia, carretera Interamericana.","2666-1063; 2666-1060","2666-1063 Ext. 103"]
[null,"Administración Tributaria de Alajuela","Calle 0, avenidas 1 y 3 de la esquina noroeste de la Catedral, 75 metros al norte. Edificio antiguo Banco Anglo, Alajuela Centro; o 75 mts. Norte de la Pop’s en Alajuela","2442-5313, 2442-9776","2443-0745"]
[null,"Administración Tributaria de Heredia","600 metros norte de la Universidad Nacional, Heredia","2260-67-60","2260-55-33"]
[null,"Administración Tributaria Zona Norte","300 metros sur del Liceo San Carlos, Ciudad Quesada.","2539-4646","2460-4296"]
[null,"Administración Tributaria de Limón","Costado sur del Banco Popular y de Desarrollo Comunal, 2ª planta del Edificio de la Aduana, Limón Centro","2798-13-57 y 2798-40-03"," 2798-0616"]
[null,"Dirección de Grandes Contribuyentes Nacionales","San José, Zapote Edificio Mira (4º piso), 300 metros al oeste de Casa presidencial.","2539-6900, 2539-6936, 2539-6918","2234-7789"]

{"sheet":"Paso12 (2)","index":33,"n_rows":59,"n_cols":7,"rows_kept":59,"cut":false,"hidden":false,"merged":[[5,1,5,7],[14,0,15,0],[0,0,4,8]]}
["Manual Instructivo de Ingreso al Programa de Abastecimiento Institucional (PAI)"]
[]
[]
[]
[]
["PASO 12.","Productos Acuícolas y pesqueros, certificación extendida de INCOPESCA"]
[]
[null,"Presentar fotocopia de certificación  extendida por INCOPESCA donde se acredite lo siguiente."]
[]
[null,"1. Licencia de pesca comercial"]
[null,"2. Autorización de comercialización"]
[null,"3. Carné de venta de productos pesqueros o permiso para puesto de recibo-pescadería-planta de procesamiento de productos pesqueros."]
[]
[]
["Seleccione una opción","Oficinas","Teléfono"]
[null,null,{"$f":"+VLOOKUP(B16,B48:C59,2,0)","v":{"$error":"#N/A"}}]
[]
[null,null,null,null,null,null,"Página Web"]
[]
[]
[]
[]
[]
[]
[]
[]
[]
[]
[]
[]
[]
[]
[]
[]
[]
[]
[]
[]
[]
[]
[]
[]
[]
[]
[]
[]
[]
[null,"Sede Central Puntarenas","2630-0600"]
[null,"Quepos","2630-0624"]
[null,"Golfito","2630-0625"]
[null,"Limón","2630-0627"]
[null,"Guápiles","2763-3293"]
[null,"San José","2630-0629"]
[null,"Heredia","2630-0628"]
[null,"La Cruz Guanacaste","2630-0621"]
[null,"El Coco","2630-0622"]
[null,"Nicoya","2630-0623"]
[null,"San Carlos",26300630]
[null,"Santa María de Dota","2200-5049"]

{"sheet":"Paso13","index":34,"n_rows":9,"n_cols":2,"rows_kept":9,"cut":false,"hidden":false,"merged":[[21,6,25,9],[8,1,9,2],[5,1,5,7],[14,5,17,5],[0,0,4,6]]}
["Manual Instructivo de Ingreso al Programa de Abastecimiento Institucional (PAI)"]
[]
[]
[]
[]
["PASO 13.","Presentar certificación bancaria que indique número de cuenta cliente"]
[]
[]
[null,"Visitar la sucursal bancaria más cercana y a la cual posea una cuenta corriente o de ahorros, a pedir la certificación"]

{"sheet":"Paso13 (2)","index":35,"n_rows":14,"n_cols":2,"rows_kept":14,"cut":false,"hidden":false,"merged":[[5,1,5,7],[8,1,12,2],[0,0,4,6],[13,1,15,2]]}
["Manual Instructivo de Ingreso al Programa de Abastecimiento Institucional (PAI)"]
[]
[]
[]
[]
["PASO 13.","Individual que procesen en plantas de terceros o se suplan de productos con terceros "]
[]
[]
[null,"Deben remitir nota firmada por el apoderado general o propietario, junto con documentos probatorios que detalle los términos de relación comercial, información a suministrarse bajo declaración jurada o certificada. De existir un contrato de arrendamiento deberá de presentarlo debidamente protocolizado "]
[]
[]
[]
[]
[null,"En el caso de que todo sea propio, hacer caso omiso de este punto."]

{"sheet":"Paso14","index":36,"n_rows":314,"n_cols":22,"rows_kept":314,"cut":false,"hidden":false,"merged":[[243,3,247,4],[248,3,249,4],[233,3,237,4],[278,3,282,4],[283,3,287,4],[268,3,272,4],[273,3,277,4],[251,3,255,4],[256,3,260,4],[261,3,266,4],[238,3,242,4],[299,3,303,4],[304,3,308,4],[309,3,313,4],[288,3,292,4],[294,3,298,4],[224,1,225,3],[224,4,225,4],[226,1,226,3],[227,1,227,3],[218,1,218,3],[219,1,219,3],[220,1,220,3],[221,1,221,3],[222,1,222,3],[228,1,228,3],[229,1,229,3],[230,1,230,3],[231,1,231,3],[226,4,231,4],[199,1,204,3],[199,4,204,4],[223,1,223,3],[205,1,210,3],[205,4,210,4],[212,1,212,3],[213,1,213,3],[214,1,214,3],[215,1,215,3],[216,1,216,3],[217,1,217,3],[212,4,217,4],[218,4,223,4],[0,0,4,6],[5,1,5,7],[8,1,14,3],[15,1,19,3],[196,1,198,3],[196,4,198,4]]}
["Manual Instructivo de Ingreso al Programa de Abastecimiento Institucional (PAI)"]
[]
[]
[]
[]
["PASO 14.","Actividad Pecuaria CVO de SENASA"]
[null,null,null,null,null,"Región","SEDE","TELÉFONO",null,null,null,null,null,null,null,null,null,null,null,"Central","2587-1880"]
[null,"¿Qué es el CVO?",null,null,null,null,null,{"$f":"+VLOOKUP(G8,U17:V64,2,0)","v":{"$error":"#N/A"}},null,null,null,null,null,null,null,null,null,null,null,"Huetar Norte","2587-1881"]
[null,"El Certificado Veterinario de Operación es un documento mediante el cual se hace constar  que la persona física o jurídica solicitante se dedica a una o varias actividades de las mencionadas en el artículo 56 de la ley Nº  8495,  y además cumple con la Ley 8799 con respecto al control, regulación, prevención y sanciones  el destace, la matanza, el apoderamiento, el robo, el hurto, la movilización, el transporte, la comercialización, el contrabando y la negociación de ganado bovino, así como de sus productos y subproductos, en el territorio nacional.",null,null,null,null,null,null,null,null,null,null,null,null,null,null,null,null,null,"Huetar Caribe","2587-1882"]
[null,null,null,null,null,null,null,null,null,null,null,null,null,null,null,null,null,null,null,"Central Oriental","2587-1883"]
[null,null,null,null,null,null,null,null,null,null,null,null,null,null,null,null,null,null,null,"Central Occidental","2587-1884"]
[null,null,null,null,null,null,null,null,null,null,null,null,null,null,null,null,null,null,null,"Brunca","2587-1885"]
[null,null,null,null,null,null,null,null,null,null,null,null,null,null,null,null,null,null,null,"Pacífico Central","2587-1886"]
[null,null,null,null,null,null,null,null,null,null,null,null,null,null,null,null,null,null,null,"Chorotega","2587-1887"]
[]
[null,"Se entienden,  dentro del grupo de actividades que necesitan el CVO, las que concentren y comercialicen animales, las que almacenen, transporten y vendan productos y subproductos de origen animal, los  destinados al sacrificio de animales o que industrialicen, empaquen, refrigeren, procesen o expendan en el nivel mayorista, productos, subproductos o derivados de animales para el consumo humano o animal, los que vendan material genético, entre otros. "]
[null,null,null,null,null,null,null,null,null,null,null,null,null,null,null,null,null,null,null,"CHOROTEGA","Liberia. MAG-SENASA ","Tel. 2666-3985"]
[null,null,null,null,null,null,null,null,null,null,null,null,null,null,null,null,null,"CHOROTEGA",null,"CHOROTEGA"," Nicoya. MAG ","Tel. 2685-3402/2685-5179"]
[null,null,null,null,null,null,null,null,null,null,null,null,null,null,null,null,null,"PACIFICO_CENTRAL",null,"CHOROTEGA","Nandayure. MAG ","Tel. 2657-7116"]
[null,null,null,null,null,null,null,null,null,null,null,null,null,null,null,null,null,"BRUNCA",null,"CHOROTEGA","Tilarán. MAG","Tel. 2695-5011/2695-2019"]
[null,null,null,null,null,"Página Web, para ver los requisitos",null,null,null,null,null,null,null,null,null,null,null,"CENTRAL_SUR ",null,"CHOROTEGA","Hojancha. MAG","Tel 8680-1432"]
[null,null,null,null,null,null,null,null,null,null,null,null,null,null,null,null,null,"CENTRAL_ORIENTAL",null,"CHOROTEGA","Santa Cruz. MAG","Tel. 2680-0085"]
[null,null,null,null,null,null,null,null,null,null,null,null,null,null,null,null,null,"CENTRAL_OCCIDENTAL  ",null,"CHOROTEGA","Santa Cruz. Cámara","Tel. 2680-1432"]
[null,null,null,null,null,null,null,null,null,null,null,null,null,null,null,null,null,"HUETAR_NORTE ",null,"CHOROTEGA","La Cruz. MAG","Tel. 2679-9194"]
[null,null,null,null,null,null,null,null,null,null,null,null,null,null,null,null,null,"HUETAR_CARIBE",null,"CHOROTEGA","Abangares. MAG","Tel. 2662-0179"]
[null,null,null,null,null,null,null,null,null,null,null,null,null,null,null,null,null,null,null,"CHOROTEGA","Paquera","Tel. 2641-1446"]
[null,null,null,null,null,null,null,null,null,null,null,null,null,null,null,null,null,null,null,"PACIFICO_CENTRAL","Esparza, SENASA","Tel. 2635-2736"]
[null,null,null,null,null,null,null,null,null,null,null,null,null,null,null,null,null,null,null,"PACIFICO_CENTRAL","Parrita MAG ","Tel.  2779-9169"]
[null,null,null,null,null,null,null,null,null,null,null,null,null,null,null,null,null,null,null,"PACIFICO_CENTRAL","Orotina. ","Tel. 2428-8017"]
[null,null,null,null,null,null,null,null,null,null,null,null,null,null,null,null,null,null,null,"PACIFICO_CENTRAL","Monteverde","Tel. 2645-7036"]
[null,null,null,null,null,null,null,null,null,null,null,null,null,null,null,null,null,null,null,"PACIFICO_CENTRAL","Garabito","Tel. 2643-4734"]
[null,null,null,null,null,null,null,null,null,null,null,null,null,null,null,null,null,null,null,"BRUNCA","Pérez Zeledón. SENASA. ","Tel. 2771-1215 / 2770-2255 / 2587-188"]
[null,null,null,null,null,null,null,null,null,null,null,null,null,null,null,null,null,null,null,"BRUNCA","Pérez Zeledón. Subasta Ganadera de Pérez Zeledón. ","Tel. 2771-0237 / 2770-4968"]
[null,null,null,null,null,null,null,null,null,null,null,null,null,null,null,null,null,null,null,"BRUNCA","Perez Zeledón Municipalidad","Tel. 2771-0390"]
[null,null,null,null,null,null,null,null,null,null,null,null,null,null,null,null,null,null,null,"BRUNCA","Buenos Aires. Oficina Cantonal,  MAG.","Tel. 2730-0158"]
[null,null,null,null,null,null,null,null,null,null,null,null,null,null,null,null,null,null,null,"BRUNCA","Buenos Aires Municipalidad","Tel. 8867-5929"]
[null,null,null,null,null,null,null,null,null,null,null,null,null,null,null,null,null,null,null,"BRUNCA","Coto Brus, Oficina Cantonal","Tel. 2773-3150"]
[null,null,null,null,null,null,null,null,null,null,null,null,null,null,null,null,null,null,null,"BRUNCA","Subasta Coto Bruceña.","Tel. 8817-7722"]
[null,null,null,null,null,null,null,null,null,null,null,null,null,null,null,null,null,null,null,"BRUNCA","Coto Brus Municipalidad","Tel. 2773-3128"]
[null,null,null,null,null,null,null,null,null,null,null,null,null,null,null,null,null,null,null,"BRUNCA","Osa, Oficina Cantonal MAG  ","Tel. 2786-7109"]
[null,null,null,null,null,null,null,null,null,null,null,null,null,null,null,null,null,null,null,"BRUNCA","Subasta Ganadera Salamá.","Tel. 2783-4835 / 8311-3739"]
[null,null,null,null,null,null,null,null,null,null,null,null,null,null,null,null,null,null,null,"BRUNCA","Osa, Municipalidad","Tel 2782-0000"]
[null,null,null,null,null,null,null,null,null,null,null,null,null,null,null,null,null,null,null,"BRUNCA","Golfito, Municipalidad","Tel 2775-0523"]
[null,null,null,null,null,null,null,null,null,null,null,null,null,null,null,null,null,null,null,"BRUNCA","Corredores, Municipalidad","Tel 2783-3939"]
[null,null,null,null,null,null,null,null,null,null,null,null,null,null,null,null,null,null,null,"CENTRAL_SUR ","Puriscal. MAG-SENASA. ","Tel. 2416-5081 y 2587-1883 ext.2028"]
[null,null,null,null,null,null,null,null,null,null,null,null,null,null,null,null,null,null,null,"CENTRAL_SUR ","Aserrí. MAG.","Tel. 2230-4820"]
[null,null,null,null,null,null,null,null,null,null,null,null,null,null,null,null,null,null,null,"CENTRAL_SUR ","Acosta. MAG. ","Tel. 2410-0164"]
[null,null,null,null,null,null,null,null,null,null,null,null,null,null,null,null,null,null,null,"CENTRAL_SUR ","Santa Ana. MAG. ","Tel. 2282-2871"]
[null,null,null,null,null,null,null,null,null,null,null,null,null,null,null,null,null,null,null,"CENTRAL_ORIENTAL","Ochomogo. SENASA. ","Tel. 2587-1600"]
[null,null,null,null,null,null,null,null,null,null,null,null,null,null,null,null,null,null,null,"CENTRAL_ORIENTAL","Dota.  ","Tel. 2541-1140"]
[null,null,null,null,null,null,null,null,null,null,null,null,null,null,null,null,null,null,null,"CENTRAL_ORIENTAL","Turrialba. ","Tel. 2556-9367"]
[null,null,null,null,null,null,null,null,null,null,null,null,null,null,null,null,null,null,null,"CENTRAL_ORIENTAL","Paraíso. MAG.  ","Tel. 2574-3187"]
[null,null,null,null,null,null,null,null,null,null,null,null,null,null,null,null,null,null,null,"CENTRAL_OCCIDENTAL  ","Grecia. SENASA ","Tel. 25871884, Ext. 2020 y 2021"]
[null,null,null,null,null,null,null,null,null,null,null,null,null,null,null,null,null,null,null,"CENTRAL_OCCIDENTAL  ","San Ramón. MAG","Tel. 2445-6395"]
[null,null,null,null,null,null,null,null,null,null,null,null,null,null,null,null,null,null,null,"CENTRAL_OCCIDENTAL  ","Heredia. MAG  ","Tel. 2261-4638"]
[null,null,null,null,null,null,null,null,null,null,null,null,null,null,null,null,null,null,null,"HUETAR_NORTE ","Ciudad Quesada. SENASA ","Tel. 2460-7480"]
[null,null,null,null,null,null,null,null,null,null,null,null,null,null,null,null,null,null,null,"HUETAR_NORTE ","Santa Rosa de Poco Sol.  MAG-SENASA ","Tel. 2477-7156"]
[null,null,null,null,null,null,null,null,null,null,null,null,null,null,null,null,null,null,null,"HUETAR_NORTE ","Los Chiles. .","Tel. 2471-1255"]
[null,null,null,null,null,null,null,null,null,null,null,null,null,null,null,null,null,null,null,"HUETAR_NORTE ","Upala. MAG-SENASA ","Tel. 2470-2473"]
[null,null,null,null,null,null,null,null,null,null,null,null,null,null,null,null,null,null,null,"HUETAR_NORTE ","Sarapiquí. MAG-SENASA ","Tel. 2766-5743"]
[null,null,null,null,null,null,null,null,null,null,null,null,null,null,null,null,null,null,null,"HUETAR_CARIBE","Guápiles, SENASA.    ","Tel. 2710-4580   2587-1882"]
[null,null,null,null,null,null,null,null,null,null,null,null,null,null,null,null,null,null,null,"HUETAR_CARIBE","Limón Oficina del MAG. ","Tel. 2795-3814"]
[null,null,null,null,null,null,null,null,null,null,null,null,null,null,null,null,null,null,null,"HUETAR_CARIBE","Siquirres. MAG  ","Tel. 2768-2104"]
[null,null,null,null,null,null,null,null,null,null,null,null,null,null,null,null,null,null,null,"HUETAR_CARIBE","Cahuita. MAG. ","Tel. 2755-0268    2755-1104   "]
[]
[]
[]
[]
[]
[]
[]
[]
[]
[]
[]
[]
[]
[]
[]
[]
[]
[]
[]
[]
[]
[]
[]
[]
[]
[]
[]
[]
[]
[]
[]
[]
[]
[]
[]
[]
[]
[]
[]
[]
[]
[]
[]
[]
[]
[]
[]
[]
[]
[]
[]
[]
[]
[]
[]
[]
[]
[]
[]
[]
[]
[]
[]
[]
[]
[]
[]
[]
[]
[]
[]
[]
[]
[]
[]
[]
[]
[]
[]
[]
[]
[]
[]
[]
[]
[]
[]
[]
[]
[]
[]
[]
[]
[]
[]
[]
[]
[]
[]
[]
[]
[]
[]
[]
[]
[]
[]
[]
[]
[]
[]
[]
[]
[]
[]
[]
[]
[]
[]
[]
[]
[]
[]
[]
[]
[]
[]
[]
[]
[]
[]
[]
[]
[]
[]
[]
[]
[]
[]
[]
[]
[]
[]
[]
[]
[]
[]
["4 CENTRAL SUR "]
["Puriscal. MAG-SENASA. El Estero diagonal al Hospital","Recepción y emisión de CVO",null,null,"Lunes a viernes de 8 am a 3:30 pm","Tel. 2416-5081 y 2587-1883 ext.2028"]
[null,"Actualización registro anual  CVO",null,null,null,"ccruz@senasa.go.cr"]
[null,"Inscripción de fincas"]
[null,"Entrega de bitácoras"]
[null,"Entrega de guías"]
[null,null,null,null,null,null,null,"Puriscal. MAG-SENASA. El Estero diagonal al Hospital"]
["Aserrí. MAG. Contiguo al Centro Diurno de Ancianos.","Recepción y emisión de CVO",null,null,"Lunes a viernes de 8 am a 3:30 pm, excepto los miércoles","Tel. 2230-4820",null,"Aserrí. MAG. Contiguo al Centro Diurno de Ancianos."]
[null,"Actualización registro anual  CVO",null,null,null,"dmendez@senasa.go.cr ",null,"Acosta. MAG. Frente al parque en San Ignacio."]
[null,"Inscripción de fincas",null,null,null,null,null,"Santa Ana. MAG. Frente a Palí"]
[null,"Entrega de bitácoras"]
[null,"Entrega de guías"]
[]
["Acosta. MAG. Frente al parque en San Ignacio.","Recepción y entrega de trámites para CVO y registro anual",null,null,"Miércoles de 8 am a 12 md","Tel. 2410-0164"]
[null,null,null,null,null,"dmendez@senasa.go.cr"]
["Santa Ana. MAG. Frente a Palí","Recepción y emisión de CVO",null,null,"Lunes de 8 am a 3:00 pm","Tel. 2282-2871"]
[null,"Actualización registro anual  CVO",null,null,null,"sromero@senasa.go.cr"]
[null,"Inscripción de fincas"]
[null,"Entrega de bitácoras"]
[null,"Entrega de guías"]
[]
["5 REGIÓN CENTRAL ORIENTAL (Metropolitana) "]
["Ochomogo. SENASA. San Nicolás de Cartago, 600Oeste de RECOPE, cuesta del Fierro",null,"Recepción y emisión de CVO","Lunes a viernes de 8 am a 3:30 pm.",null,"Tel. 2587-1600"]
[null,null,"Actualización registro anual CVO",null,null,"srojas@senasa.go.cr"]
[null,null,"Inscripción de fincas",null,null,"csaenz@senasa.go.cr"]
[null,null,"Entrega de bitácoras"]
[null,null,"Entrega de guías"]
["Dota.  Del Banco Nacional 100 al sur",null,"Recepción y emisión de CVO","Miércoles de 8 am a 3:30 pm",null,"Tel. 2541-1140"]
[null,null,"Actualización registro anual CVO",null,null,"chaug@senasa.go.cr "]
[null,null,"Inscripción de fincas"]
[null,null,"Entrega de bitácoras"]
[null,null,"Entrega de guías"]
["Turrialba. Barrio Clodomiro Picado, costado oeste de escuela de enseñanza especial.",null,"Recepción y emisión de CVO","Lunes a viernes de 8 am a 3:30 pm",null,"Tel. 2556-9367"]
[null,null,"Actualización registro anual CVO",null,null,"jennylo.aguilar@gmail.com"]
[null,null,"Inscripción de fincas",null,null,"wvargas@go.cr"]
[null,null,"Entrega de bitácoras"]
[null,null,"Entrega de guías"]
["Paraíso. MAG. 250 al sur del mercado municipal  ",null,"Recepción de documentos","Viernes de 8 am a 3:30 pm",null,"Tel. 2574-3187"]
[null,null,"Entrega de guías ",null,null,"rafaelsolanomadriz@gmail.com "]
["6 REGIÓN CENTRAL OCCIDENTAL  "]
["Grecia. SENASA Contiguo a la delegación de Tránsito",null,"Recepción y emisión de CVO","Lunes  a viernes de 8 am a 3:30 pm",null,"Tel. 25871884, Ext. 2020 y 2021"]
[null,null,"Actualización registro anual CVO",null,null,"Fax. 24943605"]
[null,null,"Inscripción de fincas",null,null,"terrafirme.cr@gmail.com"]
[null,null,"Entrega de bitácoras",null,null,"cconejo@senasa.go.cr"]
[null,null,"Entrega de guías",null,null,"emiranda@senasa.go.cr "]
["San Ramón. MAG, frente a Hospital Carlos Valverde Vega",null,"Recepción y emisión de CVO","De lunes a viernes de 8 am a 3:30 pm",null,"Tel. 2445-6395"]
[null,null,"Actualización registro anual CVO",null,null,"raraya@senasa.go.cr"]
[null,null,"Inscripción de fincas",null,null,"merodriguez@senasa.go.cr"]
[null,null,"Entrega de bitácoras"]
[null,null,"Entrega de guías"]
["Heredia. MAG costado Oeste del Estadio Rosabal Cordero ",null,"Recepción y emisión de CVO","Lunes a viernes de 8 am a 3:30 pm",null,"Tel. 2261-4638"]
[null,null,"Actualización registro anual CVO",null,null,"Fax. 22614638"]
[null,null,"Inscripción de fincas",null,null,"tmurrell@senasa.go.cr "]
[null,null,"Entrega de bitácoras"]
[null,null,"Entrega de guías"]
[]
["7 REGIÓN HUETAR NORTE "]
["Ciudad Quesada. SENASA ",null,"Recepción y emisión de CVO","Lunes a viernes de 8 am a 3:30 pm",null,"Tel. 2460-7480"]
[null,null,"Actualización registro anual CVO"]
[null,null,"Inscripción de fincas"]
[null,null,"Entrega de bitácoras"]
[null,null,"Entrega de guías"]
["Santa Rosa de Poco Sol.  MAG-SENASA ",null,"Recepción y emisión de CVO","Lunes a viernes de 8 am a 3:30 pm",null,"Tel. 2477-7156"]
[null,null,"Actualización registro anual CVO"]
[null,null,"Inscripción de fincas"]
[null,null,"Entrega de bitácoras"]
[null,null,"Entrega de guías"]
["Los Chiles. Puesto de Cuarentena.",null,"Recepción y emisión de CVO","Lunes a viernes de 8 am a 3:30 pm",null,"Tel. 2471-1255"]
[null,null,"Actualización registro anual CVO"]
[null,null,"Inscripción de fincas"]
[null,null,"Entrega de bitácoras"]
[null,null,"Entrega de guías"]
["Upala. MAG-SENASA ",null,"Recepción y emisión de CVO","Lunes a viernes de 8 am a 3:30 pm",null,"Tel. 2470-2473"]
[null,null,"Actualización registro anual CVO"]
[null,null,"Inscripción de fincas"]
[null,null,"Entrega de bitácoras"]
[null,null,"Entrega de guías"]
["Sarapiquí. MAG-SENASA, Puerto Viejo ",null,"Recepción y emisión de CVO","Lunes a viernes de 8 am a 3:30 pm",null,"Tel. 2766-5743"]
[null,null,"Actualización registro anual CVO"]
[null,null,"Inscripción de fincas"]
[null,null,"Entrega de bitácoras"]
[null,null,"Entrega de guías"]
["8 REGIÓN  HUETAR CARIBE"]
["Guápiles, SENASA.  Del  Servicentro Sta. Clara 500 N, 400 E, Finca Experimental  Los Diamantes  ",null,"Recepción y emisión de CVO","Lunes a viernes de 8 am a 3:30 pm",null,"Tel. 2710-4580   2587-1882"]
[null,null,"Actualización registro anual CVO",null,null,"jcaraya@senasa.go.cr "]
[null,null,"Inscripción de fincas"]
[null,null,"Entrega de bitácoras"]
[null,null,"Entrega de guías"]
["Limón Oficina del MAG. Barrio Los Corales No. 2, detrás de Iglesia de Los Santos de los Últimos Días (Mormones)",null,"Recepción y emisión de CVO","Lunes, jueves y viernes de 8 am a 3:30 pm",null,"Tel. 2795-3814"]
[null,null,"Actualización registro anual CVO",null,null,"wmoraga@senasa.go.cr"]
[null,null,"Inscripción de fincas"]
[null,null,"Entrega de bitácoras"]
[null,null,"Entrega de guías",null,null," "]
["Siquirres. MAG, Ruta 32 frente a Servicentro Siquirres  ",null,"Recepción y emisión de CVO","Miércoles, jueves y  viernes de 8 am a 3:30 pm",null,"Tel. 2768-2104"]
[null,null,"Actualización registro anual CVO",null,null,"jmendez@senasa.go.cr"]
[null,null,"Inscripción de fincas"]
[null,null,"Entrega de bitácoras"]
[null,null,"Entrega de guías"]
["Cahuita. MAG. Del parque 100 Norte (atiende Talamanca)",null,"Recepción y emisión de CVO","Martes y Miércoles, de 8 am a 3:30 pm",null,"Tel. 2755-0268    2755-1104   "]
[null,null,"Actualización registro anual CVO",null,null,"2755-0624 ext. 112"]
[null,null,"Inscripción de fincas",null,null,"wmoraga@senasa.go.cr"]
[null,null,"Entrega de bitácoras"]
[null,null,"Entrega de guías"]

{"sheet":"Paso14 (2)","index":37,"n_rows":16,"n_cols":4,"rows_kept":16,"cut":false,"hidden":false,"merged":[[0,0,4,6],[9,1,10,1],[5,1,5,4],[12,1,13,2],[15,0,17,1]]}
["Manual Instructivo de Ingreso al Programa de Abastecimiento Institucional (PAI)"]
[]
[]
[]
[]
["PASO 14.","Aprobar la inspección técnica que realiza la Dirección de Calidad e Inocuidad"]
[]
[]
[]
[null,"Para este paso se necesita completar el 100 % de los requisitos mayores y 70% los menores. ",null,"Seleccione para verlos"]
[]
[]
[null,"A continuación seleccione los requisitos para ver cuales son"]
[]
[]
["Conforme seleccione las opciones de si tiene o no el requisito se le va a poner la nota obtenida para determinar que le falta"]

{"sheet":"Paso15","index":38,"n_rows":59,"n_cols":3,"rows_kept":59,"cut":false,"hidden":false,"merged":[[5,1,5,7],[14,0,15,0],[0,0,4,7]]}
["Manual Instructivo de Ingreso al Programa de Abastecimiento Institucional (PAI)"]
[]
[]
[]
[]
["PASO 15.","Productos Acuícolas y pesqueros, certificación extendida de INCOPESCA"]
[]
[null,"Presentar fotocopia de certificación  extendida por INCOPESCA donde se acredite lo siguiente."]
[]
[null,"1. Licencia de pesca comercial"]
[null,"2. Autorización de comercialización"]
[null,"3. Carné de venta de productos pesqueros o permiso para puesto de recibo-pescadería-planta de procesamiento de productos pesqueros."]
[]
[]
["Seleccione una opción","Oficinas","Teléfono"]
[null,"Santa María de Dota",{"$f":"+VLOOKUP(B16,B48:C59,2,0)","v":"2200-5049"}]
[]
[]
[]
[]
[]
[]
[]
[]
[]
[]
[]
[]
[]
[]
[]
[]
[]
[]
[]
[]
[]
[]
[]
[]
[]
[]
[]
[]
[]
[]
[]
[null,"Sede Central Puntarenas","2630-0600"]
[null,"Quepos","2630-0624"]
[null,"Golfito","2630-0625"]
[null,"Limón","2630-0627"]
[null,"Guápiles","2763-3293"]
[null,"San José","2630-0629"]
[null,"Heredia","2630-0628"]
[null,"La Cruz Guanacaste","2630-0621"]
[null,"El Coco","2630-0622"]
[null,"Nicoya","2630-0623"]
[null,"San Carlos",26300630]
[null,"Santa María de Dota","2200-5049"]

{"sheet":"Paso15 (2)","index":39,"n_rows":19,"n_cols":6,"rows_kept":19,"cut":false,"hidden":false,"merged":[[0,0,4,6],[5,1,5,5]]}
["Manual Instructivo de Ingreso al Programa de Abastecimiento Institucional (PAI)"]
[null,null,null,null,null,"Página Web"]
[]
[]
[]
["PASO 15.","Calificación de la empresa de las MiPyMES del MEIC"]
[]
[null,"Registrarse como usuario de Sistema de Información Empresarial Costarricense (SIEC)."]
[null,"Información que le solicitan"]
[null,"1.       Identificación (cedula física, jurídica, pasaporte, etc.)"]
[null,"2.       Nombre y apellidos de usuario"]
[null,"3.       Correo electrónico"]
[null,"4.       País"]
[null,"5.       Temas de interés"]
[null,"6.       Contraseña",null,"Página Web"]
[null,"Una vez inscritos pueden llenar formularios de inscripción al MEIC"]
[]
[null,"Teléfono del MEIC"]
[null,"2549-1400"]

{"sheet":"Paso16","index":40,"n_rows":14,"n_cols":2,"rows_kept":14,"cut":false,"hidden":false,"merged":[[8,1,12,2],[5,1,5,7],[0,0,4,6],[13,1,14,2]]}
["Manual Instructivo de Ingreso al Programa de Abastecimiento Institucional (PAI)"]
[]
[]
[]
[]
["PASO 16.","Individual que procesen en plantas de terceros o se suplan de productos con terceros "]
[]
[]
[null,"Deben remitir nota firmada por el apoderado general o propietario, junto con documentos probatorios que detalle los términos de relación comercial, información a suministrarse bajo declaración jurada o certificada. De existir un contrato de arrendamiento deberá de presentarlo debidamente protocolizado "]
[]
[]
[]
[]
[null,"En el caso de tener todo propio, hacer caso omiso de este punto."]

{"sheet":"Paso17","index":41,"n_rows":15,"n_cols":4,"rows_kept":15,"cut":false,"hidden":false,"merged":[[14,1,16,1],[0,0,4,6],[8,1,9,1],[11,1,12,1],[5,1,5,5]]}
["Manual Instructivo de Ingreso al Programa de Abastecimiento Institucional (PAI)"]
[]
[]
[]
[]
["PASO 17.","Aprobar la inspección técnica que realiza la Dirección de Calidad e Inocuidad"]
[]
[null,null,null,"Seleccione para verlos"]
[null,"Para este paso se necesita completar el 100 % de los requisitos mayores y 70% los menores. "]
[]
[]
[null,"A continuación seleccione los requisitos para ver cuales son: "]
[]
[]
[null,"Conforme seleccione las opciones de si tiene o no el requisito se le va a poner la nota obtenida para determinar que le falta"]

{"sheet":"ReqMayores","index":42,"n_rows":42,"n_cols":9,"rows_kept":42,"cut":false,"hidden":false,"merged":[[0,0,2,6],[34,1,34,3],[4,1,4,3],[16,1,16,3],[20,1,20,3],[23,1,23,3]]}
["Requisitos Mayores"]
[]
[]
[null,"Punto de Control","Criterio de cumplimiento","Cumplimiento"]
[null,"1. Recibo del producto"]
[null,"1.1 ¿Se cuenta con una lista de productores activos y actualizada por región y el estimado de la cantidad de producción?","Verificar la información. Debe estar el número de cédula fisica o jurídica",null,{"$f":"+IF(OR(D6=\"Sí\",D6=\"No aplica\"),1,\"0\")","v":"0"},{"$f":"+COUNT(E6:E42)","v":0},"Cumplimiento","Nota obtenida","Nota permitida"]
[null,"1.2 ¿Cada productor/proveedor posee una identificación única?","Verificar codificación por productor/proveedor",null,{"$f":"+IF(OR(D7=\"Sí\",D7=\"No aplica\"),1,\"0\")","v":"0"},null,"Requisitos Mayores",{"$f":"+F6/24","v":0},1]
[null,"1.3 ¿Se registra el ingreso de cada lote de producto a las instalaciones?","Se debe registrar todo ingreso de producto y/o materia prima que ingresa a la agroempresa",null,"0"]
[null,"1.4 ¿En el registro de recibo de producto y/o materia prima se identifica el nombre de la agroempresa y/o productor?","Verificar agroempresa y/o nombre de productor",null,"0",null,"Sí"]
[null,"1.5 ¿En el registro de recibo de producto y/o materia prima se identifica la finca, unidad de produccón(lote, sección, etc) o lugar donde fue cosechado el producto?","Verificar nombre de finca y número de sección, lote o lugar",null,"0",null,"No"]
[null,"1.6 ¿En el registro de recibo de producto se identifica el nombre del cultivo, producto y/o materia prima? ","Verificar el nombre del cultivo, producto y/o materia prima",null,"0",null,"No aplica"]
[null,"1.7 ¿En el registro de recibo de producto se identifica la fecha de ingreso a la agroempresa?","Verificar fecha de recibo de producto",null,"0"]
[null,"1.8 ¿En el registro de recibo de producto y/o materoa prima se identifica el responsable de transportar el producto?","Verificar el nombre del chofer o responsable de la carga",null,"0"]
[null,"1.9 ¿En el registro de recibo de producto y/o materia prima se identifica la cantidad de producto y/o materia prima recibida?","Verificar que se indique la cantidad de producto y/o materia recibida.",null,"0"]
[null,"1.10 ¿En el registro de recibo de producto se anota la hora de recibo?","Verificar que se indique la hora de recibo",null,"0"]
[null,"1.11 ¿En el registro de recibo de producto se anota el responsable de recibir el producto y/o materia prima?","Verificar que se indique el nombre y firma del responsable de recibir el producto y/o materia prima",null,"0"]
[null,"3. Almacenamiento",null,null,"0"]
[null,"3.1 ¿Están debidadmente identificadas las unidades de almacenamiento del producto y/o materia prima?","Pueden ser silos, estañones, congeladores y otros. La identificación puede ser numerica, alfanumérica o alfabetica y debe ser facilmente visible.",null,"0"]
[null,"3.2 ¿Existe un procedimiento que permita separar el producto importado del producido en Costa Rica?","Cuando la agroempresa maneje producto importado y producto de Costa Rica en las mismas instalaciones debe tener un procedimiento por escrito que garantice el manejo independiente de ambos productos y/o materia prima.",null,"0"]
[null,"3.3 ¿Se lleva un control de registro con entradas y salidas en puntos de almacenamiento (silos, camaras, estañones, etc.) del producto y/o materia prima?","Se debe consignar en un registro: fecha, nombre del productor, producto, identificación de unidad de almacenamiento y cantidad.",null,"0"]
[null,"4 Proceso",null,null,"0"]
[null,"4.1 ¿Se vincula el número de lote del producto terminado a un registro de entrada de materia prima?","El número de lote en la etiqueta debe poder vincularse a un registro de ingreso",null,"0"]
[null,"4.3 ¿Se lleva un registro por lote de producto terminado?","Se indica: calidad, fecha de empaque, fecha de vencimiento, número de lote, responable, etc.",null,"0"]
[null,"7. Etiquetdo",null,null,"0"]
[null,"7.1 ¿Todas las unidades comerciales tienen el nombre del alimento? ","Debe indicar el nombre del producto",null,"0"]
[null,"7.2 ¿Todas las unidades coerciales indican los ingredientes?","Debe indicar todos los ingredientes que contenga el producto",null,"0"]
[null,"7.3 ¿Todas las unidades comerciales indican el contenido neto?","Expresados en peso o volumen",null,"0"]
[null,"7.4 ¿Todas las unidades comerciales indican el nombre y dirección de la empresa que lo elaboró?","Debe identificarse el nombre y la dirección del fabricante, envasador, distribuidor, exportador o vendedor del alimento",null,"0"]
[null,"7.5 ¿Todas las unidades comerciales indican el país de origen?","Ver etiquetado en la bolsa",null,"0"]
[null,"7.6 ¿Todas las unidades comerciales tienen un número de lote?","Cada envase deberá llevar grabado o marcado de cualquier otro modo, pero de forma indeleble, un código que permita identificar el lote. Dicho código no deberá inducir a error o confusión al consumidor.",null,"0"]
[null,"7.7 ¿Todas las unidades comerciales tienen fecha de vencimiento?","Puede indicarse: fecha de vencimiento/consumir antes de/fecha de caducidad/expira el..",null,"0"]
[null,"7.8 ¿Todas las unidades comerciales tienen instrucciones de uso?","La etqiqueta deberá contener las instrucciones que sean necesarias sobre el modo de empleo.",null,"0"]
[null,"7.9 ¿Todas las unidades comerciales tienen registro sanitario?","Debe indicarse el número de registro sanitario de alimentos otorgado por el Ministerio de Salud y/o SENASA",null,"0"]
[null,"7.10 ¿Todas las unidades comerciales tienen la marca comercial de la agroempresa?","Debe indicarse claramente la(s) marca(s) comercial(es) del producto",null,"0"]
[null,"8. Registro de despacho",null,null,"0"]
[null,"8.1 ¿Son registrados todos los despachos realizados por la agroempresa?","Pedir registros de despacho",null,"0"]
[null,"8.2 ¿En el registro de despacho se anota la fecha de salida?","Verificar fecha de salida de cada despacho de producto terminado",null,"0"]
[null,"8.3 ¿En el registro de despacho se anota número de placa de vehículo?","Verificar destino(lugar) inmediato",null,"0"]
[null,"8.4 ¿En el registro de despacho se anota número de placa de vehiculo?","Verificar número de placa de vehículo de transporte",null,"0"]
[null,"8.5 ¿En el registro de despacho se anota la hora de salida de la agroempresa?","Verificar hora de salida de productos",null,"0"]
[null,"8.6 ¿En el registro de despacho se anota el nombre del chofer encargado del transporte del producto?","Verificar nombre y firma de chofer",null,"0"]
[null,"8.7 ¿En el registro se anota el nombre del encargado del despacho?","Verificar nombre y firma del encargado del despacho",null,"0"]

{"sheet":"ReqMayores (2)","index":43,"n_rows":42,"n_cols":9,"rows_kept":42,"cut":false,"hidden":false,"merged":[[0,6,2,10],[34,1,34,3],[0,0,2,5],[4,1,4,3],[16,1,16,3],[20,1,20,3],[23,1,23,3]]}
["Requisitos Mayores"]
[]
[]
[null,"Punto de Control","Criterio de cumplimiento","Cumplimiento"]
[null,"1. Recibo del producto"]
[null,"1.1 ¿Se cuenta con una lista de productores activos y actualizada por región y el estimado de la cantidad de producción?","Verificar la información. Debe estar el número de cédula fisica o jurídica",null,{"$f":"+IF(OR(D6=\"Sí\",D6=\"No aplica\"),1,\"0\")","v":"0"},{"$f":"+COUNT(E6:E42)","v":0},"Cumplimiento","Nota obtenida","Nota permitida"]
[null,"1.2 ¿Cada productor/proveedor posee una identificación única?","Verificar codificación por productor/proveedor",null,{"$f":"+IF(OR(D7=\"Sí\",D7=\"No aplica\"),1,\"0\")","v":"0"},null,"Requisitos Mayores",{"$f":"+F6/24","v":0},1]
[null,"1.3 ¿Se registra el ingreso de cada lote de producto a las instalaciones?","Se debe registrar todo ingreso de producto y/o materia prima que ingresa a la agroempresa",null,"0"]
[null,"1.4 ¿En el registro de recibo de producto y/o materia prima se identifica el nombre de la agroempresa y/o productor?","Verificar agroempresa y/o nombre de productor",null,"0",null,"Sí"]
[null,"1.5 ¿En el registro de recibo de producto y/o materia prima se identifica la finca, unidad de produccón(lote, sección, etc) o lugar donde fue cosechado el producto?","Verificar nombre de finca y número de sección, lote o lugar",null,"0",null,"No"]
[null,"1.6 ¿En el registro de recibo de producto se identifica el nombre del cultivo, producto y/o materia prima? ","Verificar el nombre del cultivo, producto y/o materia prima",null,"0",null,"No aplica"]
[null,"1.7 ¿En el registro de recibo de producto se identifica la fecha de ingreso a la agroempresa?","Verificar fecha de recibo de producto",null,"0"]
[null,"1.8 ¿En el registro de recibo de producto y/o materoa prima se identifica el responsable de transportar el producto?","Verificar el nombre del chofer o responsable de la carga",null,"0"]
[null,"1.9 ¿En el registro de recibo de producto y/o materia prima se identifica la cantidad de producto y/o materia prima recibida?","Verificar que se indique la cantidad de producto y/o materia recibida.",null,"0"]
[null,"1.10 ¿En el registro de recibo de producto se anota la hora de recibo?","Verificar que se indique la hora de recibo",null,"0"]
[null,"1.11 ¿En el registro de recibo de producto se anota el responsable de recibir el producto y/o materia prima?","Verificar que se indique el nombre y firma del responsable de recibir el producto y/o materia prima",null,"0"]
[null,"3. Almacenamiento",null,null,"0"]
[null,"3.1 ¿Están debidadmente identificadas las unidades de almacenamiento del producto y/o materia prima?","Pueden ser silos, estañones, congeladores y otros. La identificación puede ser numerica, alfanumérica o alfabetica y debe ser facilmente visible.",null,"0"]
[null,"3.2 ¿Existe un procedimiento que permita separar el producto importado del producido en Costa Rica?","Cuando la agroempresa maneje producto importado y producto de Costa Rica en las mismas instalaciones debe tener un procedimiento por escrito que garantice el manejo independiente de ambos productos y/o materia prima.",null,"0"]
[null,"3.3 ¿Se lleva un control de registro con entradas y salidas en puntos de almacenamiento (silos, camaras, estañones, etc.) del producto y/o materia prima?","Se debe consignar en un registro: fecha, nombre del productor, producto, identificación de unidad de almacenamiento y cantidad.",null,"0"]
[null,"4 Proceso",null,null,"0"]
[null,"4.1 ¿Se vincula el número de lote del producto terminado a un registro de entrada de materia prima?","El número de lote en la etiqueta debe poder vincularse a un registro de ingreso",null,"0"]
[null,"4.3 ¿Se lleva un registro por lote de producto terminado?","Se indica: calidad, fecha de empaque, fecha de vencimiento, número de lote, responable, etc.",null,"0"]
[null,"7. Etiquetdo",null,null,"0"]
[null,"7.1 ¿Todas las unidades comerciales tienen el nombre del alimento? ","Debe indicar el nombre del producto",null,"0"]
[null,"7.2 ¿Todas las unidades coerciales indican los ingredientes?","Debe indicar todos los ingredientes que contenga el producto",null,"0"]
[null,"7.3 ¿Todas las unidades comerciales indican el contenido neto?","Expresados en peso o volumen",null,"0"]
[null,"7.4 ¿Todas las unidades comerciales indican el nombre y dirección de la empresa que lo elaboró?","Debe identificarse el nombre y la dirección del fabricante, envasador, distribuidor, exportador o vendedor del alimento",null,"0"]
[null,"7.5 ¿Todas las unidades comerciales indican el país de origen?","Ver etiquetado en la bolsa",null,"0"]
[null,"7.6 ¿Todas las unidades comerciales tienen un número de lote?","Cada envase deberá llevar grabado o marcado de cualquier otro modo, pero de forma indeleble, un código que permita identificar el lote. Dicho código no deberá inducir a error o confusión al consumidor.",null,"0"]
[null,"7.7 ¿Todas las unidades comerciales tienen fecha de vencimiento?","Puede indicarse: fecha de vencimiento/consumir antes de/fecha de caducidad/expira el..",null,"0"]
[null,"7.8 ¿Todas las unidades comerciales tienen instrucciones de uso?","La etqiqueta deberá contener las instrucciones que sean necesarias sobre el modo de empleo.",null,"0"]
[null,"7.9 ¿Todas las unidades comerciales tienen registro sanitario?","Debe indicarse el número de registro sanitario de alimentos otorgado por el Ministerio de Salud y/o SENASA",null,"0"]
[null,"7.10 ¿Todas las unidades comerciales tienen la marca comercial de la agroempresa?","Debe indicarse claramente la(s) marca(s) comercial(es) del producto",null,"0"]
[null,"8. Registro de despacho",null,null,"0"]
[null,"8.1 ¿Son registrados todos los despachos realizados por la agroempresa?","Pedir registros de despacho",null,"0"]
[null,"8.2 ¿En el registro de despacho se anota la fecha de salida?","Verificar fecha de salida de cada despacho de producto terminado",null,"0"]
[null,"8.3 ¿En el registro de despacho se anota número de placa de vehículo?","Verificar destino(lugar) inmediato",null,"0"]
[null,"8.4 ¿En el registro de despacho se anota número de placa de vehiculo?","Verificar número de placa de vehículo de transporte",null,"0"]
[null,"8.5 ¿En el registro de despacho se anota la hora de salida de la agroempresa?","Verificar hora de salida de productos",null,"0"]
[null,"8.6 ¿En el registro de despacho se anota el nombre del chofer encargado del transporte del producto?","Verificar nombre y firma de chofer",null,"0"]
[null,"8.7 ¿En el registro se anota el nombre del encargado del despacho?","Verificar nombre y firma del encargado del despacho",null,"0"]

{"sheet":"ReqMENORES (2)","index":44,"n_rows":42,"n_cols":9,"rows_kept":42,"cut":false,"hidden":false,"merged":[[40,1,40,3],[25,1,25,3],[26,1,26,3],[29,1,29,3],[31,1,31,3],[37,1,37,3],[0,6,2,9],[22,1,22,3],[0,0,2,5],[4,1,4,3],[11,1,11,3],[13,1,13,3],[16,1,16,3]]}
["Requisitos Menores"]
[]
[]
[null,"Punto de Control","Criterio de cumplimiento","Cumplimiento"]
[null,"2.  Análisis de calidades "]
[null,"2.1 ¿Existe un procedimiento documentado para determinar la calidad del producto y/o materia prima?","Pedir procedimiento escrito",null,{"$f":"+IF(OR(D6=\"Sí\",D6=\"No aplica\"),1,\"0\")","v":"0"},{"$f":"+COUNT(E6:E42)","v":0},"Cumplimiento","Nota obtenida","Nota permitida"]
[null,"2.2 ¿Las personas responsables de determinar la calidad del producto y/o materia prima han sido capacitadas para tal fin?","Mostrar certificado, lista o carta de capacitación otorgado.",null,{"$f":"+IF(OR(D7=\"Sí\",D7=\"No aplica\"),1,\"0\")","v":"0"},null,"Requisitos Menores",{"$f":"+F6/24","v":0},0.7]
[null,"2.3 ¿Se realiza algún tipo de análisis, prueba o examen del producto y/o materia prima?","Mostrar un reporte de calidad",null,"0"]
[null,"2.4 ¿Es posible vincular el reporte de calidad con el registro de ingreso del producto y/o materia prima?","Los datos de identificación del productor, transportista, vehículo y producto deben vincularse con el reporte de calidad?",null,"0"]
[null,"2.5 ¿Se dispone de especificaciones documentadas de calidad (atributos de calidad) del producto y/o materia prima?","Mostrar normativa documentada",null,"0"]
[null,"2.6 ¿Hay registros de inspección o análisis de la calidad (atributos) del producto terminado?","Pedir registros de diferentes fechas",null,"0"]
[null,"4. Proceso",null,null,"0"]
[null,"4.2 ¿El material de empaque se encuentra debidamente almacenado, protegido e identificado?","El material de empaque debe estar almacenado en un lugar especifico, sobre tarimas, cubierto, libre de plagas y riesgos de contaminación y rotulado",null,"0"]
[null,"5. Control de calidad",null,null,"0"]
[null,"5.1 ¿Existe un proceso de inspección documentado para asegurar el cumplimiento con la normativa de calidad definitiva?","Pedir mecanismo documentado para control de calidad",null,"0"]
[null,"5.2 ¿Hay registros de inspección de la calidad (atributos) del producto?","Verificar registros de inspección de calidad",null,"0"]
[null,"6. Equipo y maquinaria",null,null,"0"]
[null,"6.1 ¿Se cuenta con mecanismos paraa verificar que el peso y/o volumen de la unidad comercial del producto concuerda con el indicado en la etiqueta?","Debe haber un método muestreo para verificar pesos y/o volumenes de producto terminado",null,"0"]
[null,"6.2 ¿Las romanas utilizadas en el proceso se encuentran calibradas?","Todas las romanas usadas para el proceso están identificadas y calibradas por el fabricante, distribuidor o un ente competente",null,"0"]
[null,"6.3 ¿Los termómetros usados en el proceso se encuentran calibrados?","Todos los termómetros usados para el proceso están identificados y calibrados por el fabricante, distribuidor o un ente competente",null,"0"]
[null,"6.4 ¿La maquina para dosificar calidades del producto final se encuentra calibrada?","La maquina que se usa para dosificar el producto final se encuentra calibrada por el fabricante, distribuidor o un ente competente.",null,"0"]
[null,"6.5 ¿La empresa realiza análisis para determinar que las calidades expresadas en la etiqueta son correctas?","Debe haber un método muestreo para verificar que se cumple con las calidades expresadas en la etiqueta.",null,"0"]
[null,"11. Formación del personal",null,null,"0"]
[null,"11.1 ¿Todo el personal ha recibido el curso de Manipulación de alimentos?","Ver listas o certificados de capacitación",null,"0"]
[null,"11.2 ¿Hay rótulos claros y estrategicamente ubicados que indiquen sobre las reglas de higiene que deben cumplir el personal y visitas en áreas de manipulación de producto?","Ver indicaciones sobre medidas higiénicas",null,"0"]
[null,"12. Instalaciones de higiene en la agroempresa",null,null,"0"]
[null,"12.1 Servicios sanitarios y lavamanos",null,null,"0"]
[null,"12.1.1 ¿Hay servicios sanitarios y tienen los insumos apropiados disponible para el personal?","Servicios sanitarios con lavamanos, papel, jabón, basurero con tapa",null,"0"]
[null,"12.1.2 ¿Se mantienen limpios y equipados los servicios sanitarios?","Debe ser observable",null,"0"]
[null,"12.2 Comedor",null,null,"0"]
[null,"12.2.1 ¿Cuenta el personal de un área destinada al consumo de alimentos?","Debe haber un área especifica para comedor fuera de área de proceso",null,"0"]
[null,"13. Control de plagas y animales",null,null,"0"]
[null,"13.1 ¿Se protegen adecuadamente las instalaciones para evitar la entrada de plagas y animales (domésticos/silvestres) a áreas de manipulación de producto?","Rotulación relativa a la prohibición de entrada de animales domesticos y silvestres",null,"0"]
[null,"13.2 ¿Hay un procedimiento establecido para el control de plagas?","Pedir procedimiento para control de plagas",null,"0"]
[null,"13.3 ¿Se llevan registros para el control de roedores?","Pedir registros de monitoreo y croquis de trampas",null,"0"]
[null,"13.4 ¿Hay registros de control de insectos?","Pedir registros de control donde se indique: responsable, nombre, comercial, dosis,área, fecha.",null,"0"]
[null,"13.5 ¿Los productos utilizados para el control de plagas están oficialmente permitidos para ser usados en instalaciones donde se procesan alimentos?","Pedir fichas de los productos utilizados",null,"0"]
[null,"14. Bioseguridad",null,null,"0"]
[null,"14.1 ¿El acceso a las instalaciones de manipulación de productos y bodegas de almacenamiento se encuentra totalmente restringuido?","A personal ajeno a la agroempresa",null,"0"]
[null,"14.2 ¿Todas las visitas, personas y vehículos son anotados en un registro previo a permitir el ingreso a las instalaciones?","En registro anotar: fecha, nombre, cédula, motivo de visita, hora entrada y hora de salida.",null,"0"]
[null,"15. Quejas y reclamos",null,null,"0"]
[null,"15.1 ¿Hay disponible un procedimiento de reclamos relativo al producto comercializado?","Debe haber un mecanismo formal para atender los reclamos de los clientes",null,"0"]

{"sheet":"ReqMENORES","index":45,"n_rows":42,"n_cols":9,"rows_kept":42,"cut":false,"hidden":false,"merged":[[0,6,2,6],[40,1,40,3],[0,0,2,5],[4,1,4,3],[16,1,16,3],[22,1,22,3],[37,1,37,3],[11,1,11,3],[13,1,13,3],[25,1,25,3],[26,1,26,3],[29,1,29,3],[31,1,31,3]]}
["Requisitos Menores"]
[]
[]
[null,"Punto de Control","Criterio de cumplimiento","Cumplimiento"]
[null,"2.  Análisis de calidades "]
[null,"2.1 ¿Existe un procedimiento documentado para determinar la calidad del producto y/o materia prima?","Pedir procedimiento escrito",null,{"$f":"+IF(OR(D6=\"Sí\",D6=\"No aplica\"),1,\"0\")","v":"0"},{"$f":"+COUNT(E6:E42)","v":0},"Cumplimiento","Nota obtenida","Nota permitida"]
[null,"2.2 ¿Las personas responsables de determinar la calidad del producto y/o materia prima han sido capacitadas para tal fin?","Mostrar certificado, lista o carta de capacitación otorgado.",null,{"$f":"+IF(OR(D7=\"Sí\",D7=\"No aplica\"),1,\"0\")","v":"0"},null,"Requisitos Menores",{"$f":"+F6/24","v":0},0.7]
[null,"2.3 ¿Se realiza algún tipo de análisis, prueba o examen del producto y/o materia prima?","Mostrar un reporte de calidad",null,"0"]
[null,"2.4 ¿Es posible vincular el reporte de calidad con el registro de ingreso del producto y/o materia prima?","Los datos de identificación del productor, transportista, vehículo y producto deben vincularse con el reporte de calidad?",null,"0"]
[null,"2.5 ¿Se dispone de especificaciones documentadas de calidad (atributos de calidad) del producto y/o materia prima?","Mostrar normativa documentada",null,"0"]
[null,"2.6 ¿Hay registros de inspección o análisis de la calidad (atributos) del producto terminado?","Pedir registros de diferentes fechas",null,"0"]
[null,"4. Proceso",null,null,"0"]
[null,"4.2 ¿El material de empaque se encuentra debidamente almacenado, protegido e identificado?","El material de empaque debe estar almacenado en un lugar especifico, sobre tarimas, cubierto, libre de plagas y riesgos de contaminación y rotulado",null,"0"]
[null,"5. Control de calidad",null,null,"0"]
[null,"5.1 ¿Existe un proceso de inspección documentado para asegurar el cumplimiento con la normativa de calidad definitiva?","Pedir mecanismo documentado para control de calidad",null,"0"]
[null,"5.2 ¿Hay registros de inspección de la calidad (atributos) del producto?","Verificar registros de inspección de calidad",null,"0"]
[null,"6. Equipo y maquinaria",null,null,"0"]
[null,"6.1 ¿Se cuenta con mecanismos paraa verificar que el peso y/o volumen de la unidad comercial del producto concuerda con el indicado en la etiqueta?","Debe haber un método muestreo para verificar pesos y/o volumenes de producto terminado",null,"0"]
[null,"6.2 ¿Las romanas utilizadas en el proceso se encuentran calibradas?","Todas las romanas usadas para el proceso están identificadas y calibradas por el fabricante, distribuidor o un ente competente",null,"0"]
[null,"6.3 ¿Los termómetros usados en el proceso se encuentran calibrados?","Todos los termómetros usados para el proceso están identificados y calibrados por el fabricante, distribuidor o un ente competente",null,"0"]
[null,"6.4 ¿La maquina para dosificar calidades del producto final se encuentra calibrada?","La maquina que se usa para dosificar el producto final se encuentra calibrada por el fabricante, distribuidor o un ente competente.",null,"0"]
[null,"6.5 ¿La empresa realiza análisis para determinar que las calidades expresadas en la etiqueta son correctas?","Debe haber un método muestreo para verificar que se cumple con las calidades expresadas en la etiqueta.",null,"0"]
[null,"11. Formación del personal",null,null,"0"]
[null,"11.1 ¿Todo el personal ha recibido el curso de Manipulación de alimentos?","Ver listas o certificados de capacitación",null,"0"]
[null,"11.2 ¿Hay rótulos claros y estrategicamente ubicados que indiquen sobre las reglas de higiene que deben cumplir el personal y visitas en áreas de manipulación de producto?","Ver indicaciones sobre medidas higiénicas",null,"0"]
[null,"12. Instalaciones de higiene en la agroempresa",null,null,"0"]
[null,"12.1 Servicios sanitarios y lavamanos",null,null,"0"]
[null,"12.1.1 ¿Hay servicios sanitarios y tienen los insumos apropiados disponible para el personal?","Servicios sanitarios con lavamanos, papel, jabón, basurero con tapa",null,"0"]
[null,"12.1.2 ¿Se mantienen limpios y equipados los servicios sanitarios?","Debe ser observable",null,"0"]
[null,"12.2 Comedor",null,null,"0"]
[null,"12.2.1 ¿Cuenta el personal de un área destinada al consumo de alimentos?","Debe haber un área especifica para comedor fuera de área de proceso",null,"0"]
[null,"13. Control de plagas y animales",null,null,"0"]
[null,"13.1 ¿Se protegen adecuadamente las instalaciones para evitar la entrada de plagas y animales (domésticos/silvestres) a áreas de manipulación de producto?","Rotulación relativa a la prohibición de entrada de animales domesticos y silvestres",null,"0"]
[null,"13.2 ¿Hay un procedimiento establecido para el control de plagas?","Pedir procedimiento para control de plagas",null,"0"]
[null,"13.3 ¿Se llevan registros para el control de roedores?","Pedir registros de monitoreo y croquis de trampas",null,"0"]
[null,"13.4 ¿Hay registros de control de insectos?","Pedir registros de control donde se indique: responsable, nombre, comercial, dosis,área, fecha.",null,"0"]
[null,"13.5 ¿Los productos utilizados para el control de plagas están oficialmente permitidos para ser usados en instalaciones donde se procesan alimentos?","Pedir fichas de los productos utilizados",null,"0"]
[null,"14. Bioseguridad",null,null,"0"]
[null,"14.1 ¿El acceso a las instalaciones de manipulación de productos y bodegas de almacenamiento se encuentra totalmente restringuido?","A personal ajeno a la agroempresa",null,"0"]
[null,"14.2 ¿Todas las visitas, personas y vehículos son anotados en un registro previo a permitir el ingreso a las instalaciones?","En registro anotar: fecha, nombre, cédula, motivo de visita, hora entrada y hora de salida.",null,"0"]
[null,"15. Quejas y reclamos",null,null,"0"]
[null,"15.1 ¿Hay disponible un procedimiento de reclamos relativo al producto comercializado?","Debe haber un mecanismo formal para atender los reclamos de los clientes",null,"0"]

{"sheet":"Paso18","index":46,"n_rows":19,"n_cols":4,"rows_kept":19,"cut":false,"hidden":false,"merged":[[0,0,4,6],[5,1,5,5]]}
["Manual Instructivo de Ingreso al Programa de Abastecimiento Institucional (PAI)"]
[]
[]
[]
[]
["PASO 18.","Calificación de la empresa de las MiPyMES del MEIC"]
[]
[null,"Registrarse como usuario de Sistema de Información Empresarial Costarricense (SIEC)."]
[null,"Información que le solicitan"]
[null,"1.       Identificación (cedula física, jurídica, pasaporte, etc.)"]
[null,"2.       Nombre y apellidos de usuario"]
[null,"3.       Correo electrónico"]
[null,"4.       País"]
[null,"5.       Temas de interés"]
[null,"6.       Contraseña"]
[null,"Una vez inscritos pueden llenar formularios de inscripción al MEIC",null,"Página Web"]
[]
[null,"Teléfono del MEIC"]
[null,"2549-1400"]